Workbook

Sheet Zadost - 1 list (2)
A3: ŽÁDOST | AY3: =_xlfn.SINGLE(manVerze) -> 2026_04 | BA3: =_xlfn.SINGLE(manVerze) -> 2026_04

Sheet Nabidka_PRIV
A3: NABÍDKA | AT3: =_xlfn.SINGLE(manVerze) -> 2026_04
E4: POUŽÍVEJTE PRO TISK NABÍDKY TLAČÍTKO VPRAVO NAHOŘE!!!!!
E9: Individuální nabídka hypotečního úvěru
E14: Klient: | J14: =SplatkaJmenoKlienta -> 
E15: E-mail:
E16: Telefon:
E17: Dne: | J17: =TODAY() -> 2026-03-06
E19: Typ | W19: =IF(NizkoEn="nizkoener","Hypotéka účelová – nízkoenergetická",TypHypoteky) -> Hypotéka účelová
E20: Výše úvěru | W20: =VyseUveruZaklad+vyseUveru2+VyseJedPoj -> 0 Kč
E21: Minimální hodnota nemovitosti ** | W21: =NemHodn -> 0 Kč
E22: Fixní období | W22: =Fix_obdobi -> 3 roky
E23: Doba splatnosti (v měsících) | W23: =SplatnostPrepocetMesice -> 0
E24: =+IF(Fix_obdobi="Float","Úroková sazba (výše Přirážky)","Úroková sazba") -> Úroková sazba | W24: =SazbaTrigger -> 0.00% | Z24: p. a. | AB24: =+IF(Fix_obdobi="Float","("&ROUND(nabidka_vyse_prirazky2*100,2)&" % p. a.)","") -> 
E25: Výše splátky | W25: =SplatkaTrigger -> 0 Kč | AB25: =IF(Pojisteni="měsíční pojištění","(+ měsíční pojistné "&(VyseMesPoj)&" Kč)","") -> 
E26: Měsíční poplatek za správu úvěru | W26: 0 Kč
E27: Poplatek za poskytnutí úvěru | W27: =IF(splPoplPoskZmena="",splPoplPosk,splPoplPoskZmena) -> 0 Kč
E28: Poplatek za ověření podpisu | W28: 50 Kč
E29: Popl. za podání návrhu na vklad (výmaz) zástavního práva | W29: 2,000 Kč
E30: RPSN ** | W30: =Splatka2!E38 -> 
E31: Maximální výše úvěru (při uvedeném příjmu a výdajích) | W31: =adminBonita!B89 -> 4,350,000 Kč
E32: Minimální hodnota nemovitosti* | W32: =nMaxVyse*1.25 -> 5,437,500 Kč
E33: =Parametry!K142 -> 
E34: =Parametry!K137 -> ** Ve výpočtu RPSN není zohledněn poplatek za vyhodnocení rizik spojených se zástavou nemovitosti (náklady odhad nemovitosti)
E36: =+IF(Fix_obdobi="Float","V případě Fixního období ''Float'' se úroková sazba skládá z variabilní Base Mortage Rate (BMR) a pevné Přirážky. U tohoto Fixního období Vám rezervujeme výši Přirážky za těchto předpokladů:","Úrokovou sazbu Vám v uvedené výši rezervujeme za těchto předpokladů:") -> Úrokovou sazbu Vám v uvedené výši rezervujeme za těchto předpokladů:
E37: · požadované parametry úvěru (účel úvěru, výše úvěru, doba splatnosti, fixní období) zůstanou beze změn | F37: požadované parametry úvěru (účel úvěru, výše úvěru, doba splatnosti, fixní období) zůstanou beze změn
E38: · | F38: =Parametry!K146 -> hodnota nemovitosti, která bude sloužit k zajištění úvěru, bude ve výši alespoň Kč, za předpokladu, že zastavovaná nemovitost neslouží k zajištění jiného úvěru
E39: · | F39: =IF(OR(C_D_CardIncl<0.8,docHUAnoNe=FALSE),nabidkaText,nabidkaTextDocHu) -> 
E41: =IF(F41<>"","·","") -> · | F41: =+IF(Pojisteni="jednorázové pojištění","sjednání jednorázově hrazeného Pojištění schopnosti splácet úvěr",IF(Pojisteni="měsíční pojištění","sjednání měsíčně hrazeného Pojištění schopnosti splácet úvěr","")) -> sjednání měsíčně hrazeného Pojištění schopnosti splácet úvěr
E42: =IF(F42<>"","·","") ->  | F42: =IF(NizkoEn="nizkoener",adminSplatka!D89,"") -> 
E47: =IF(prihlaseny="banka","Jméno bankéře:","Jméno poradce:") -> Jméno poradce:
E48: =IF(prihlaseny="banka","Pobočka:","Společnost:") -> Společnost:
E49: E-mail:
E50: Telefon:
E61: Tato nabídka je pouze indikativní, není návrhem na uzavření smlouvy a nelze z ní proto dovozovat povinnost banky uskutečnit jakékoli transakce. Případné uzavření smlouvy nebo uskutečnění transakce je vázáno na získání potřebných interních schválení v rámci banky a na podepsání příslušné smluvní dokumentace. Tato nabídka není radou podle pravidel stanovených zákonem č. 257/2016 Sb., o spotřebitelském úvěru.

Sheet adminSplatka (hidden)
B1: dnešní datum | C1: =TODAY() -> 2026-03-06 | N1: Petra
B2: Výpočet splátky | E2: Výpočet splátky pro Bonitu | I2: Kontrola změny dat | M2: 2017-12-01 | N2: =$O$2 -> 0 | O2: =+IF(AND(OR(TODAY()>ALM_Hypo!O2,TODAY()=ALM_Hypo!O2),OR(TODAY()<ALM_Hypo!O3,TODAY()=ALM_Hypo!O3)),1,0) -> 0 | P2: =+IF(AND(OR(P3>ALM_Hypo!O2,P3=ALM_Hypo!O2),OR(P3<ALM_Hypo!O3,P3=ALM_Hypo!O3)),1,0) -> 0 | R2: Privát
I3: Aktuální | J3: Puvodni | K3: =AND(K4:K19) -> FALSE | P3: 2018-07-01
B4: Produkt | C4: =VLOOKUP(TypHypoteky,ProductMap,2,FALSE) -> 01a | F4: =Product -> 01a | I4: Hypoteční úvěr účelový rezidenční Individual | J4: Hypoteční úvěr účelový rezidenční Flexi | K4: =I4=J4 -> FALSE
B5: Žadatel | C5: =IF(MID(SplZadatel,7,2)="SR","S",MID(SplZadatel,1,1)) ->  | I5: 2,000,000 | J5: 2000000 | K5: TRUE | Q5: BMR | R5: =ALM_Hypo!D96 -> 3.54%
B6: Rodné číslo | C6: =MID(SplRodneCislo,1,1) ->  | K6: =I6=J6 -> TRUE | Q6: Přirážka | R6: =+SazbaTrigger-nabidka_vyse_prirazky -> -3.54%
B7: Příjmy | C7: =MID(SplPrijmyV,1,1) ->  | D7: =Zadatel&RodneCislo&Prijmy ->  | I7: =NemHodn -> 0 | J7: 2180000 | K7: FALSE
B8: Typ klienta | C8: FALSE | D8: =IF(C8=FALSE,"Standardní klient","Nestandardní klient") -> Standardní klient | E8: S | I8: 67% | J8: 0.918 | K8: FALSE
B9: Produkt_sub | C9: =VratProductDomain(Product&"_"&TypKlienta,1) -> 01a_S | D9: =VLOOKUP(ProduktList,Parametry!A5:C9,3,0) -> ucelova | F9: =VratProductDomain(ProductBON&"_"&TypKlienta,1) -> 01a_S | I9: 25 | J9: 15 | K9: FALSE | N9: =+Pojisteni -> měsíční pojištění
B10: Fixace | C10: =MID(Fix_obdobi,1,2) -> 3 | D10: =FIXACE -> 3 | F10: 3 | I10: =Vek -> 0 | J10: 29292 | K10: FALSE | N10: bez poj | O10: s poj
B11: C_D (LTV) | C11: =(VyseUveruZaklad+vyseUveru2)/NemHodn ->  | I11: zděná nemovitost nebo pozemek | J11: zděná nemovitost nebo pozemek | K11: TRUE | N11: =+IF(Pojisteni="bez pojištění",UrSazba,UrSazba+slevaMP) -> 4.59% | O11: =+IF(Pojisteni="měsíční pojištění",UrSazba,UrSazba-slevaMP) -> 0.0429
B12: C_D (LTV)iCardif | C12: =(VyseUveruZaklad+vyseUveru2)/NemHodn ->  | I12: Ano | J12: Ano | K12: TRUE | N12: 6376 | O12: 6214
B13: Splatnost | C13: =SplatnostPrepocetMesice -> 0 | I13: Ano | J13: Ne | K13: FALSE
B14: Typ Nemov. | C14: =IF(ISNA(VLOOKUP(SplTypNemovitosti,NemovitostMap,2,FALSE)),"",VLOOKUP(SplTypNemovitosti,NemovitostMap,2,FALSE)) ->  | I14: Ano | J14: Ano | K14: TRUE
B15: Cardif pro FL | C15: =IF(AND(FIXACE="Fl",OR(Pojisteni="měsíční pojištění",Pojisteni="jednorázové pojištění")),"Ano","Ne") -> Ne | E15: Sleva Cardif | F15: =IF(OR(Sleva_CP="Ano",Sleva_CF="Ano"),slevaJP,0) -> 0.10% | I15: 0.00% | J15: 0.00% | K15: TRUE
B16: Cardif pro Fix | C16: =IF(AND(FIXACE<>"Fl",OR(Pojisteni="měsíční pojištění",Pojisteni="jednorázové pojištění")),"Ano","Ne") -> Ano | I16: Občan ČR | J16: Občan ČR | K16: TRUE
B17: Akt bal FL | C17: =IF(FIXACE="Fl",SlevaUcet,IF(FIXACE="CA",SlevaUcet,"Ne")) -> Ne | E17: sleva Bal | I17: Má české nebo slovenské RČ | J17: Má české nebo slovenské RČ | K17: TRUE | M17: 0.0299000000
B18: Kreditní karta | C18: Ne | E18: sleva KK | I18: Česká republika | J18: Česká republika | K18: TRUE
B19: Akt.bal Fix | C19: =IF(FIXACE="Fl","Ne",IF(FIXACE="CA","Ne",SlevaUcet)) -> Ne | I19: Navýšením úvěru | J19: Z vlastních zdrojů | K19: FALSE
B20: Vypisovat | C20: Ne
B21: Sazby ke dni | C21: =platnost_od -> 2026-03-11 | I21: 42900 | K21: Hypo přirážka sazby pro hypo pod 2mio
I22: 4.49 | J22: =FIXED(UrSazba_prac,) -> 42 900,00 | K22: 0.00%
B23: Úroková sazba | C23: 4.290% | F23: 4.390% | I23: 0 | K23: =+IF(AND(OR(celkova_vyse_uveru_s_CPI<2000000,celkova_vyse_uveru_s_CPI=2000000),ProduktList<>"U hypotéka neúčelová"),K22,0) -> 0
B24: Úr.sazba bez sl | C24: 4.29000000000% | G24: UrSazbaBezSlFL | I24: 0
B25: Splátka | C25: 6,214.00000 | F25: 6268 | I25: 0 | K25: 0.0259000
B26: Měsíční pojištění | C26: =ROUNDUP(IF(Pojisteni="měsíční pojištění",(Splatka)*sazbaPoj,0),) ->  | D26: =sazbaPoj*vyseUveru ->  | E26: splátka apr | F26: 6214 | I26: 0
B27: sazba pojištění | C27: =IF(AND(Pojisteni="měsíční pojištění",AND(adminSplatka!C1>Parametry!E20,adminSplatka!C1<Parametry!F20)),VLOOKUP(SouborPojisteni,Parametry!B20:D22,3,0),IF(AND(Pojisteni="měsíční pojištění",OR(adminSplatka!C1<=Parametry!E20,adminSplatka!C1>=Parametry!F20)),VLOOKUP(SouborPojisteni,Parametry!B20:D22,2,0),0)) ->  | D27: 0.00000 | E27: Splatka_stress_DR | F27: 6183.2100 | I27: 0 | K27: Hypo přirážka sazby pro hypo pevná splátka
B28: vyseUveru | C28: =vyseUveru2+VyseUveruZaklad -> 0 | E28: UrSazba_stress_DR | F28: =2% -> 2.00% | I28: 0 | K28: 3.000%
B29: Jednorázové pojištění | C29: =vyseUveru*sazbaJedPoj -> 0 | E29: pevna splátka | F29: 7333 | I29: 0 | K29: =+IF(C67=TRUE,K28,0) -> 0.000%
B30: Pojištění účel | C30: =ROUNDUP((VyseUveruZaklad/100)*D30,0) -> 0 | D30: 3 | E30: Splatka_stress_DR_pevna | F30: 7332.62 | I30: -0.003 | K30: prirazka_pevna_splatka
B31: Pojištění neúčel | C31: =ROUNDUP((vyseUveru2/100)*D31,0) -> 0 | D31: 3 | I31: 0
B32: Splatnost_Mesice | C32: FALSE | D32: =IF(Splatnost_Mesice=TRUE,DobaSplatnosti2,DobaSplatnosti2*12) -> 0 | E32: =DobaSplatnosti2 -> 0
B33: Sleva MP | C33: =CPI_sleva/100 -> 0.30% | I33: dnešní datum
B34: Sleva JP | C34: 0.10% | I34: =TODAY() -> 2026-03-06 | J34: 2017-08-15
B35: Úroková sazba změna | C35: =SplCsZmena+SplOsZmena+SplSrsZmena+SplRmOmZmena ->  | D35: =SplCsZmena2+SplOsZmena2+SplSrsZmena2+SplRmZmena2+SplOmZmena2 -> 
B36: Měsíční pojištění | C36: =IF(Pojisteni="měsíční pojištění","ano","ne") -> ano | I36: Nabidka_sazba | J36: Nabidka_datum | K36: Nabidka_ID
B37: LTV nad 80% | C37: =IF(AND(LTV>80%),ALM_Hypo!D73,0) -> 0.500% | I37: 4.89% | J37: 2024-10-29 | K37: 04_S
B38: Kombi
B39: Zaměstnanecká úroková sazba | C39: 4.258%
I40: Nabidka_sazba
B41: Fixace2 | C41: =IF(Fix_obdobi="float",15,MID(Fix_obdobi,1,2)) -> 3 | I41: Nabidka_datum
B42: Méně než 120 dní | C42: =IF(KratsiDoba="Ano",TRUE,FALSE) -> FALSE | I42: Nabidka_ID
B43: Hypotéka pro mladé | C43: =IF(AND(OR(HypoMlade="ANO"),C_D>=80%),ALM_Hypo!G75,0) -> 
C45: =IF(AND(OR(C90="ANO",HypoMlade="ANO"),C_D>=80%),ALM_Hypo!G75,0) -> 
B46: Hodnota nemovitosti | C46: =NemHodn -> 0
B55: běžný účet - defautlně | C55: Ne
B56: dokumentyHU | C56: FALSE | D56: =IF(C56,0,0) -> 0.0%
B57: výše úvěru bez CPI | C57: =vyseUveru2+VyseUveruZaklad -> 0
B58: měsíční pojištění | C58: =IF(Pojisteni="Ano",TRUE,FALSE) -> FALSE | D58: 0.0%
B59: Nejpozději do 24. 2. 2017 včetně bude do banky doručena kompletní žádost o úvěr (tj. Vyplněná a podepsaná žádost o úvěr včetně všech požadovaných podkladů) a současně nejpozději do 31. 3. 2017 včetně bude mezi bankou a klientem podepsána smlouva o poskytnutí hypotečního úvěru. V případě nedodržení těchto termínů bude úroková sazba navýšena o 1,5 %.
B60: ="nejpozději do "&TEXT(NOW()+14,"d.m.rrrr")&" včetně bude do banky doručena kompletní žádost o úvěr (tj. vyplněná a podepsaná žádost o úvěr včetně všech požadovaných podkladů) a současně "&"nejpozději do "&C61&" bude mezi bankou a klientem podepsána smlouva o poskytnutí hypotečního úvěru." -> nejpozději do 20.3.2026 včetně bude do banky doručena kompletní žádost o úvěr (tj. vyplněná a podepsaná žádost o úvěr včetně všech požadovaných podkladů) a současně nejpozději do 45 kalendářních dnů od data doručení kompletní žádosti o úvěr do banky bude mezi bankou a klientem podepsána smlouva o poskytnutí hypotečního úvěru.
B61: datum pro text | C61: 45 kalendářních dnů od data doručení kompletní žádosti o úvěr do banky
B62: nabidka | C62: Ne
B65: =+vyseUveru -> 0
B67: Pevna splatka ano/ne
B68: zelená hypotéka | D68: =IF(AND(IF(OR(ProduktList="Hypotéka neúčelová",HlavUcelUveru="Refinancování úvěru – zjednodušené",HlavUcelUveru="Refinancování úvěru – standard"),FALSE,TRUE)=TRUE,C68=TRUE),TRUE,FALSE) -> FALSE
A70: =+RANK(D70,$D$70:$D$72) -> 3 | B70: alt_spl1 | C70: 7457 | D70: =IF(_xlfn.FLOOR.MATH(IF(+NemHodn*0.8-(vyseUveru+vyseUveru2)>1000000,1000000,+NemHodn*0.8-(vyseUveru+vyseUveru2)),50000)<100000,0,_xlfn.FLOOR.MATH(IF(+NemHodn*0.8-(vyseUveru+vyseUveru2)>1000000,1000000,+NemHodn*0.8-(vyseUveru+vyseUveru2)),50000)) -> 0.00 | E70: =+alt_spl1-SplatkaTrigger -> 7457
A71: =+RANK(D71,$D$70:$D$72) -> 2 | B71: alt_spl2 | C71: 7768 | D71: 250,000.00 | E71: =+alt_spl2-SplatkaTrigger -> 7768
A72: =+RANK(D72,$D$70:$D$72) -> 1 | B72: alt_spl3 | C72: 9321 | D72: 500,000.00 | E72: =+alt_spl3-SplatkaTrigger -> 9321
B74: =+HlavUcelUveru -> 0 | C74: =+IF(OR(B74=F74,B74=F75),0,1) -> 1 | F74: výstavba
B75: max | C75: =IF(C74=1,IF(+alt_vyse1=0,"",alt_vyse1),"") ->  | D75: =IF(+E70>0,E70,"") -> 7457 | F75: rekonstrukce
B76: min | C76: =+IF(C74=1,IF(AND(C75>alt_vyse2,C75<>""),alt_vyse2,""),0) ->  | D76: =IF(C76<>"",+VLOOKUP(C76,$D$70:$E$72,2,0),"") -> 
B77: mid | C77: =IF(C74=1,+IF(AND(C75>alt_vyse3,C75<>""),alt_vyse3,""),0) ->  | D77: =IF(C77<>"",+VLOOKUP(C77,$D$70:$E$72,2,0),"") -> 
B82: Chyba: Výše neúčelové části úvěru není zadána
B89: zakliknutí nizkoenergetidké (zelené) hypotéky | D89: k financované nemovitosti bude doložen Průkaz energetické náročnosti budovy v klasifikační třídě A nebo B
B90: hypotéka pro mladé | C90: =IF(AND(Splatka2!G17>=80%,Splatka2!G17<=90%,VekVek<=36),"ANO","NE") -> NE
B91: aktivita na účtu | C91: =IF(AktivitaU="ANO",ALM_Hypo!G76,0) -> 0.002
B92: Nizkoenergeticka dočasně | C92: =IF(NizkoEnerge="ANO",ALM_Hypo!G74,0) -> 0
B98: aktivity na účtu, kterou se rozumí měsíční zaslání částky ve výši alespoň 1,5 násobku anuitní splátky ve prospěch tohoto účtu a měsíční provedení minimálně 3 plateb kartou vydanou k tomuto účtu
B108: Upozornění: Pro výpočet bonity bude použita splátka ve výši 9514
C113: pro plnění podmínek | D113: zobrazení otázky
B114: 1. podmínka | C114: =IF(OR(ProduktList=B136,AND(ProduktList=B137,OR(HlavUcelUveru=C134,HlavUcelUveru=C140,HlavUcelUveru=C139)),AND(OR(ProduktList=B134,ProduktList=B135),OR(HlavUcelUveru=C134,HlavUcelUveru=C140,HlavUcelUveru=C139))),"ANO","NE") -> NE | D114: =IF(OR(AND(ProduktList=B137,OR(HlavUcelUveru=C134,HlavUcelUveru=C140,HlavUcelUveru=C139)),AND(OR(ProduktList=B134,ProduktList=B135),OR(HlavUcelUveru=C134,HlavUcelUveru=C140,HlavUcelUveru=C139))),"ANO","NE") -> NE
B117: 2.podmínka | C117: =Splatka2!G18 -> 0
B119: obě podmínky ANO | C119: =IF(AND(C114="ANO",C117="ANO")=TRUE,"ANO","NE") -> NE
C124: Podmínka 1 je splněna, pokud má hypo tyto parametry:
C125: Typ hypotéky: Účelová nebo Kombinovaná
C126: A zároveň Účel hypotéky: + Koupě nebo získání práva nájmu / úhr. Druž.pod
C128: Nebo
C129: Typ hypotéky: předem
C130: A zároveň Účel hypotéky: koupě
C132: Nebo
C133: Typ hypotéky: Neúčelová
B134: Hypotéka účelová | C134: Koupě
B135: Hypotéka kombinovaná | C135: Výstavba
B136: Hypotéka neúčelová | C136: Rekonstrukce
B137: Hypotéka předem | C137: Refinancování úvěru
B138: Hypotéka na pronájem | C138: Vypořádání majetkových nároků
C139: Zpětné proplacení vl. zdrojů
C140: Získání práva nájmu / úhr. druž. pod.

Sheet Splatka2
R2: 3P
A3: SPLÁTKA | R3: 2026_04
C5: Jméno a příjmení klienta
C8: Nemovitost a její parametry | L8: Pojištění
C10: Typ hypotéky | G10: Hypotéka účelová | M10: Pojištění | P10: měsíční pojištění
C11: Účel hypotéky | M11: Soubor pojištění
C12: Účelová výše úvěru
C14: Doba splatnosti (v letech) | L14: Úroková sazba
C15: Typ zastavované nemovitosti | G15: vyberte
C16: Odhadovaná tržní hodnota nemovitosti | M16: Fixní období | P16: 3 roky
C17: LTV | G17: =IF(OR(NemHodn="",NemHodn=0),"",IF(ProduktList="Hypotéka bez specifikované nemovitosti",ROUNDUP(C_D_CardIncl,2),ROUNDUP(C_D_CardIncl,4))) ->  | M17: Aktivita na účtu | P17: ANO
M18: Hypotéka pro mladé | P18: NE
M19: Splňuje financování podmínky nízkoenergetické hypotéky? | P19: NE
M20: Individuální slevy
C21: Klient | M21: Marketingová sleva | P21: 0.00%
M22: Další předschválené slevy | P22: 0.00%
C23: Datum narození
C24: Věk klienta | H24: =IF(Vek<>"",DATEDIF(Vek,NOW(),"Y"),"") -> 
L25: Poplatky | N25: Standadní | P25: Navrhované
M27: Za odhad: | N27: =IF(adminSplatka!D68=TRUE,0,IF(AND(LTV<=0.8,Pojisteni="měsíční pojištění"),0,IF(SplTypNemovitosti="Expresní vyhodnocení bytové jednotky",0,IF(SplTypNemovitosti="Bytová jednotka, pozemek",5300,IF(SplTypNemovitosti="Rodinný dům, objekt individuální rekreace",6500,IF(SplTypNemovitosti="Ostatní objekty",7000,IF(SplTypNemovitosti="nespecifikovaná",6500,7000))))))) -> 7,000 Kč
C28: Klient žádá méně než 120 dní od poskytnutí posledního úvěru (všechny banky) | H28: NE | M28: Za poskytnutí: | N28: 0 Kč
M29: Čerpání NnV: | N29: =+IF(adminSplatka!N32=TRUE,0,PoplCerpaN) -> 1,900 Kč
C30: Občan EHP* | H30: NE
C32: * EHP (Evropský hospodářský prostor) nebo Island, Norsko, Lichtenštejnsko nebo Velké Británie (mimo občana ČR/SK a mimo cizince, který má české RČ, trvalý pobyt a příjem v ČR)
C37: Úroková sazba | E37: RPSN | H37: Měsíční splátka | L37: =IF(AND(Pojisteni="měsíční pojištění",SplatkaTrigger>0),"(+ měsíční pojistné)","") -> 
E38: =IF(VyslKontroly="chyba","",IF(SazbaTrigger="","",IF(kalk_RPSN=0,"",kalk_RPSN))) ->  | L38: =IFERROR(IF(AND(L37<>"",VyseMesPoj>0),VyseMesPoj,""),"") -> 
C40: Dokument je určen pouze k internímu použití! Není určeno k tisku!
B43: Výsledek kontrol:
C103: =vyseUveru -> 0 | D103: =NemHodn-C103 -> 0 | E103: TRUE | G103: FALSE | I103: 0

Sheet RPSN (hidden)
A1: parametry z PSD | D1: číslo spl | E1: datum spl | F1: dělitel úroku RPSN | G1: počet dnů | H1: nenačerpáno | I1: úrok | J1: splátka | K1: nesplacená jistina | L1: splacení | M1: hodnota každého období | N1: současná hodnota | O1: období | P1: 1 | Q1: =+B11 -> 2026-03-06 | R1: =+VyseUveruZaklad+vyseUveru2-B5-B14-B15-B16-B4 -> -3930
A2: výše úvěru | B2: =vyseUveru2+VyseUveruZaklad -> 0 | D2: 0 | E2: =DATE(YEAR(TODAY()),IF(OR(DAY(TODAY())>25,DAY(TODAY())=25),MONTH(TODAY())+1,MONTH(TODAY())),B10) -> 2026-03-25 | F2: =IF(MOD(YEAR(E2),4) = 0,366,365) -> 365 | G2: =E2-B11 -> 19 | I2: 0.00 | J2: =ROUND(B2*B3/100/360*G2,2) -> 0.00 | K2: =B2 -> 0.00 | L2: =IF(K2>$B$8,FALSE,TRUE) -> TRUE | M2: =VyseUveruZaklad+vyseUveru2-J2 -> 0.00 | N2: =M2 -> 0.00 | P2: 2.00 | Q2: =+E2 -> 2026-03-25 | R2: =-J2 -> 0.00 | S2: =-K2 -> 0.00
A3: úrok | B3: =(UrSazba)*100 -> 4.29 | C3: 1 | E3: =EDATE(E2,1) -> 2026-04-25 | F3: 365 | H3: =$B$9>=E3 -> FALSE | I3: =ROUND(IF(H3,0,K2*$B$3/100/360*30),2) -> 0.00 | J3: =IF(Pojisteni="Ano",IF(L2=FALSE,ROUND(IF(H3,$B$2*$B$3/100/360*30,$B$8),2),ROUND(K2+I3,2))+(sazbaPoj*(VyseUveruZaklad+vyseUveru2)),IF(L2=FALSE,ROUND(IF(H3,$B$2*$B$3/100/360*30,$B$8),2),ROUND(K2+I3+IF(AND(L2,L1=FALSE),$B$14),2))) -> 0.00 | K3: =IF(H3,$B$2,K2-J3+I3+IF(Pojisteni="Ano",IF(L2,0,sazbaPoj*(VyseUveruZaklad+vyseUveru2)))+IF(AND(L2,L1=FALSE),$B$14,0)) -> 0.00 | L3: =IF(K3>$B$8,FALSE,TRUE) -> TRUE | M3: =-J3-IF(J3=0,0,VyseMesPoj) -> 0.00 | N3: =M3/(1+kalkAPR)^SUM($O$3:O3) -> 0 | O3: =1/12 -> 0.08333333333 | P3: 3.00 | Q3: =+E3 -> 2026-04-25 | R3: =+M3 -> 0.00
A4: poplatek za odhad | B4: =IF(LEFT(Product_Sub,2)="04",splPoplOdhad,0) -> 0 | D4: 2 | E4: 2026-05-25 | F4: 365 | H4: =$B$9>=E4 -> FALSE | I4: =ROUND(IF(H4,0,K3*$B$3/100/360*30),2) -> 0.00 | J4: =IF(Pojisteni="Ano",IF(L3=FALSE,ROUND(IF(H4,$B$2*$B$3/100/360*30,$B$8),2),ROUND(K3+I4,2))+IF(L2,0,(sazbaPoj*(VyseUveruZaklad+vyseUveru2))),IF(L3=FALSE,ROUND(IF(H4,$B$2*$B$3/100/360*30,$B$8),2),ROUND(K3+I4+IF(AND(L3,L2=FALSE),$B$14),2))) -> 0.00 | K4: =IF(H4,$B$2,K3-J4+I4+IF(Pojisteni="Ano",IF(L3,0,sazbaPoj*(VyseUveruZaklad+vyseUveru2)))+IF(AND(L3,L2=FALSE),$B$14,0)) -> 0.00 | L4: TRUE | M4: =-J4-IF(J4=0,0,VyseMesPoj) -> 0.00 | N4: =M4/(1+kalkAPR)^SUM($O$3:O4) -> 0 | O4: =1/12 -> 0.08333333333 | P4: 4.00 | Q4: 2026-05-25 | R4: =+M4 -> 0.00
A5: poplatek za poskytnutí | B5: =IF(splPoplPoskZmena="",splPoplPosk,splPoplPoskZmena) -> 0 | C5: =KDYŽ(splPoplPoskZmena="";splPoplPosk;splPoplPoskZmena) | D5: 3 | E5: 2026-06-25 | F5: 365 | H5: FALSE | I5: =ROUND(IF(H5,0,K4*$B$3/100/360*30),2) -> 0.00 | J5: =IF(Pojisteni="Ano",IF(L4=FALSE,ROUND(IF(H5,$B$2*$B$3/100/360*30,$B$8),2),ROUND(K4+I5,2))+IF(L3,0,(sazbaPoj*(VyseUveruZaklad+vyseUveru2))),IF(L4=FALSE,ROUND(IF(H5,$B$2*$B$3/100/360*30,$B$8),2),ROUND(K4+I5+IF(AND(L4,L3=FALSE),$B$14),2))) -> 0.00 | K5: =IF(H5,$B$2,K4-J5+I5+IF(Pojisteni="Ano",IF(L4,0,sazbaPoj*(VyseUveruZaklad+vyseUveru2)))+IF(AND(L4,L3=FALSE),$B$14,0)) -> 0.00 | L5: TRUE | M5: 0.00 | N5: =M5/(1+kalkAPR)^SUM($O$3:O5) -> 0 | O5: 0.08333333333 | P5: 5.00 | Q5: 2026-06-25 | R5: 0.00
A6: poplatek za účet | B6: =IF(SlevaUcet="Ano",199,0) -> 0 | D6: 4 | E6: 2026-07-25 | F6: 365 | H6: FALSE | I6: =ROUND(IF(H6,0,K5*$B$3/100/360*30),2) -> 0.00 | J6: 0.00 | K6: 0.00 | L6: TRUE | M6: 0.00 | N6: =M6/(1+kalkAPR)^SUM($O$3:O6) -> 0 | O6: 0.08333333333 | P6: 6.00 | Q6: 2026-07-25 | R6: 0.00
A7: počet splátek jistiny | B7: =Splatnost -> 0 | D7: 5 | E7: 2026-08-25 | F7: 365 | H7: FALSE | I7: =ROUND(IF(H7,0,K6*$B$3/100/360*30),2) -> 0.00 | J7: =IF(Pojisteni="Ano",IF(L6=FALSE,ROUND(IF(H7,$B$2*$B$3/100/360*30,$B$8),2),ROUND(K6+I7,2))+IF(L5,0,(sazbaPoj*(VyseUveruZaklad+vyseUveru2))),IF(L6=FALSE,ROUND(IF(H7,$B$2*$B$3/100/360*30,$B$8),2),ROUND(K6+I7+IF(AND(L6,L5=FALSE),$B$14),2))) -> 0.00 | K7: 0.00 | L7: TRUE | M7: 0.00 | N7: =M7/(1+kalkAPR)^SUM($O$3:O7) -> 0 | O7: 0.08333333333 | P7: 7.00 | Q7: 2026-08-25 | R7: 0.00
A8: výše splátek | B8: =SplatkaAPR -> 6,214 | D8: 6 | E8: 2026-09-25 | F8: 365 | H8: FALSE | I8: 0.00 | J8: =IF(Pojisteni="Ano",IF(L7=FALSE,ROUND(IF(H8,$B$2*$B$3/100/360*30,$B$8),2),ROUND(K7+I8,2))+IF(L6,0,(sazbaPoj*(VyseUveruZaklad+vyseUveru2))),IF(L7=FALSE,ROUND(IF(H8,$B$2*$B$3/100/360*30,$B$8),2),ROUND(K7+I8+IF(AND(L7,L6=FALSE),$B$14),2))) -> 0.00 | K8: =IF(H8,$B$2,K7-J8+I8+IF(Pojisteni="Ano",IF(L7,0,sazbaPoj*(VyseUveruZaklad+vyseUveru2)))+IF(AND(L7,L6=FALSE),$B$14,0)) -> 0.00 | L8: TRUE | M8: 0.00 | N8: =M8/(1+kalkAPR)^SUM($O$3:O8) -> 0 | O8: =1/12 -> 0.08333333333 | P8: 8.00 | Q8: 2026-09-25 | R8: 0.00
A9: termín dočerpání úvěru | B9: =TODAY() -> 2026-03-06 | D9: 7 | E9: 2026-10-25 | F9: 365 | H9: FALSE | I9: 0.00 | J9: 0.00 | K9: =IF(H9,$B$2,K8-J9+I9+IF(Pojisteni="Ano",IF(L8,0,sazbaPoj*(VyseUveruZaklad+vyseUveru2)))+IF(AND(L8,L7=FALSE),$B$14,0)) -> 0.00 | L9: TRUE | M9: 0.00 | N9: =M9/(1+kalkAPR)^SUM($O$3:O9) -> 0 | O9: =1/12 -> 0.08333333333 | P9: 9.00 | Q9: 2026-10-25 | R9: 0.00
A10: den splátky | B10: 25 | D10: 8 | E10: 2026-11-25 | F10: =IF(MOD(YEAR(E10),4) = 0,366,365) -> 365 | H10: FALSE | I10: 0.00 | J10: 0.00 | K10: 0.00 | L10: TRUE | M10: 0.00 | N10: =M10/(1+kalkAPR)^SUM($O$3:O10) -> 0 | O10: 0.08333333333 | P10: 10.00 | Q10: 2026-11-25 | R10: 0.00
A11: začátek čerpání | B11: =TODAY() -> 2026-03-06 | D11: 9 | E11: 2026-12-25 | F11: 365 | H11: FALSE | I11: 0.00 | J11: 0.00 | K11: 0.00 | L11: TRUE | M11: 0.00 | N11: =M11/(1+kalkAPR)^SUM($O$3:O11) -> 0 | O11: 0.08333333333 | P11: 11.00 | Q11: 2026-12-25 | R11: 0.00
A12: cardif povinný měsíčně | D12: 10 | E12: 2027-01-25 | F12: 365 | H12: FALSE | I12: 0.00 | J12: 0.00 | K12: 0.00 | L12: TRUE | M12: 0.00 | N12: =M12/(1+kalkAPR)^SUM($O$3:O12) -> 0 | O12: 0.08333333333 | P12: 12.00 | Q12: 2027-01-25 | R12: 0.00
A13: cardif povinný jednorázový z účtu | B13: 0 | D13: 11 | E13: 2027-02-25 | F13: 365 | H13: FALSE | I13: 0.00 | J13: 0.00 | K13: =IF(H13,$B$2,K12-J13+I13+IF(Pojisteni="Ano",IF(L12,0,sazbaPoj*(VyseUveruZaklad+vyseUveru2)))+IF(AND(L12,L11=FALSE),$B$14,0)) -> 0.00 | L13: TRUE | M13: =-J13-IF(J13=0,0,VyseMesPoj) -> 0.00 | N13: =M13/(1+kalkAPR)^SUM($O$3:O13) -> 0 | O13: 0.08333333333 | P13: 13.00 | Q13: 2027-02-25 | R13: 0.00
A14: poplatek výmaz/vklad | B14: 2000 | D14: 12 | E14: 2027-03-25 | F14: 365 | H14: FALSE | I14: 0.00 | J14: 0.00 | K14: =IF(H14,$B$2,K13-J14+I14+IF(Pojisteni="Ano",IF(L13,0,sazbaPoj*(VyseUveruZaklad+vyseUveru2)))+IF(AND(L13,L12=FALSE),$B$14,0)) -> 0.00 | L14: TRUE | M14: 0.00 | N14: =M14/(1+kalkAPR)^SUM($O$3:O14) -> 0 | O14: 0.08333333333 | P14: 14.00 | Q14: 2027-03-25 | R14: 0.00
A15: ověření podpisu | B15: 30 | D15: 13 | E15: 2027-04-25 | F15: 365 | H15: FALSE | I15: =ROUND(IF(H15,0,K14*$B$3/100/360*30),2) -> 0.00 | J15: 0.00 | K15: =IF(H15,$B$2,K14-J15+I15+IF(Pojisteni="Ano",IF(L14,0,sazbaPoj*(VyseUveruZaklad+vyseUveru2)))+IF(AND(L14,L13=FALSE),$B$14,0)) -> 0.00 | L15: TRUE | M15: 0.00 | N15: =M15/(1+kalkAPR)^SUM($O$3:O15) -> 0 | O15: 0.08333333333 | P15: 15.00 | Q15: 2027-04-25 | R15: 0.00
A16: poplatek čerpání návrh na vklad | B16: 1900 | D16: 14 | E16: 2027-05-25 | F16: 365 | H16: FALSE | I16: 0.00 | J16: 0.00 | K16: 0.00 | L16: TRUE | M16: 0.00 | N16: =M16/(1+kalkAPR)^SUM($O$3:O16) -> 0 | O16: 0.08333333333 | P16: 16.00 | Q16: 2027-05-25 | R16: 0.00
A17: parametry ostatní | D17: 15 | E17: 2027-06-25 | F17: 365 | H17: FALSE | I17: 0.00 | J17: 0.00 | K17: 0.00 | L17: TRUE | M17: 0.00 | N17: =M17/(1+kalkAPR)^SUM($O$3:O17) -> 0 | O17: 0.08333333333 | P17: 17.00 | Q17: 2027-06-25 | R17: 0.00
A18: součet splátek | B18: =SUM(J:J) -> 0.00 | D18: 16 | E18: 2027-07-25 | F18: 365 | H18: FALSE | I18: 0.00 | J18: 0.00 | K18: 0.00 | L18: TRUE | M18: 0.00 | N18: =M18/(1+kalkAPR)^SUM($O$3:O18) -> 0 | O18: 0.08333333333 | P18: 18.00 | Q18: 2027-07-25 | R18: 0.00
A19: extra poplatky (účet, správa) | B19: =IF(OR(DAY(B11) =1,AND(DAY(B11) >= B10,DAY(B11)<=31)),TRUE,FALSE) -> FALSE | D19: 17 | E19: 2027-08-25 | F19: 365 | H19: FALSE | I19: 0.00 | J19: 0.00 | K19: 0.00 | L19: TRUE | M19: 0.00 | N19: =M19/(1+kalkAPR)^SUM($O$3:O19) -> 0 | O19: 0.08333333333 | P19: 19.00 | Q19: 2027-08-25 | R19: 0.00
A20: extra popl účet | B20: =B6 -> 0 | D20: 18 | E20: 2027-09-25 | F20: 365 | H20: FALSE | I20: 0.00 | J20: 0.00 | K20: 0.00 | L20: TRUE | M20: 0.00 | N20: =M20/(1+kalkAPR)^SUM($O$3:O20) -> 0 | O20: 0.08333333333 | P20: 20.00 | Q20: 2027-09-25 | R20: 0.00
A21: extra popl za správu | B21: =IF(AND(B19,DAY(B11)<>1),B4,0) -> 0 | D21: 19 | E21: 2027-10-25 | F21: 365 | H21: FALSE | I21: 0.00 | J21: 0.00 | K21: 0.00 | L21: TRUE | M21: 0.00 | N21: =M21/(1+kalkAPR)^SUM($O$3:O21) -> 0 | O21: 0.08333333333 | P21: 21.00 | Q21: 2027-10-25 | R21: 0.00
A22: počet splátek | B22: =Splatnost+1 -> 1 | D22: 20 | E22: 2027-11-25 | F22: 365 | H22: FALSE | I22: 0.00 | J22: 0.00 | K22: 0.00 | L22: TRUE | M22: 0.00 | N22: =M22/(1+kalkAPR)^SUM($O$3:O22) -> 0 | O22: 0.08333333333 | P22: 22.00 | Q22: 2027-11-25 | R22: 0.00
D23: 21 | E23: 2027-12-25 | F23: 365 | H23: FALSE | I23: 0.00 | J23: 0.00 | K23: 0.00 | L23: TRUE | M23: 0.00 | N23: =M23/(1+kalkAPR)^SUM($O$3:O23) -> 0 | O23: 0.08333333333 | P23: 23.00 | Q23: 2027-12-25 | R23: 0.00
A24: celkové náklady | B24: =B18 -> 0.00 | D24: 22 | E24: 2028-01-25 | F24: 366 | H24: FALSE | I24: 0.00 | J24: 0.00 | K24: 0.00 | L24: TRUE | M24: 0.00 | N24: =M24/(1+kalkAPR)^SUM($O$3:O24) -> 0 | O24: 0.08333333333 | P24: 24.00 | Q24: 2028-01-25 | R24: 0.00
A25: APR | B25: 0.05070568731 | D25: 23 | E25: 2028-02-25 | F25: 366 | H25: FALSE | I25: 0.00 | J25: 0.00 | K25: 0.00 | L25: TRUE | M25: 0.00 | N25: =M25/(1+kalkAPR)^SUM($O$3:O25) -> 0 | O25: 0.08333333333 | P25: 25.00 | Q25: 2028-02-25 | R25: 0.00
A26: PV | B26: =SUM(N2:N400) -> 0.00 | D26: 24 | E26: 2028-03-25 | F26: 366 | H26: FALSE | I26: 0.00 | J26: 0.00 | K26: 0.00 | L26: TRUE | M26: 0.00 | N26: =M26/(1+kalkAPR)^SUM($O$3:O26) -> 0 | O26: 0.08333333333 | P26: 26.00 | Q26: 2028-03-25 | R26: 0.00
A27: kalk_RPSN | B27: =+S362 ->  | D27: 25 | E27: 2028-04-25 | F27: 366 | H27: FALSE | I27: 0.00 | J27: 0.00 | K27: 0.00 | L27: TRUE | M27: 0.00 | N27: =M27/(1+kalkAPR)^SUM($O$3:O27) -> 0 | O27: 0.08333333333 | P27: 27.00 | Q27: 2028-04-25 | R27: 0.00
B28: 0.02757536628 | D28: 26 | E28: 2028-05-25 | F28: 366 | H28: FALSE | I28: 0.00 | J28: 0.00 | K28: 0.00 | L28: TRUE | M28: 0.00 | N28: =M28/(1+kalkAPR)^SUM($O$3:O28) -> 0 | O28: 0.08333333333 | P28: 28.00 | Q28: 2028-05-25 | R28: 0.00
D29: 27 | E29: 2028-06-25 | F29: 366 | H29: FALSE | I29: 0.00 | J29: 0.00 | K29: 0.00 | L29: TRUE | M29: 0.00 | N29: =M29/(1+kalkAPR)^SUM($O$3:O29) -> 0 | O29: 0.08333333333 | P29: 29.00 | Q29: 2028-06-25 | R29: 0.00
B30: =+TODAY() -> 2026-03-06 | D30: 28 | E30: 2028-07-25 | F30: 366 | H30: FALSE | I30: 0.00 | J30: 0.00 | K30: 0.00 | L30: TRUE | M30: 0.00 | N30: =M30/(1+kalkAPR)^SUM($O$3:O30) -> 0 | O30: 0.08333333333 | P30: 30.00 | Q30: 2028-07-25 | R30: 0.00
A31: 500000 | D31: 29 | E31: 2028-08-25 | F31: 366 | H31: FALSE | I31: 0.00 | J31: 0.00 | K31: 0.00 | L31: TRUE | M31: 0.00 | N31: =M31/(1+kalkAPR)^SUM($O$3:O31) -> 0 | O31: 0.08333333333 | P31: 31.00 | Q31: 2028-08-25 | R31: 0.00
A32: 2.69 | D32: 30 | E32: 2028-09-25 | F32: 366 | H32: FALSE | I32: 0.00 | J32: 0.00 | K32: 0.00 | L32: TRUE | M32: 0.00 | N32: =M32/(1+kalkAPR)^SUM($O$3:O32) -> 0 | O32: 0.08333333333 | P32: 32.00 | Q32: 2028-09-25 | R32: 0.00
A33: 0 | D33: 31 | E33: 2028-10-25 | F33: 366 | H33: FALSE | I33: 0.00 | J33: 0.00 | K33: 0.00 | L33: TRUE | M33: 0.00 | N33: =M33/(1+kalkAPR)^SUM($O$3:O33) -> 0 | O33: 0.08333333333 | P33: 33.00 | Q33: 2028-10-25 | R33: 0.00
A34: 0 | D34: 32 | E34: 2028-11-25 | F34: 366 | H34: FALSE | I34: 0.00 | J34: 0.00 | K34: 0.00 | L34: TRUE | M34: 0.00 | N34: =M34/(1+kalkAPR)^SUM($O$3:O34) -> 0 | O34: 0.08333333333 | P34: 34.00 | Q34: 2028-11-25 | R34: 0.00
A35: 0 | B35: =OFFSET(R1,38,) -> 0 | D35: 33 | E35: 2028-12-25 | F35: 366 | H35: FALSE | I35: 0.00 | J35: 0.00 | K35: 0.00 | L35: TRUE | M35: 0.00 | N35: =M35/(1+kalkAPR)^SUM($O$3:O35) -> 0 | O35: 0.08333333333 | P35: 35.00 | Q35: 2028-12-25 | R35: 0.00
A36: 120 | B36: =ADDRESS(B7+1,17) -> $Q$1 | D36: 34 | E36: 2029-01-25 | F36: 365 | H36: FALSE | I36: 0.00 | J36: 0.00 | K36: 0.00 | L36: TRUE | M36: 0.00 | N36: =M36/(1+kalkAPR)^SUM($O$3:O36) -> 0 | O36: 0.08333333333 | P36: 36.00 | Q36: 2029-01-25 | R36: 0.00
A37: 4757 | D37: 35 | E37: 2029-02-25 | F37: 365 | H37: FALSE | I37: 0.00 | J37: 0.00 | K37: 0.00 | L37: TRUE | M37: 0.00 | N37: =M37/(1+kalkAPR)^SUM($O$3:O37) -> 0 | O37: 0.08333333333 | P37: 37.00 | Q37: 2029-02-25 | R37: 0.00
A38: 43273 | D38: 36 | E38: 2029-03-25 | F38: 365 | H38: FALSE | I38: 0.00 | J38: 0.00 | K38: 0.00 | L38: TRUE | M38: 0.00 | N38: =M38/(1+kalkAPR)^SUM($O$3:O38) -> 0 | O38: 0.08333333333 | P38: 38.00 | Q38: 2029-03-25 | R38: =+M38 -> 0.00
A39: 23 | D39: 37 | E39: 2029-04-25 | F39: 365 | H39: FALSE | I39: 0.00 | J39: 0.00 | K39: 0.00 | L39: TRUE | M39: 0.00 | N39: =M39/(1+kalkAPR)^SUM($O$3:O39) -> 0 | O39: 0.08333333333 | P39: 39.00 | Q39: 2029-04-25 | R39: 0.00
A40: 43273 | D40: 38 | E40: 2029-05-25 | F40: 365 | H40: FALSE | I40: 0.00 | J40: 0.00 | K40: 0.00 | L40: TRUE | M40: 0.00 | N40: =M40/(1+kalkAPR)^SUM($O$3:O40) -> 0 | O40: 0.08333333333 | P40: 40.00 | Q40: 2029-05-25 | R40: 0.00
D41: 39 | E41: 2029-06-25 | F41: 365 | H41: FALSE | I41: 0.00 | J41: 0.00 | K41: 0.00 | L41: TRUE | M41: 0.00 | N41: =M41/(1+kalkAPR)^SUM($O$3:O41) -> 0 | O41: 0.08333333333 | P41: 41.00 | Q41: 2029-06-25 | R41: 0.00
A42: 0 | D42: 40 | E42: 2029-07-25 | F42: 365 | H42: FALSE | I42: 0.00 | J42: 0.00 | K42: 0.00 | L42: TRUE | M42: 0.00 | N42: =M42/(1+kalkAPR)^SUM($O$3:O42) -> 0 | O42: 0.08333333333 | P42: 42.00 | Q42: 2029-07-25 | R42: 0.00
A43: 1000 | D43: 41 | E43: 2029-08-25 | F43: 365 | H43: FALSE | I43: 0.00 | J43: 0.00 | K43: 0.00 | L43: TRUE | M43: 0.00 | N43: =M43/(1+kalkAPR)^SUM($O$3:O43) -> 0 | O43: 0.08333333333 | P43: 43.00 | Q43: 2029-08-25 | R43: 0.00
D44: 42 | E44: 2029-09-25 | F44: 365 | H44: FALSE | I44: 0.00 | J44: 0.00 | K44: 0.00 | L44: TRUE | M44: 0.00 | N44: =M44/(1+kalkAPR)^SUM($O$3:O44) -> 0 | O44: 0.08333333333 | P44: 44.00 | Q44: 2029-09-25 | R44: 0.00
A45: 571852.42 | D45: 43 | E45: 2029-10-25 | F45: 365 | H45: FALSE | I45: 0.00 | J45: 0.00 | K45: 0.00 | L45: TRUE | M45: 0.00 | N45: =M45/(1+kalkAPR)^SUM($O$3:O45) -> 0 | O45: 0.08333333333 | P45: 45.00 | Q45: 2029-10-25 | R45: 0.00
A46: FALSE | D46: 44 | E46: 2029-11-25 | F46: 365 | H46: FALSE | I46: 0.00 | J46: 0.00 | K46: 0.00 | L46: TRUE | M46: 0.00 | N46: =M46/(1+kalkAPR)^SUM($O$3:O46) -> 0 | O46: 0.08333333333 | P46: 46.00 | Q46: 2029-11-25 | R46: 0.00
A47: 0 | D47: 45 | E47: 2029-12-25 | F47: 365 | H47: FALSE | I47: 0.00 | J47: 0.00 | K47: 0.00 | L47: TRUE | M47: 0.00 | N47: =M47/(1+kalkAPR)^SUM($O$3:O47) -> 0 | O47: 0.08333333333 | P47: 47.00 | Q47: 2029-12-25 | R47: 0.00
A48: 0 | D48: 46 | E48: 2030-01-25 | F48: 365 | H48: FALSE | I48: 0.00 | J48: 0.00 | K48: 0.00 | L48: TRUE | M48: 0.00 | N48: =M48/(1+kalkAPR)^SUM($O$3:O48) -> 0 | O48: 0.08333333333 | P48: 48.00 | Q48: 2030-01-25 | R48: 0.00
A49: 121 | D49: 47 | E49: 2030-02-25 | F49: 365 | H49: FALSE | I49: 0.00 | J49: 0.00 | K49: 0.00 | L49: TRUE | M49: 0.00 | N49: =M49/(1+kalkAPR)^SUM($O$3:O49) -> 0 | O49: 0.08333333333 | P49: 49.00 | Q49: 2030-02-25 | R49: 0.00
D50: 48 | E50: 2030-03-25 | F50: 365 | H50: FALSE | I50: 0.00 | J50: 0.00 | K50: 0.00 | L50: TRUE | M50: 0.00 | N50: =M50/(1+kalkAPR)^SUM($O$3:O50) -> 0 | O50: 0.08333333333 | P50: 50.00 | Q50: 2030-03-25 | R50: 0.00
A51: 571852.42 | D51: 49 | E51: 2030-04-25 | F51: 365 | H51: FALSE | I51: 0.00 | J51: 0.00 | K51: 0.00 | L51: TRUE | M51: 0.00 | N51: =M51/(1+kalkAPR)^SUM($O$3:O51) -> 0 | O51: 0.08333333333 | P51: 51.00 | Q51: 2030-04-25 | R51: 0.00
D52: 50 | E52: 2030-05-25 | F52: 365 | H52: FALSE | I52: 0.00 | J52: 0.00 | K52: 0.00 | L52: TRUE | M52: 0.00 | N52: =M52/(1+kalkAPR)^SUM($O$3:O52) -> 0 | O52: 0.08333333333 | P52: 52.00 | Q52: 2030-05-25 | R52: 0.00
A53: 0.02757536628 | D53: 51 | E53: 2030-06-25 | F53: 365 | H53: FALSE | I53: 0.00 | J53: 0.00 | K53: 0.00 | L53: TRUE | M53: 0.00 | N53: =M53/(1+kalkAPR)^SUM($O$3:O53) -> 0 | O53: 0.08333333333 | P53: 53.00 | Q53: 2030-06-25 | R53: 0.00
A54: -0.0006632341856 | D54: 52 | E54: 2030-07-25 | F54: 365 | H54: FALSE | I54: 0.00 | J54: 0.00 | K54: 0.00 | L54: TRUE | M54: 0.00 | N54: =M54/(1+kalkAPR)^SUM($O$3:O54) -> 0 | O54: 0.08333333333 | P54: 54.00 | Q54: 2030-07-25 | R54: 0.00
D55: 53 | E55: 2030-08-25 | F55: 365 | H55: FALSE | I55: 0.00 | J55: 0.00 | K55: 0.00 | L55: TRUE | M55: 0.00 | N55: =M55/(1+kalkAPR)^SUM($O$3:O55) -> 0 | O55: 0.08333333333 | P55: 55.00 | Q55: 2030-08-25 | R55: 0.00
D56: 54 | E56: 2030-09-25 | F56: 365 | H56: FALSE | I56: 0.00 | J56: 0.00 | K56: 0.00 | L56: TRUE | M56: 0.00 | N56: =M56/(1+kalkAPR)^SUM($O$3:O56) -> 0 | O56: 0.08333333333 | P56: 56.00 | Q56: 2030-09-25 | R56: 0.00
D57: 55 | E57: 2030-10-25 | F57: 365 | H57: FALSE | I57: 0.00 | J57: 0.00 | K57: 0.00 | L57: TRUE | M57: 0.00 | N57: =M57/(1+kalkAPR)^SUM($O$3:O57) -> 0 | O57: 0.08333333333 | P57: 57.00 | Q57: 2030-10-25 | R57: 0.00
D58: 56 | E58: 2030-11-25 | F58: 365 | H58: FALSE | I58: 0.00 | J58: 0.00 | K58: 0.00 | L58: TRUE | M58: 0.00 | N58: =M58/(1+kalkAPR)^SUM($O$3:O58) -> 0 | O58: 0.08333333333 | P58: 58.00 | Q58: 2030-11-25 | R58: 0.00
D59: 57 | E59: 2030-12-25 | F59: 365 | H59: FALSE | I59: 0.00 | J59: 0.00 | K59: 0.00 | L59: TRUE | M59: 0.00 | N59: =M59/(1+kalkAPR)^SUM($O$3:O59) -> 0 | O59: 0.08333333333 | P59: 59.00 | Q59: 2030-12-25 | R59: 0.00
D60: 58 | E60: 2031-01-25 | F60: 365 | H60: FALSE | I60: 0.00 | J60: 0.00 | K60: 0.00 | L60: TRUE | M60: 0.00 | N60: =M60/(1+kalkAPR)^SUM($O$3:O60) -> 0 | O60: 0.08333333333 | P60: 60.00 | Q60: 2031-01-25 | R60: 0.00
D61: 59 | E61: 2031-02-25 | F61: 365 | H61: FALSE | I61: 0.00 | J61: 0.00 | K61: 0.00 | L61: TRUE | M61: 0.00 | N61: =M61/(1+kalkAPR)^SUM($O$3:O61) -> 0 | O61: 0.08333333333 | P61: 61.00 | Q61: 2031-02-25 | R61: 0.00
D62: 60 | E62: 2031-03-25 | F62: 365 | H62: FALSE | I62: 0.00 | J62: =IF(Pojisteni="Ano",IF(L61=FALSE,ROUND(IF(H62,$B$2*$B$3/100/360*30,$B$8),2),ROUND(K61+I62,2))+IF(L60,0,(sazbaPoj*(VyseUveruZaklad+vyseUveru2))),IF(L61=FALSE,ROUND(IF(H62,$B$2*$B$3/100/360*30,$B$8),2),ROUND(K61+I62+IF(AND(L61,L60=FALSE),$B$14),2))) -> 0.00 | K62: 0.00 | L62: TRUE | M62: 0.00 | N62: =M62/(1+kalkAPR)^SUM($O$3:O62) -> 0 | O62: 0.08333333333 | P62: 62.00 | Q62: 2031-03-25 | R62: 0.00
D63: 61 | E63: 2031-04-25 | F63: 365 | H63: FALSE | I63: 0.00 | J63: 0.00 | K63: 0.00 | L63: TRUE | M63: 0.00 | N63: =M63/(1+kalkAPR)^SUM($O$3:O63) -> 0 | O63: 0.08333333333 | P63: 63.00 | Q63: 2031-04-25 | R63: 0.00
D64: 62 | E64: 2031-05-25 | F64: 365 | H64: FALSE | I64: 0.00 | J64: 0.00 | K64: 0.00 | L64: TRUE | M64: 0.00 | N64: =M64/(1+kalkAPR)^SUM($O$3:O64) -> 0 | O64: 0.08333333333 | P64: 64.00 | Q64: 2031-05-25 | R64: 0.00
D65: 63 | E65: 2031-06-25 | F65: 365 | H65: FALSE | I65: 0.00 | J65: 0.00 | K65: 0.00 | L65: TRUE | M65: 0.00 | N65: =M65/(1+kalkAPR)^SUM($O$3:O65) -> 0 | O65: 0.08333333333 | P65: 65.00 | Q65: 2031-06-25 | R65: 0.00
D66: 64 | E66: 2031-07-25 | F66: =IF(MOD(YEAR(E66),4) = 0,366,365) -> 365 | H66: FALSE | I66: 0.00 | J66: 0.00 | K66: 0.00 | L66: TRUE | M66: 0.00 | N66: =M66/(1+kalkAPR)^SUM($O$3:O66) -> 0 | O66: 0.08333333333 | P66: 66.00 | Q66: 2031-07-25 | R66: 0.00
D67: 65 | E67: =EDATE(E66,1) -> 2031-08-25 | F67: 365 | H67: =$B$9>=E67 -> FALSE | I67: =ROUND(IF(H67,0,K66*$B$3/100/360*30),2) -> 0.00 | J67: 0.00 | K67: 0.00 | L67: =IF(K67>$B$8,FALSE,TRUE) -> TRUE | M67: =-J67-IF(J67=0,0,VyseMesPoj) -> 0.00 | N67: =M67/(1+kalkAPR)^SUM($O$3:O67) -> 0 | O67: 0.08333333333 | P67: 67.00 | Q67: =+E67 -> 2031-08-25 | R67: 0.00
D68: 66 | E68: 2031-09-25 | F68: 365 | H68: FALSE | I68: 0.00 | J68: =IF(Pojisteni="Ano",IF(L67=FALSE,ROUND(IF(H68,$B$2*$B$3/100/360*30,$B$8),2),ROUND(K67+I68,2))+IF(L66,0,(sazbaPoj*(VyseUveruZaklad+vyseUveru2))),IF(L67=FALSE,ROUND(IF(H68,$B$2*$B$3/100/360*30,$B$8),2),ROUND(K67+I68+IF(AND(L67,L66=FALSE),$B$14),2))) -> 0.00 | K68: 0.00 | L68: TRUE | M68: 0.00 | N68: =M68/(1+kalkAPR)^SUM($O$3:O68) -> 0 | O68: =1/12 -> 0.08333333333 | P68: 68.00 | Q68: 2031-09-25 | R68: =+M68 -> 0.00
D69: 67 | E69: 2031-10-25 | F69: 365 | H69: FALSE | I69: 0.00 | J69: 0.00 | K69: 0.00 | L69: TRUE | M69: 0.00 | N69: =M69/(1+kalkAPR)^SUM($O$3:O69) -> 0 | O69: 0.08333333333 | P69: 69.00 | Q69: 2031-10-25 | R69: 0.00
D70: 68 | E70: 2031-11-25 | F70: 365 | H70: FALSE | I70: 0.00 | J70: 0.00 | K70: 0.00 | L70: TRUE | M70: 0.00 | N70: =M70/(1+kalkAPR)^SUM($O$3:O70) -> 0 | O70: 0.08333333333 | P70: 70.00 | Q70: 2031-11-25 | R70: 0.00
D71: 69 | E71: 2031-12-25 | F71: 365 | H71: FALSE | I71: 0.00 | J71: 0.00 | K71: 0.00 | L71: TRUE | M71: 0.00 | N71: =M71/(1+kalkAPR)^SUM($O$3:O71) -> 0 | O71: 0.08333333333 | P71: 71.00 | Q71: 2031-12-25 | R71: 0.00
D72: 70 | E72: 2032-01-25 | F72: 366 | H72: FALSE | I72: 0.00 | J72: 0.00 | K72: 0.00 | L72: TRUE | M72: 0.00 | N72: =M72/(1+kalkAPR)^SUM($O$3:O72) -> 0 | O72: 0.08333333333 | P72: 72.00 | Q72: 2032-01-25 | R72: 0.00
D73: 71 | E73: 2032-02-25 | F73: 366 | H73: FALSE | I73: 0.00 | J73: 0.00 | K73: 0.00 | L73: TRUE | M73: 0.00 | N73: =M73/(1+kalkAPR)^SUM($O$3:O73) -> 0 | O73: 0.08333333333 | P73: 73.00 | Q73: 2032-02-25 | R73: 0.00
D74: 72 | E74: 2032-03-25 | F74: 366 | H74: FALSE | I74: 0.00 | J74: 0.00 | K74: 0.00 | L74: TRUE | M74: 0.00 | N74: =M74/(1+kalkAPR)^SUM($O$3:O74) -> 0 | O74: 0.08333333333 | P74: 74.00 | Q74: 2032-03-25 | R74: 0.00
D75: 73 | E75: 2032-04-25 | F75: 366 | H75: FALSE | I75: 0.00 | J75: 0.00 | K75: 0.00 | L75: TRUE | M75: 0.00 | N75: =M75/(1+kalkAPR)^SUM($O$3:O75) -> 0 | O75: 0.08333333333 | P75: 75.00 | Q75: 2032-04-25 | R75: 0.00
D76: 74 | E76: 2032-05-25 | F76: 366 | H76: FALSE | I76: 0.00 | J76: 0.00 | K76: 0.00 | L76: TRUE | M76: 0.00 | N76: =M76/(1+kalkAPR)^SUM($O$3:O76) -> 0 | O76: 0.08333333333 | P76: 76.00 | Q76: 2032-05-25 | R76: 0.00
D77: 75 | E77: 2032-06-25 | F77: 366 | H77: FALSE | I77: 0.00 | J77: 0.00 | K77: =IF(H77,$B$2,K76-J77+I77+IF(Pojisteni="Ano",IF(L76,0,sazbaPoj*(VyseUveruZaklad+vyseUveru2)))+IF(AND(L76,L75=FALSE),$B$14,0)) -> 0.00 | L77: TRUE | M77: 0.00 | N77: =M77/(1+kalkAPR)^SUM($O$3:O77) -> 0 | O77: 0.08333333333 | P77: 77.00 | Q77: 2032-06-25 | R77: 0.00
D78: 76 | E78: 2032-07-25 | F78: 366 | H78: FALSE | I78: 0.00 | J78: 0.00 | K78: 0.00 | L78: TRUE | M78: 0.00 | N78: =M78/(1+kalkAPR)^SUM($O$3:O78) -> 0 | O78: 0.08333333333 | P78: 78.00 | Q78: 2032-07-25 | R78: 0.00
D79: 77 | E79: 2032-08-25 | F79: 366 | H79: FALSE | I79: 0.00 | J79: 0.00 | K79: 0.00 | L79: TRUE | M79: 0.00 | N79: =M79/(1+kalkAPR)^SUM($O$3:O79) -> 0 | O79: 0.08333333333 | P79: 79.00 | Q79: 2032-08-25 | R79: 0.00
D80: 78 | E80: 2032-09-25 | F80: 366 | H80: FALSE | I80: 0.00 | J80: 0.00 | K80: 0.00 | L80: TRUE | M80: 0.00 | N80: =M80/(1+kalkAPR)^SUM($O$3:O80) -> 0 | O80: 0.08333333333 | P80: 80.00 | Q80: 2032-09-25 | R80: 0.00
D81: 79 | E81: 2032-10-25 | F81: 366 | H81: FALSE | I81: 0.00 | J81: 0.00 | K81: 0.00 | L81: TRUE | M81: 0.00 | N81: =M81/(1+kalkAPR)^SUM($O$3:O81) -> 0 | O81: 0.08333333333 | P81: 81.00 | Q81: 2032-10-25 | R81: 0.00
D82: 80 | E82: 2032-11-25 | F82: 366 | H82: FALSE | I82: 0.00 | J82: 0.00 | K82: 0.00 | L82: TRUE | M82: 0.00 | N82: =M82/(1+kalkAPR)^SUM($O$3:O82) -> 0 | O82: 0.08333333333 | P82: 82.00 | Q82: 2032-11-25 | R82: 0.00
D83: 81 | E83: 2032-12-25 | F83: 366 | H83: FALSE | I83: 0.00 | J83: 0.00 | K83: 0.00 | L83: TRUE | M83: 0.00 | N83: =M83/(1+kalkAPR)^SUM($O$3:O83) -> 0 | O83: 0.08333333333 | P83: 83.00 | Q83: 2032-12-25 | R83: 0.00
D84: 82 | E84: 2033-01-25 | F84: 365 | H84: FALSE | I84: 0.00 | J84: 0.00 | K84: 0.00 | L84: TRUE | M84: 0.00 | N84: =M84/(1+kalkAPR)^SUM($O$3:O84) -> 0 | O84: 0.08333333333 | P84: 84.00 | Q84: 2033-01-25 | R84: 0.00
D85: 83 | E85: 2033-02-25 | F85: 365 | H85: FALSE | I85: 0.00 | J85: 0.00 | K85: 0.00 | L85: TRUE | M85: 0.00 | N85: =M85/(1+kalkAPR)^SUM($O$3:O85) -> 0 | O85: 0.08333333333 | P85: 85.00 | Q85: 2033-02-25 | R85: 0.00
D86: 84 | E86: 2033-03-25 | F86: 365 | H86: FALSE | I86: 0.00 | J86: 0.00 | K86: 0.00 | L86: TRUE | M86: 0.00 | N86: =M86/(1+kalkAPR)^SUM($O$3:O86) -> 0 | O86: 0.08333333333 | P86: 86.00 | Q86: 2033-03-25 | R86: 0.00
D87: 85 | E87: 2033-04-25 | F87: 365 | H87: FALSE | I87: 0.00 | J87: 0.00 | K87: 0.00 | L87: TRUE | M87: 0.00 | N87: =M87/(1+kalkAPR)^SUM($O$3:O87) -> 0 | O87: 0.08333333333 | P87: 87.00 | Q87: 2033-04-25 | R87: 0.00
D88: 86 | E88: 2033-05-25 | F88: 365 | H88: FALSE | I88: 0.00 | J88: 0.00 | K88: 0.00 | L88: TRUE | M88: 0.00 | N88: =M88/(1+kalkAPR)^SUM($O$3:O88) -> 0 | O88: 0.08333333333 | P88: 88.00 | Q88: 2033-05-25 | R88: 0.00
D89: 87 | E89: 2033-06-25 | F89: 365 | H89: FALSE | I89: 0.00 | J89: 0.00 | K89: 0.00 | L89: TRUE | M89: 0.00 | N89: =M89/(1+kalkAPR)^SUM($O$3:O89) -> 0 | O89: 0.08333333333 | P89: 89.00 | Q89: 2033-06-25 | R89: 0.00
D90: 88 | E90: 2033-07-25 | F90: 365 | H90: FALSE | I90: 0.00 | J90: 0.00 | K90: 0.00 | L90: TRUE | M90: 0.00 | N90: =M90/(1+kalkAPR)^SUM($O$3:O90) -> 0 | O90: 0.08333333333 | P90: 90.00 | Q90: 2033-07-25 | R90: 0.00
D91: 89 | E91: 2033-08-25 | F91: 365 | H91: FALSE | I91: 0.00 | J91: 0.00 | K91: 0.00 | L91: TRUE | M91: 0.00 | N91: =M91/(1+kalkAPR)^SUM($O$3:O91) -> 0 | O91: 0.08333333333 | P91: 91.00 | Q91: 2033-08-25 | R91: 0.00
D92: 90 | E92: 2033-09-25 | F92: 365 | H92: FALSE | I92: 0.00 | J92: 0.00 | K92: 0.00 | L92: TRUE | M92: 0.00 | N92: =M92/(1+kalkAPR)^SUM($O$3:O92) -> 0 | O92: 0.08333333333 | P92: 92.00 | Q92: 2033-09-25 | R92: 0.00
D93: 91 | E93: 2033-10-25 | F93: 365 | H93: FALSE | I93: 0.00 | J93: 0.00 | K93: 0.00 | L93: TRUE | M93: 0.00 | N93: =M93/(1+kalkAPR)^SUM($O$3:O93) -> 0 | O93: 0.08333333333 | P93: 93.00 | Q93: 2033-10-25 | R93: 0.00
D94: 92 | E94: 2033-11-25 | F94: 365 | H94: FALSE | I94: 0.00 | J94: 0.00 | K94: 0.00 | L94: TRUE | M94: 0.00 | N94: =M94/(1+kalkAPR)^SUM($O$3:O94) -> 0 | O94: 0.08333333333 | P94: 94.00 | Q94: 2033-11-25 | R94: 0.00
D95: 93 | E95: 2033-12-25 | F95: 365 | H95: FALSE | I95: 0.00 | J95: 0.00 | K95: 0.00 | L95: TRUE | M95: 0.00 | N95: =M95/(1+kalkAPR)^SUM($O$3:O95) -> 0 | O95: 0.08333333333 | P95: 95.00 | Q95: 2033-12-25 | R95: 0.00
D96: 94 | E96: 2034-01-25 | F96: 365 | H96: FALSE | I96: 0.00 | J96: 0.00 | K96: 0.00 | L96: TRUE | M96: 0.00 | N96: =M96/(1+kalkAPR)^SUM($O$3:O96) -> 0 | O96: 0.08333333333 | P96: 96.00 | Q96: 2034-01-25 | R96: 0.00
D97: 95 | E97: 2034-02-25 | F97: 365 | H97: FALSE | I97: 0.00 | J97: 0.00 | K97: 0.00 | L97: TRUE | M97: 0.00 | N97: =M97/(1+kalkAPR)^SUM($O$3:O97) -> 0 | O97: 0.08333333333 | P97: 97.00 | Q97: 2034-02-25 | R97: 0.00
D98: 96 | E98: 2034-03-25 | F98: 365 | H98: FALSE | I98: 0.00 | J98: 0.00 | K98: 0.00 | L98: TRUE | M98: 0.00 | N98: =M98/(1+kalkAPR)^SUM($O$3:O98) -> 0 | O98: 0.08333333333 | P98: 98.00 | Q98: 2034-03-25 | R98: 0.00
D99: 97 | E99: 2034-04-25 | F99: 365 | H99: FALSE | I99: 0.00 | J99: 0.00 | K99: 0.00 | L99: TRUE | M99: 0.00 | N99: =M99/(1+kalkAPR)^SUM($O$3:O99) -> 0 | O99: 0.08333333333 | P99: 99.00 | Q99: 2034-04-25 | R99: 0.00
D100: 98 | E100: 2034-05-25 | F100: 365 | H100: FALSE | I100: 0.00 | J100: 0.00 | K100: 0.00 | L100: TRUE | M100: 0.00 | N100: =M100/(1+kalkAPR)^SUM($O$3:O100) -> 0 | O100: 0.08333333333 | P100: 100.00 | Q100: 2034-05-25 | R100: 0.00
D101: 99 | E101: 2034-06-25 | F101: 365 | H101: FALSE | I101: 0.00 | J101: 0.00 | K101: 0.00 | L101: TRUE | M101: 0.00 | N101: =M101/(1+kalkAPR)^SUM($O$3:O101) -> 0 | O101: 0.08333333333 | P101: 101.00 | Q101: 2034-06-25 | R101: 0.00
D102: 100 | E102: 2034-07-25 | F102: 365 | H102: FALSE | I102: 0.00 | J102: 0.00 | K102: 0.00 | L102: TRUE | M102: 0.00 | N102: =M102/(1+kalkAPR)^SUM($O$3:O102) -> 0 | O102: 0.08333333333 | P102: 102.00 | Q102: 2034-07-25 | R102: 0.00
D103: 101 | E103: 2034-08-25 | F103: 365 | H103: FALSE | I103: 0.00 | J103: 0.00 | K103: 0.00 | L103: TRUE | M103: 0.00 | N103: =M103/(1+kalkAPR)^SUM($O$3:O103) -> 0 | O103: 0.08333333333 | P103: 103.00 | Q103: 2034-08-25 | R103: 0.00
D104: 102 | E104: 2034-09-25 | F104: 365 | H104: FALSE | I104: 0.00 | J104: 0.00 | K104: 0.00 | L104: TRUE | M104: 0.00 | N104: =M104/(1+kalkAPR)^SUM($O$3:O104) -> 0 | O104: 0.08333333333 | P104: 104.00 | Q104: 2034-09-25 | R104: 0.00
D105: 103 | E105: 2034-10-25 | F105: 365 | H105: FALSE | I105: 0.00 | J105: 0.00 | K105: 0.00 | L105: TRUE | M105: 0.00 | N105: =M105/(1+kalkAPR)^SUM($O$3:O105) -> 0 | O105: 0.08333333333 | P105: 105.00 | Q105: 2034-10-25 | R105: 0.00
D106: 104 | E106: 2034-11-25 | F106: 365 | H106: FALSE | I106: 0.00 | J106: 0.00 | K106: 0.00 | L106: TRUE | M106: 0.00 | N106: =M106/(1+kalkAPR)^SUM($O$3:O106) -> 0 | O106: 0.08333333333 | P106: 106.00 | Q106: 2034-11-25 | R106: 0.00
D107: 105 | E107: 2034-12-25 | F107: 365 | H107: FALSE | I107: 0.00 | J107: 0.00 | K107: 0.00 | L107: TRUE | M107: 0.00 | N107: =M107/(1+kalkAPR)^SUM($O$3:O107) -> 0 | O107: 0.08333333333 | P107: 107.00 | Q107: 2034-12-25 | R107: 0.00
D108: 106 | E108: 2035-01-25 | F108: 365 | H108: FALSE | I108: 0.00 | J108: 0.00 | K108: 0.00 | L108: TRUE | M108: 0.00 | N108: =M108/(1+kalkAPR)^SUM($O$3:O108) -> 0 | O108: 0.08333333333 | P108: 108.00 | Q108: 2035-01-25 | R108: 0.00
D109: 107 | E109: 2035-02-25 | F109: 365 | H109: FALSE | I109: 0.00 | J109: 0.00 | K109: 0.00 | L109: TRUE | M109: 0.00 | N109: =M109/(1+kalkAPR)^SUM($O$3:O109) -> 0 | O109: 0.08333333333 | P109: 109.00 | Q109: 2035-02-25 | R109: 0.00
D110: 108 | E110: 2035-03-25 | F110: 365 | H110: FALSE | I110: 0.00 | J110: 0.00 | K110: 0.00 | L110: TRUE | M110: 0.00 | N110: =M110/(1+kalkAPR)^SUM($O$3:O110) -> 0 | O110: 0.08333333333 | P110: 110.00 | Q110: 2035-03-25 | R110: 0.00
D111: 109 | E111: 2035-04-25 | F111: 365 | H111: FALSE | I111: 0.00 | J111: 0.00 | K111: 0.00 | L111: TRUE | M111: 0.00 | N111: =M111/(1+kalkAPR)^SUM($O$3:O111) -> 0 | O111: 0.08333333333 | P111: 111.00 | Q111: 2035-04-25 | R111: 0.00
D112: 110 | E112: 2035-05-25 | F112: 365 | H112: FALSE | I112: 0.00 | J112: 0.00 | K112: 0.00 | L112: TRUE | M112: 0.00 | N112: =M112/(1+kalkAPR)^SUM($O$3:O112) -> 0 | O112: 0.08333333333 | P112: 112.00 | Q112: 2035-05-25 | R112: 0.00
D113: 111 | E113: 2035-06-25 | F113: 365 | H113: FALSE | I113: 0.00 | J113: 0.00 | K113: 0.00 | L113: TRUE | M113: 0.00 | N113: =M113/(1+kalkAPR)^SUM($O$3:O113) -> 0 | O113: 0.08333333333 | P113: 113.00 | Q113: 2035-06-25 | R113: 0.00
D114: 112 | E114: 2035-07-25 | F114: 365 | H114: FALSE | I114: 0.00 | J114: 0.00 | K114: 0.00 | L114: TRUE | M114: 0.00 | N114: =M114/(1+kalkAPR)^SUM($O$3:O114) -> 0 | O114: 0.08333333333 | P114: 114.00 | Q114: 2035-07-25 | R114: 0.00
D115: 113 | E115: 2035-08-25 | F115: 365 | H115: FALSE | I115: 0.00 | J115: 0.00 | K115: 0.00 | L115: TRUE | M115: 0.00 | N115: =M115/(1+kalkAPR)^SUM($O$3:O115) -> 0 | O115: 0.08333333333 | P115: 115.00 | Q115: 2035-08-25 | R115: 0.00
D116: 114 | E116: 2035-09-25 | F116: 365 | H116: FALSE | I116: 0.00 | J116: 0.00 | K116: 0.00 | L116: TRUE | M116: 0.00 | N116: =M116/(1+kalkAPR)^SUM($O$3:O116) -> 0 | O116: 0.08333333333 | P116: 116.00 | Q116: 2035-09-25 | R116: 0.00
D117: 115 | E117: 2035-10-25 | F117: 365 | H117: FALSE | I117: 0.00 | J117: 0.00 | K117: 0.00 | L117: TRUE | M117: 0.00 | N117: =M117/(1+kalkAPR)^SUM($O$3:O117) -> 0 | O117: 0.08333333333 | P117: 117.00 | Q117: 2035-10-25 | R117: 0.00
D118: 116 | E118: 2035-11-25 | F118: 365 | H118: FALSE | I118: 0.00 | J118: 0.00 | K118: 0.00 | L118: TRUE | M118: 0.00 | N118: =M118/(1+kalkAPR)^SUM($O$3:O118) -> 0 | O118: 0.08333333333 | P118: 118.00 | Q118: 2035-11-25 | R118: 0.00
D119: 117 | E119: 2035-12-25 | F119: 365 | H119: FALSE | I119: 0.00 | J119: 0.00 | K119: 0.00 | L119: TRUE | M119: 0.00 | N119: =M119/(1+kalkAPR)^SUM($O$3:O119) -> 0 | O119: 0.08333333333 | P119: 119.00 | Q119: 2035-12-25 | R119: 0.00
D120: 118 | E120: 2036-01-25 | F120: 366 | H120: FALSE | I120: 0.00 | J120: 0.00 | K120: 0.00 | L120: TRUE | M120: 0.00 | N120: =M120/(1+kalkAPR)^SUM($O$3:O120) -> 0 | O120: 0.08333333333 | P120: 120.00 | Q120: 2036-01-25 | R120: 0.00
D121: 119 | E121: 2036-02-25 | F121: 366 | H121: FALSE | I121: 0.00 | J121: 0.00 | K121: 0.00 | L121: TRUE | M121: 0.00 | N121: =M121/(1+kalkAPR)^SUM($O$3:O121) -> 0 | O121: 0.08333333333 | P121: 121.00 | Q121: 2036-02-25 | R121: 0.00
D122: 120 | E122: 2036-03-25 | F122: 366 | H122: FALSE | I122: 0.00 | J122: 0.00 | K122: 0.00 | L122: TRUE | M122: =-J122-IF(J122=0,0,VyseMesPoj) -> 0.00 | N122: =M122/(1+kalkAPR)^SUM($O$3:O122) -> 0 | O122: 0.08333333333 | P122: 122.00 | Q122: 2036-03-25 | R122: 0.00
D123: 121 | E123: 2036-04-25 | F123: 366 | H123: FALSE | I123: 0.00 | J123: 0.00 | K123: 0.00 | L123: TRUE | M123: =-J123-IF(J123=0,0,VyseMesPoj) -> 0.00 | N123: =M123/(1+kalkAPR)^SUM($O$3:O123) -> 0 | O123: 0.08333333333 | P123: 123.00 | Q123: 2036-04-25 | R123: 0.00
D124: 122 | E124: 2036-05-25 | F124: 366 | H124: FALSE | I124: 0.00 | J124: 0.00 | K124: 0.00 | L124: TRUE | M124: 0.00 | N124: =M124/(1+kalkAPR)^SUM($O$3:O124) -> 0 | O124: 0.08333333333 | P124: 124.00 | Q124: 2036-05-25 | R124: 0.00
D125: 123 | E125: 2036-06-25 | F125: 366 | H125: FALSE | I125: 0.00 | J125: 0.00 | K125: 0.00 | L125: TRUE | M125: 0.00 | N125: =M125/(1+kalkAPR)^SUM($O$3:O125) -> 0 | O125: 0.08333333333 | P125: 125.00 | Q125: 2036-06-25 | R125: 0.00
D126: 124 | E126: 2036-07-25 | F126: 366 | H126: FALSE | I126: 0.00 | J126: 0.00 | K126: 0.00 | L126: TRUE | M126: 0.00 | N126: =M126/(1+kalkAPR)^SUM($O$3:O126) -> 0 | O126: 0.08333333333 | P126: 126.00 | Q126: 2036-07-25 | R126: 0.00
D127: 125 | E127: 2036-08-25 | F127: 366 | H127: FALSE | I127: 0.00 | J127: 0.00 | K127: 0.00 | L127: TRUE | M127: 0.00 | N127: =M127/(1+kalkAPR)^SUM($O$3:O127) -> 0 | O127: 0.08333333333 | P127: 127.00 | Q127: 2036-08-25 | R127: 0.00
D128: 126 | E128: 2036-09-25 | F128: 366 | H128: FALSE | I128: 0.00 | J128: 0.00 | K128: 0.00 | L128: TRUE | M128: 0.00 | N128: =M128/(1+kalkAPR)^SUM($O$3:O128) -> 0 | O128: 0.08333333333 | P128: 128.00 | Q128: 2036-09-25 | R128: 0.00
D129: 127 | E129: 2036-10-25 | F129: 366 | H129: FALSE | I129: 0.00 | J129: 0.00 | K129: 0.00 | L129: TRUE | M129: 0.00 | N129: =M129/(1+kalkAPR)^SUM($O$3:O129) -> 0 | O129: 0.08333333333 | P129: 129.00 | Q129: 2036-10-25 | R129: 0.00
D130: 128 | E130: 2036-11-25 | F130: =IF(MOD(YEAR(E130),4) = 0,366,365) -> 366 | H130: FALSE | I130: 0.00 | J130: 0.00 | K130: 0.00 | L130: TRUE | M130: 0.00 | N130: =M130/(1+kalkAPR)^SUM($O$3:O130) -> 0 | O130: 0.08333333333 | P130: 130.00 | Q130: 2036-11-25 | R130: 0.00
D131: 129 | E131: =EDATE(E130,1) -> 2036-12-25 | F131: 366 | H131: =$B$9>=E131 -> FALSE | I131: =ROUND(IF(H131,0,K130*$B$3/100/360*30),2) -> 0.00 | J131: 0.00 | K131: 0.00 | L131: =IF(K131>$B$8,FALSE,TRUE) -> TRUE | M131: =-J131-IF(J131=0,0,VyseMesPoj) -> 0.00 | N131: =M131/(1+kalkAPR)^SUM($O$3:O131) -> 0 | O131: 0.08333333333 | P131: 131.00 | Q131: =+E131 -> 2036-12-25 | R131: 0.00
D132: 130 | E132: 2037-01-25 | F132: 365 | H132: FALSE | I132: 0.00 | J132: =IF(Pojisteni="Ano",IF(L131=FALSE,ROUND(IF(H132,$B$2*$B$3/100/360*30,$B$8),2),ROUND(K131+I132,2))+IF(L130,0,(sazbaPoj*(VyseUveruZaklad+vyseUveru2))),IF(L131=FALSE,ROUND(IF(H132,$B$2*$B$3/100/360*30,$B$8),2),ROUND(K131+I132+IF(AND(L131,L130=FALSE),$B$14),2))) -> 0.00 | K132: 0.00 | L132: TRUE | M132: 0.00 | N132: =M132/(1+kalkAPR)^SUM($O$3:O132) -> 0 | O132: =1/12 -> 0.08333333333 | P132: 132.00 | Q132: 2037-01-25 | R132: =+M132 -> 0.00
D133: 131 | E133: 2037-02-25 | F133: 365 | H133: FALSE | I133: 0.00 | J133: 0.00 | K133: 0.00 | L133: TRUE | M133: 0.00 | N133: =M133/(1+kalkAPR)^SUM($O$3:O133) -> 0 | O133: 0.08333333333 | P133: 133.00 | Q133: 2037-02-25 | R133: 0.00
D134: 132 | E134: 2037-03-25 | F134: 365 | H134: FALSE | I134: 0.00 | J134: 0.00 | K134: 0.00 | L134: TRUE | M134: 0.00 | N134: =M134/(1+kalkAPR)^SUM($O$3:O134) -> 0 | O134: 0.08333333333 | P134: 134.00 | Q134: 2037-03-25 | R134: 0.00
D135: 133 | E135: 2037-04-25 | F135: 365 | H135: FALSE | I135: 0.00 | J135: 0.00 | K135: 0.00 | L135: TRUE | M135: 0.00 | N135: =M135/(1+kalkAPR)^SUM($O$3:O135) -> 0 | O135: 0.08333333333 | P135: 135.00 | Q135: 2037-04-25 | R135: 0.00
D136: 134 | E136: 2037-05-25 | F136: 365 | H136: FALSE | I136: 0.00 | J136: 0.00 | K136: 0.00 | L136: TRUE | M136: 0.00 | N136: =M136/(1+kalkAPR)^SUM($O$3:O136) -> 0 | O136: 0.08333333333 | P136: 136.00 | Q136: 2037-05-25 | R136: 0.00
D137: 135 | E137: 2037-06-25 | F137: 365 | H137: FALSE | I137: 0.00 | J137: 0.00 | K137: 0.00 | L137: TRUE | M137: 0.00 | N137: =M137/(1+kalkAPR)^SUM($O$3:O137) -> 0 | O137: 0.08333333333 | P137: 137.00 | Q137: 2037-06-25 | R137: 0.00
D138: 136 | E138: 2037-07-25 | F138: 365 | H138: FALSE | I138: 0.00 | J138: 0.00 | K138: 0.00 | L138: TRUE | M138: 0.00 | N138: =M138/(1+kalkAPR)^SUM($O$3:O138) -> 0 | O138: 0.08333333333 | P138: 138.00 | Q138: 2037-07-25 | R138: 0.00
D139: 137 | E139: 2037-08-25 | F139: 365 | H139: FALSE | I139: 0.00 | J139: 0.00 | K139: 0.00 | L139: TRUE | M139: 0.00 | N139: =M139/(1+kalkAPR)^SUM($O$3:O139) -> 0 | O139: 0.08333333333 | P139: 139.00 | Q139: 2037-08-25 | R139: 0.00
D140: 138 | E140: 2037-09-25 | F140: 365 | H140: FALSE | I140: 0.00 | J140: 0.00 | K140: 0.00 | L140: TRUE | M140: 0.00 | N140: =M140/(1+kalkAPR)^SUM($O$3:O140) -> 0 | O140: 0.08333333333 | P140: 140.00 | Q140: 2037-09-25 | R140: 0.00
D141: 139 | E141: 2037-10-25 | F141: 365 | H141: FALSE | I141: 0.00 | J141: 0.00 | K141: =IF(H141,$B$2,K140-J141+I141+IF(Pojisteni="Ano",IF(L140,0,sazbaPoj*(VyseUveruZaklad+vyseUveru2)))+IF(AND(L140,L139=FALSE),$B$14,0)) -> 0.00 | L141: TRUE | M141: 0.00 | N141: =M141/(1+kalkAPR)^SUM($O$3:O141) -> 0 | O141: 0.08333333333 | P141: 141.00 | Q141: 2037-10-25 | R141: 0.00
D142: 140 | E142: 2037-11-25 | F142: 365 | H142: FALSE | I142: 0.00 | J142: 0.00 | K142: 0.00 | L142: TRUE | M142: 0.00 | N142: =M142/(1+kalkAPR)^SUM($O$3:O142) -> 0 | O142: 0.08333333333 | P142: 142.00 | Q142: 2037-11-25 | R142: 0.00
D143: 141 | E143: 2037-12-25 | F143: 365 | H143: FALSE | I143: 0.00 | J143: 0.00 | K143: 0.00 | L143: TRUE | M143: 0.00 | N143: =M143/(1+kalkAPR)^SUM($O$3:O143) -> 0 | O143: 0.08333333333 | P143: 143.00 | Q143: 2037-12-25 | R143: 0.00
D144: 142 | E144: 2038-01-25 | F144: 365 | H144: FALSE | I144: 0.00 | J144: 0.00 | K144: 0.00 | L144: TRUE | M144: 0.00 | N144: =M144/(1+kalkAPR)^SUM($O$3:O144) -> 0 | O144: 0.08333333333 | P144: 144.00 | Q144: 2038-01-25 | R144: 0.00
D145: 143 | E145: 2038-02-25 | F145: 365 | H145: FALSE | I145: 0.00 | J145: 0.00 | K145: 0.00 | L145: TRUE | M145: 0.00 | N145: =M145/(1+kalkAPR)^SUM($O$3:O145) -> 0 | O145: 0.08333333333 | P145: 145.00 | Q145: 2038-02-25 | R145: 0.00
D146: 144 | E146: 2038-03-25 | F146: 365 | H146: FALSE | I146: 0.00 | J146: 0.00 | K146: 0.00 | L146: TRUE | M146: 0.00 | N146: =M146/(1+kalkAPR)^SUM($O$3:O146) -> 0 | O146: 0.08333333333 | P146: 146.00 | Q146: 2038-03-25 | R146: 0.00
D147: 145 | E147: 2038-04-25 | F147: 365 | H147: FALSE | I147: 0.00 | J147: 0.00 | K147: 0.00 | L147: TRUE | M147: 0.00 | N147: =M147/(1+kalkAPR)^SUM($O$3:O147) -> 0 | O147: 0.08333333333 | P147: 147.00 | Q147: 2038-04-25 | R147: 0.00
D148: 146 | E148: 2038-05-25 | F148: 365 | H148: FALSE | I148: 0.00 | J148: 0.00 | K148: 0.00 | L148: TRUE | M148: 0.00 | N148: =M148/(1+kalkAPR)^SUM($O$3:O148) -> 0 | O148: 0.08333333333 | P148: 148.00 | Q148: 2038-05-25 | R148: 0.00
D149: 147 | E149: 2038-06-25 | F149: 365 | H149: FALSE | I149: 0.00 | J149: 0.00 | K149: 0.00 | L149: TRUE | M149: 0.00 | N149: =M149/(1+kalkAPR)^SUM($O$3:O149) -> 0 | O149: 0.08333333333 | P149: 149.00 | Q149: 2038-06-25 | R149: 0.00
D150: 148 | E150: 2038-07-25 | F150: 365 | H150: FALSE | I150: 0.00 | J150: 0.00 | K150: 0.00 | L150: TRUE | M150: 0.00 | N150: =M150/(1+kalkAPR)^SUM($O$3:O150) -> 0 | O150: 0.08333333333 | P150: 150.00 | Q150: 2038-07-25 | R150: 0.00
D151: 149 | E151: 2038-08-25 | F151: 365 | H151: FALSE | I151: 0.00 | J151: 0.00 | K151: 0.00 | L151: TRUE | M151: 0.00 | N151: =M151/(1+kalkAPR)^SUM($O$3:O151) -> 0 | O151: 0.08333333333 | P151: 151.00 | Q151: 2038-08-25 | R151: 0.00
D152: 150 | E152: 2038-09-25 | F152: 365 | H152: FALSE | I152: 0.00 | J152: 0.00 | K152: 0.00 | L152: TRUE | M152: 0.00 | N152: =M152/(1+kalkAPR)^SUM($O$3:O152) -> 0 | O152: 0.08333333333 | P152: 152.00 | Q152: 2038-09-25 | R152: 0.00
D153: 151 | E153: 2038-10-25 | F153: 365 | H153: FALSE | I153: 0.00 | J153: 0.00 | K153: 0.00 | L153: TRUE | M153: 0.00 | N153: =M153/(1+kalkAPR)^SUM($O$3:O153) -> 0 | O153: 0.08333333333 | P153: 153.00 | Q153: 2038-10-25 | R153: 0.00
D154: 152 | E154: 2038-11-25 | F154: 365 | H154: FALSE | I154: 0.00 | J154: 0.00 | K154: 0.00 | L154: TRUE | M154: 0.00 | N154: =M154/(1+kalkAPR)^SUM($O$3:O154) -> 0 | O154: 0.08333333333 | P154: 154.00 | Q154: 2038-11-25 | R154: 0.00
D155: 153 | E155: 2038-12-25 | F155: 365 | H155: FALSE | I155: 0.00 | J155: 0.00 | K155: 0.00 | L155: TRUE | M155: 0.00 | N155: =M155/(1+kalkAPR)^SUM($O$3:O155) -> 0 | O155: 0.08333333333 | P155: 155.00 | Q155: 2038-12-25 | R155: 0.00
D156: 154 | E156: 2039-01-25 | F156: 365 | H156: FALSE | I156: 0.00 | J156: 0.00 | K156: 0.00 | L156: TRUE | M156: 0.00 | N156: =M156/(1+kalkAPR)^SUM($O$3:O156) -> 0 | O156: 0.08333333333 | P156: 156.00 | Q156: 2039-01-25 | R156: 0.00
D157: 155 | E157: 2039-02-25 | F157: 365 | H157: FALSE | I157: 0.00 | J157: 0.00 | K157: 0.00 | L157: TRUE | M157: 0.00 | N157: =M157/(1+kalkAPR)^SUM($O$3:O157) -> 0 | O157: 0.08333333333 | P157: 157.00 | Q157: 2039-02-25 | R157: 0.00
D158: 156 | E158: 2039-03-25 | F158: 365 | H158: FALSE | I158: 0.00 | J158: 0.00 | K158: 0.00 | L158: TRUE | M158: 0.00 | N158: =M158/(1+kalkAPR)^SUM($O$3:O158) -> 0 | O158: 0.08333333333 | P158: 158.00 | Q158: 2039-03-25 | R158: 0.00
D159: 157 | E159: 2039-04-25 | F159: 365 | H159: FALSE | I159: 0.00 | J159: 0.00 | K159: 0.00 | L159: TRUE | M159: 0.00 | N159: =M159/(1+kalkAPR)^SUM($O$3:O159) -> 0 | O159: 0.08333333333 | P159: 159.00 | Q159: 2039-04-25 | R159: 0.00
D160: 158 | E160: 2039-05-25 | F160: 365 | H160: FALSE | I160: 0.00 | J160: 0.00 | K160: 0.00 | L160: TRUE | M160: 0.00 | N160: =M160/(1+kalkAPR)^SUM($O$3:O160) -> 0 | O160: 0.08333333333 | P160: 160.00 | Q160: 2039-05-25 | R160: 0.00
D161: 159 | E161: 2039-06-25 | F161: 365 | H161: FALSE | I161: 0.00 | J161: 0.00 | K161: 0.00 | L161: TRUE | M161: 0.00 | N161: =M161/(1+kalkAPR)^SUM($O$3:O161) -> 0 | O161: 0.08333333333 | P161: 161.00 | Q161: 2039-06-25 | R161: 0.00
D162: 160 | E162: 2039-07-25 | F162: 365 | H162: FALSE | I162: 0.00 | J162: 0.00 | K162: 0.00 | L162: TRUE | M162: 0.00 | N162: =M162/(1+kalkAPR)^SUM($O$3:O162) -> 0 | O162: 0.08333333333 | P162: 162.00 | Q162: 2039-07-25 | R162: 0.00
D163: 161 | E163: 2039-08-25 | F163: 365 | H163: FALSE | I163: 0.00 | J163: 0.00 | K163: 0.00 | L163: TRUE | M163: 0.00 | N163: =M163/(1+kalkAPR)^SUM($O$3:O163) -> 0 | O163: 0.08333333333 | P163: 163.00 | Q163: 2039-08-25 | R163: 0.00
D164: 162 | E164: 2039-09-25 | F164: 365 | H164: FALSE | I164: 0.00 | J164: 0.00 | K164: 0.00 | L164: TRUE | M164: 0.00 | N164: =M164/(1+kalkAPR)^SUM($O$3:O164) -> 0 | O164: 0.08333333333 | P164: 164.00 | Q164: 2039-09-25 | R164: 0.00
D165: 163 | E165: 2039-10-25 | F165: 365 | H165: FALSE | I165: 0.00 | J165: 0.00 | K165: 0.00 | L165: TRUE | M165: 0.00 | N165: =M165/(1+kalkAPR)^SUM($O$3:O165) -> 0 | O165: 0.08333333333 | P165: 165.00 | Q165: 2039-10-25 | R165: 0.00
D166: 164 | E166: 2039-11-25 | F166: 365 | H166: FALSE | I166: 0.00 | J166: 0.00 | K166: 0.00 | L166: TRUE | M166: 0.00 | N166: =M166/(1+kalkAPR)^SUM($O$3:O166) -> 0 | O166: 0.08333333333 | P166: 166.00 | Q166: 2039-11-25 | R166: 0.00
D167: 165 | E167: 2039-12-25 | F167: 365 | H167: FALSE | I167: 0.00 | J167: 0.00 | K167: 0.00 | L167: TRUE | M167: 0.00 | N167: =M167/(1+kalkAPR)^SUM($O$3:O167) -> 0 | O167: 0.08333333333 | P167: 167.00 | Q167: 2039-12-25 | R167: 0.00
D168: 166 | E168: 2040-01-25 | F168: 366 | H168: FALSE | I168: 0.00 | J168: 0.00 | K168: 0.00 | L168: TRUE | M168: 0.00 | N168: =M168/(1+kalkAPR)^SUM($O$3:O168) -> 0 | O168: 0.08333333333 | P168: 168.00 | Q168: 2040-01-25 | R168: 0.00
D169: 167 | E169: 2040-02-25 | F169: 366 | H169: FALSE | I169: 0.00 | J169: 0.00 | K169: 0.00 | L169: TRUE | M169: 0.00 | N169: =M169/(1+kalkAPR)^SUM($O$3:O169) -> 0 | O169: 0.08333333333 | P169: 169.00 | Q169: 2040-02-25 | R169: 0.00
D170: 168 | E170: 2040-03-25 | F170: 366 | H170: FALSE | I170: 0.00 | J170: 0.00 | K170: 0.00 | L170: TRUE | M170: 0.00 | N170: =M170/(1+kalkAPR)^SUM($O$3:O170) -> 0 | O170: 0.08333333333 | P170: 170.00 | Q170: 2040-03-25 | R170: 0.00
D171: 169 | E171: 2040-04-25 | F171: 366 | H171: FALSE | I171: 0.00 | J171: 0.00 | K171: 0.00 | L171: TRUE | M171: 0.00 | N171: =M171/(1+kalkAPR)^SUM($O$3:O171) -> 0 | O171: 0.08333333333 | P171: 171.00 | Q171: 2040-04-25 | R171: 0.00
D172: 170 | E172: 2040-05-25 | F172: 366 | H172: FALSE | I172: 0.00 | J172: 0.00 | K172: 0.00 | L172: TRUE | M172: 0.00 | N172: =M172/(1+kalkAPR)^SUM($O$3:O172) -> 0 | O172: 0.08333333333 | P172: 172.00 | Q172: 2040-05-25 | R172: 0.00
D173: 171 | E173: 2040-06-25 | F173: 366 | H173: FALSE | I173: 0.00 | J173: 0.00 | K173: 0.00 | L173: TRUE | M173: 0.00 | N173: =M173/(1+kalkAPR)^SUM($O$3:O173) -> 0 | O173: 0.08333333333 | P173: 173.00 | Q173: 2040-06-25 | R173: 0.00
D174: 172 | E174: 2040-07-25 | F174: 366 | H174: FALSE | I174: 0.00 | J174: 0.00 | K174: 0.00 | L174: TRUE | M174: 0.00 | N174: =M174/(1+kalkAPR)^SUM($O$3:O174) -> 0 | O174: 0.08333333333 | P174: 174.00 | Q174: 2040-07-25 | R174: 0.00
D175: 173 | E175: 2040-08-25 | F175: 366 | H175: FALSE | I175: 0.00 | J175: 0.00 | K175: 0.00 | L175: TRUE | M175: 0.00 | N175: =M175/(1+kalkAPR)^SUM($O$3:O175) -> 0 | O175: 0.08333333333 | P175: 175.00 | Q175: 2040-08-25 | R175: 0.00
D176: 174 | E176: 2040-09-25 | F176: 366 | H176: FALSE | I176: 0.00 | J176: 0.00 | K176: 0.00 | L176: TRUE | M176: 0.00 | N176: =M176/(1+kalkAPR)^SUM($O$3:O176) -> 0 | O176: 0.08333333333 | P176: 176.00 | Q176: 2040-09-25 | R176: 0.00
D177: 175 | E177: 2040-10-25 | F177: 366 | H177: FALSE | I177: 0.00 | J177: 0.00 | K177: 0.00 | L177: TRUE | M177: 0.00 | N177: =M177/(1+kalkAPR)^SUM($O$3:O177) -> 0 | O177: 0.08333333333 | P177: 177.00 | Q177: 2040-10-25 | R177: 0.00
D178: 176 | E178: 2040-11-25 | F178: 366 | H178: FALSE | I178: 0.00 | J178: 0.00 | K178: 0.00 | L178: TRUE | M178: 0.00 | N178: =M178/(1+kalkAPR)^SUM($O$3:O178) -> 0 | O178: 0.08333333333 | P178: 178.00 | Q178: 2040-11-25 | R178: 0.00
D179: 177 | E179: 2040-12-25 | F179: 366 | H179: FALSE | I179: 0.00 | J179: 0.00 | K179: 0.00 | L179: TRUE | M179: 0.00 | N179: =M179/(1+kalkAPR)^SUM($O$3:O179) -> 0 | O179: 0.08333333333 | P179: 179.00 | Q179: 2040-12-25 | R179: 0.00
D180: 178 | E180: 2041-01-25 | F180: 365 | H180: FALSE | I180: 0.00 | J180: 0.00 | K180: 0.00 | L180: TRUE | M180: 0.00 | N180: =M180/(1+kalkAPR)^SUM($O$3:O180) -> 0 | O180: 0.08333333333 | P180: 180.00 | Q180: 2041-01-25 | R180: 0.00
D181: 179 | E181: 2041-02-25 | F181: 365 | H181: FALSE | I181: 0.00 | J181: 0.00 | K181: 0.00 | L181: TRUE | M181: 0.00 | N181: =M181/(1+kalkAPR)^SUM($O$3:O181) -> 0 | O181: 0.08333333333 | P181: 181.00 | Q181: 2041-02-25 | R181: 0.00
D182: 180 | E182: 2041-03-25 | F182: 365 | H182: FALSE | I182: 0.00 | J182: 0.00 | K182: 0.00 | L182: TRUE | M182: 0.00 | N182: =M182/(1+kalkAPR)^SUM($O$3:O182) -> 0 | O182: 0.08333333333 | P182: 182.00 | Q182: 2041-03-25 | R182: 0.00
D183: 181 | E183: 2041-04-25 | F183: 365 | H183: FALSE | I183: 0.00 | J183: 0.00 | K183: 0.00 | L183: TRUE | M183: 0.00 | N183: =M183/(1+kalkAPR)^SUM($O$3:O183) -> 0 | O183: 0.08333333333 | P183: 183.00 | Q183: 2041-04-25 | R183: 0.00
D184: 182 | E184: 2041-05-25 | F184: 365 | H184: FALSE | I184: 0.00 | J184: 0.00 | K184: 0.00 | L184: TRUE | M184: 0.00 | N184: =M184/(1+kalkAPR)^SUM($O$3:O184) -> 0 | O184: 0.08333333333 | P184: 184.00 | Q184: 2041-05-25 | R184: 0.00
D185: 183 | E185: 2041-06-25 | F185: 365 | H185: FALSE | I185: 0.00 | J185: 0.00 | K185: 0.00 | L185: TRUE | M185: 0.00 | N185: =M185/(1+kalkAPR)^SUM($O$3:O185) -> 0 | O185: 0.08333333333 | P185: 185.00 | Q185: 2041-06-25 | R185: 0.00
D186: 184 | E186: 2041-07-25 | F186: 365 | H186: FALSE | I186: 0.00 | J186: 0.00 | K186: 0.00 | L186: TRUE | M186: 0.00 | N186: =M186/(1+kalkAPR)^SUM($O$3:O186) -> 0 | O186: 0.08333333333 | P186: 186.00 | Q186: 2041-07-25 | R186: 0.00
D187: 185 | E187: 2041-08-25 | F187: 365 | H187: FALSE | I187: 0.00 | J187: 0.00 | K187: 0.00 | L187: TRUE | M187: 0.00 | N187: =M187/(1+kalkAPR)^SUM($O$3:O187) -> 0 | O187: 0.08333333333 | P187: 187.00 | Q187: 2041-08-25 | R187: 0.00
D188: 186 | E188: 2041-09-25 | F188: 365 | H188: FALSE | I188: 0.00 | J188: 0.00 | K188: 0.00 | L188: TRUE | M188: 0.00 | N188: =M188/(1+kalkAPR)^SUM($O$3:O188) -> 0 | O188: 0.08333333333 | P188: 188.00 | Q188: 2041-09-25 | R188: 0.00
D189: 187 | E189: 2041-10-25 | F189: 365 | H189: FALSE | I189: 0.00 | J189: 0.00 | K189: 0.00 | L189: TRUE | M189: 0.00 | N189: =M189/(1+kalkAPR)^SUM($O$3:O189) -> 0 | O189: 0.08333333333 | P189: 189.00 | Q189: 2041-10-25 | R189: 0.00
D190: 188 | E190: 2041-11-25 | F190: 365 | H190: FALSE | I190: 0.00 | J190: 0.00 | K190: 0.00 | L190: TRUE | M190: 0.00 | N190: =M190/(1+kalkAPR)^SUM($O$3:O190) -> 0 | O190: 0.08333333333 | P190: 190.00 | Q190: 2041-11-25 | R190: 0.00
D191: 189 | E191: 2041-12-25 | F191: 365 | H191: FALSE | I191: 0.00 | J191: 0.00 | K191: 0.00 | L191: TRUE | M191: 0.00 | N191: =M191/(1+kalkAPR)^SUM($O$3:O191) -> 0 | O191: 0.08333333333 | P191: 191.00 | Q191: 2041-12-25 | R191: 0.00
D192: 190 | E192: 2042-01-25 | F192: 365 | H192: FALSE | I192: 0.00 | J192: 0.00 | K192: 0.00 | L192: TRUE | M192: 0.00 | N192: =M192/(1+kalkAPR)^SUM($O$3:O192) -> 0 | O192: 0.08333333333 | P192: 192.00 | Q192: 2042-01-25 | R192: 0.00
D193: 191 | E193: 2042-02-25 | F193: 365 | H193: FALSE | I193: 0.00 | J193: 0.00 | K193: 0.00 | L193: TRUE | M193: 0.00 | N193: =M193/(1+kalkAPR)^SUM($O$3:O193) -> 0 | O193: 0.08333333333 | P193: 193.00 | Q193: 2042-02-25 | R193: 0.00
D194: 192 | E194: 2042-03-25 | F194: =IF(MOD(YEAR(E194),4) = 0,366,365) -> 365 | H194: FALSE | I194: 0.00 | J194: 0.00 | K194: 0.00 | L194: TRUE | M194: 0.00 | N194: =M194/(1+kalkAPR)^SUM($O$3:O194) -> 0 | O194: 0.08333333333 | P194: 194.00 | Q194: 2042-03-25 | R194: 0.00
D195: 193 | E195: =EDATE(E194,1) -> 2042-04-25 | F195: 365 | H195: =$B$9>=E195 -> FALSE | I195: =ROUND(IF(H195,0,K194*$B$3/100/360*30),2) -> 0.00 | J195: 0.00 | K195: 0.00 | L195: =IF(K195>$B$8,FALSE,TRUE) -> TRUE | M195: =-J195-IF(J195=0,0,VyseMesPoj) -> 0.00 | N195: =M195/(1+kalkAPR)^SUM($O$3:O195) -> 0 | O195: 0.08333333333 | P195: 195.00 | Q195: =+E195 -> 2042-04-25 | R195: 0.00
D196: 194 | E196: 2042-05-25 | F196: 365 | H196: FALSE | I196: 0.00 | J196: =IF(Pojisteni="Ano",IF(L195=FALSE,ROUND(IF(H196,$B$2*$B$3/100/360*30,$B$8),2),ROUND(K195+I196,2))+IF(L194,0,(sazbaPoj*(VyseUveruZaklad+vyseUveru2))),IF(L195=FALSE,ROUND(IF(H196,$B$2*$B$3/100/360*30,$B$8),2),ROUND(K195+I196+IF(AND(L195,L194=FALSE),$B$14),2))) -> 0.00 | K196: 0.00 | L196: TRUE | M196: 0.00 | N196: =M196/(1+kalkAPR)^SUM($O$3:O196) -> 0 | O196: =1/12 -> 0.08333333333 | P196: 196.00 | Q196: 2042-05-25 | R196: =+M196 -> 0.00
D197: 195 | E197: 2042-06-25 | F197: 365 | H197: FALSE | I197: 0.00 | J197: 0.00 | K197: 0.00 | L197: TRUE | M197: 0.00 | N197: =M197/(1+kalkAPR)^SUM($O$3:O197) -> 0 | O197: 0.08333333333 | P197: 197.00 | Q197: 2042-06-25 | R197: 0.00
D198: 196 | E198: 2042-07-25 | F198: 365 | H198: FALSE | I198: 0.00 | J198: 0.00 | K198: 0.00 | L198: TRUE | M198: 0.00 | N198: =M198/(1+kalkAPR)^SUM($O$3:O198) -> 0 | O198: 0.08333333333 | P198: 198.00 | Q198: 2042-07-25 | R198: 0.00
D199: 197 | E199: 2042-08-25 | F199: 365 | H199: FALSE | I199: 0.00 | J199: 0.00 | K199: 0.00 | L199: TRUE | M199: 0.00 | N199: =M199/(1+kalkAPR)^SUM($O$3:O199) -> 0 | O199: 0.08333333333 | P199: 199.00 | Q199: 2042-08-25 | R199: 0.00
D200: 198 | E200: 2042-09-25 | F200: 365 | H200: FALSE | I200: 0.00 | J200: 0.00 | K200: 0.00 | L200: TRUE | M200: 0.00 | N200: =M200/(1+kalkAPR)^SUM($O$3:O200) -> 0 | O200: 0.08333333333 | P200: 200.00 | Q200: 2042-09-25 | R200: 0.00
... 162 more rows

Sheet adminBonita (hidden)
U1: BonDomacnosti | V1: =BonDomacnosti -> Ano | X1: list renta
B2: VYPOČTENÉ PŘÍJMY | C2: žadatel | D2: Spolužadatel | F2: VYPOČTENÉ VÝDAJE | G2: Spolužadatel | I2: Koeficient splátky | J2: KTK | K2: KK | U2: Dospeli | V2: =Dospeli -> 1 | X2: policie, vojáci
B3: Závislá | C3: =C22 -> 0 | D3: =G22 -> 0 | F3: Náklady na domácnost | G3: =IF(SpoDomacnost="",0,MAX(SpoProhVB,SpoDomacnost)) -> 0 | J3: 3.40% | K3: 2.90% | U3: Deti | V3: =Deti -> 0 | X3: horníci
B4: Daňové | C4: =C44+E40 -> 0 | D4: =G44+I40 -> 0 | F4: Osobní náklady | G4: =IF(SpoOsobni="",0,MAX(SpoProhlOV,SpoOsobni)) -> 0 | U4: Bydliste | V4: =Bydliste -> Praha | X4: Hasičský záchranný sbor ČR
B5: Hrubé | C5: =IF(HrubyVysledny="",0,HrubyVysledny) -> 0 | D5: =IF(SpoHrubyVysledny="",0,SpoHrubyVysledny) -> 0 | I5: Pojistné | J5: závislá činnost | K5: podnikání | L5: max. základ | M5: SP | N5: ZP | O5: min SP | P5: min ZP | U5: Splatky | V5: =Splatky -> 0 | X5: Celní správa ČR
B6: Ostatní | C6: =D63 -> 0 | D6: =H63 -> 0 | F6: Daň | G6: 15.00% | J6: 11.00% | K6: 21.35% | L6: 1,438,992 | M6: 29.20% | N6: 13.50% | O6: =2189*12 -> 26,268 | P6: =2024*12 -> 24,288 | U6: KTK | V6: =KTK -> 0 | X6: Vězeňská služba ČR
B7: Přímé | C7: =IF(PrimeMesicni="",0, IF(AND(vykonprace="NE",ObcanEHP="NE"),kurz*0.8* PrimeMesicni,IF(mena3="Kč", PrimeMesicni,(kurz*0.8* PrimeMesicni)))) -> 0 | D7: =IF(SpoPrimeMesicni="",0, IF(spovykonprace="NE",Spokurz*0.8* SpoPrimeMesicni,IF(spomena3="Kč", SpoPrimeMesicni,(Spokurz*0.8*SpoPrimeMesicni)))) -> 0 | U7: VydPojisteni | V7: =VydPojisteni ->  | X7: GIBS
B8: Vlastní | C8: =IF(VlastniVysledny="",0,VlastniVysledny) -> 0 | D8: =IF(SpoVlastniVysledny="",0,SpoVlastniVysledny) -> 0 | I8: Podnikání stropy | J8: max | K8: min | L8: min SP | M8: min ZP | U8: VydOstatni | V8: =VydOstatni -> 0 | X8: BIS
B9: celkem | C9: =SUM(adminOblastPrijmyZadatel) -> 0 | D9: =SUM(adminOblastPrijmySpoluzadatel) -> 0 | J9: =1296288*2 -> 2,592,576 | K9: =64813*2 -> 129,626 | L9: =O6/M6 -> 89,959 | M9: =P6/N6 -> 179,911 | U9: KK | V9: =KK -> 0 | X9: Úřad pro zahr. styky a inform
B10: Celkový příjem | C10: =IF(AND(vek_result="OK",vek_result_65="OK"),SUM(C3:D8),SUM(adminOblastPrijmySpoluzadatel)) -> 0 | U10: SpoDospeli | V10: =SpoDospeli -> 0 | X10: bývalí příslušníci Armády ČR
B11: Ostatní splátky | C11: =Splatky+KTK*adminKoefKtk+KK*adminKoefKK+SpoSplatky+SpoKtk*adminKoefKtk+SpoKk*adminKoefKK -> 0 | I11: činnost | J11: ZP | K11: SP | L11: celkem | M11: TRUE | O11: činnost | P11: ZP | Q11: SP | R11: celkem | S11: TRUE | U11: SpoDeti | V11: =SpoDeti -> 0
B12: Celkový výdaj | C12: =MAX(ZadProhVB,ZadDomacnost)+MAX(ZadProhOV,ZadNaklady)+VydOstatni+adminSpoDomacnost+adminSpoOsobni+SpoVydaje+adminOstatniSplatky+D14 -> 13,915 | D12: =adminDisponibilniZdroje-VyseMesPoj+adminOstatniSplatky ->  | E12: =+MAX(C5,C7,C8,C22,C37:C42,E37:E39,C55:C62,C64:C65) -> 0 | I12: Podnikání | J12: =IF(radek37>J9,(J9/2)*N6,IF(radek37<M9,P6,(radek37/2)*N6)) -> 24,288 | K12: =IF(radek37>J9,(J9/2)*M6,IF(radek37<L9,O6,(radek37/2)*M6)) -> 26,268 | L12: =J12+K12 -> 50,556 | M12: =IF(D27=TRUE,IF(D21=FALSE,IF(D25=FALSE,IF(D29=FALSE,IF(D23=FALSE,IF(radek37=0,FALSE,TRUE),FALSE))))) -> FALSE | O12: Podnikání | P12: =IF(#REF!>J9,(J9/2)*N6,IF(#REF!<M9,P6,(#REF!/2)*N6)) ->  | Q12: =IF(#REF!>J9,(J9/2)*M6,IF(#REF!<L9,O6,(#REF!/2)*M6)) ->  | R12: =P12+Q12 ->  | S12: =IF(I27=TRUE,IF(I21=FALSE,IF(I25=FALSE,IF(I29=FALSE,IF(I23=FALSE,IF(SpoRadek37=0,FALSE,TRUE),FALSE))))) -> FALSE | U12: SpoBydliste | V12: =SpoBydliste -> 0
B13: Disponibilní zdroje | C13: =C10-C12 -> -13,915 | D13: =D12*12*MaxDR ->  | G13: =+IF(adminSplatka!C67=TRUE,Splatka_stress_DR_pevna,Splatka_stress_DR) -> 6183.21 | I13: Podnikání při ZČ | J13: =IF(radek37>J9,(J9/2)*N6,((radek37/2)*N6)) -> 0 | K13: =IF(radek37<K9,0,IF(radek37>J9,(J9/2)*M6,(radek37/2)*M6)) -> 0 | L13: =SUM(J13,K13) -> 0 | M13: =IF(AND(D27=TRUE,D21=TRUE,D25=FALSE,D29=FALSE,D23=FALSE),TRUE,FALSE) -> FALSE | O13: Podnikání při ZČ | P13: =IF(#REF!>J9,(J9/2)*N6,((#REF!/2)*N6)) ->  | Q13: =IF(#REF!<K9,0,IF(#REF!>J9,(J9/2)*M6,(#REF!/2)*M6)) ->  | R13: =SUM(P13,Q13) ->  | S13: =IF(I27=TRUE,IF(I21=TRUE,IF(I25=FALSE,IF(I29=FALSE,IF(I23=FALSE,TRUE,FALSE))))) -> FALSE | U13: SpoSplatky | V13: =SpoSplatky -> 0
B14: Splátka pro Bonitu | C14: =Splatka -> 6,214 | F14: stress DR | G14: =IF(adminDisponibilniZdroje<=0,999999,(Splatka_stress_DR+adminOstatniSplatky) / (adminDisponibilniZdroje+adminOstatniSplatky-VyseMesPoj)) -> 999999 | I14: Pronájem | J14: =1148*12 -> 13,776 | K14: 0 | L14: =IF(radek37=0,IF(radek38=0,IF(ZadRadek105=0,IF(D27=TRUE,(J14+K14),IF(radek39<>"",J14+K14,0))),J14+K14)) ->  | M14: =IF(D27=TRUE,IF(D21=FALSE,IF(D25=FALSE,IF(D29=FALSE,IF(D23=FALSE,IF(adminBonita!C24>0,TRUE,FALSE)))))) -> FALSE | O14: Pronájem | P14: =1148*12 -> 13,776 | Q14: 0 | R14: =IF(#REF!=0,IF(G25=0,IF(G26=0,IF(I27=TRUE,(P14+Q14),IF(G24<>"",P14+Q14,0))),P14+Q14)) ->  | S14: =IF(I27=TRUE,IF(I21=FALSE,IF(I25=FALSE,IF(I29=FALSE,IF(I23=FALSE,IF(adminBonita!G24>0,TRUE,FALSE)))))) -> FALSE | U14: SpoKtk | V14: =SpoKtk -> 0
B15: DR | C15: =IF(adminDisponibilniZdroje<=0,999999,(adminSplatkaBon+adminOstatniSplatky) / (adminDisponibilniZdroje+adminOstatniSplatky-VyseMesPoj)) -> 99999900.00% | D15: =IF(adminDisponibilniZdroje<=0,999999,(adminSplatkaBon+adminOstatniSplatky+VyseMesPoj) / (adminDisponibilniZdroje+adminOstatniSplatky)) -> 999999 | I15: Pronájem a ZČ | L15: =IF(M15=TRUE,radek39*0.15,0) -> 0 | M15: =IF(D21=TRUE,IF(D27=TRUE,TRUE,FALSE)) -> FALSE | O15: Pronájem a ZČ | R15: =IF(S15=TRUE,G24*0.15,0) -> 0 | S15: =IF(I21=TRUE,IF(I27=TRUE,TRUE,FALSE)) -> FALSE | U15: SpoPojisteni | V15: =SpoPojisteni -> 
B16: LTV C_D | C16: =C_D ->  | I16: Podnikání a jiný příjem | M16: =IF(D23=TRUE,IF(PrijemDP=TRUE,TRUE,FALSE),FALSE) -> FALSE | O16: Podnikání a jiný příjem | S16: =IF(I23=TRUE,IF(I27=TRUE,TRUE,FALSE),FALSE) -> FALSE | U16: SpoVydaje | V16: =SpoVydaje -> 0
B17: Max DR | U17: SpoKk | V17: =SpoKk -> 0
B18: maximální výše úvěru | M18: =OR(M12:M16) -> FALSE | S18: =OR(S12:S16) -> FALSE | U18: SpoMesic1 | V18: =SpoMesic1 -> 0
U19: SpoMesic3 | V19: =SpoMesic3 -> 
D20: zav.čin. | I20: zav.čin. | U20: SpoZavislaVysledny | V20: =SpoZavislaVysledny -> 
B21: Zadatel zč | D21: =IF(Mesic1>0,TRUE,FALSE) -> FALSE | F21: Spoluzadatel zč | I21: =IF(SpoMesic1>0,TRUE,FALSE) -> FALSE | U21: SpoRadek37 | V21: =SpoRadek37 -> 0
B22: čistý měsíční | C22: =IF(AND(vykonprace="NE",ObcanEHP="NE"),kurz*0.8*Mesic1,IF(mena2="Kč",Mesic1,(kurz*0.8*Mesic1))) -> 0 | D22: ost.st.přij. | F22: čistý měsíční | G22: =IF(SpoMesic1="",0,IF(spomena2="Kč",SpoMesic1,SpoMesic1*Spokurz*0.8)) -> 0 | I22: ost.st.přij. | K22: kontrola | L22: =IF(M15=TRUE,TRUE,IF(D23=TRUE,TRUE,IF(D29=TRUE,TRUE,IF(D25=TRUE,TRUE,IF(radek74<>"",TRUE,IF(M18=FALSE,IF(D21=TRUE,TRUE,FALSE))))))) ->  | U22: SpoPausal | V22: =SpoPausal -> 0
D23: =IF(SUM(Bonita2!K49:K55)>0,TRUE,FALSE) -> FALSE | I23: =IF(SUM(Bonita2!M49:M55)>0,TRUE,FALSE) -> FALSE | K23: kontrola2 | L23: =IF(S15=TRUE,TRUE,IF(I23=TRUE,TRUE,IF(I29=TRUE,TRUE,IF(I25=TRUE,TRUE,IF(G27<>0,TRUE,IF(S18=FALSE,IF(I21=TRUE,TRUE,FALSE))))))) -> FALSE | U23: SpoRadek39 | V23: =SpoRadek39 -> 0
D24: přímé zadání | I24: přímé zadání | U24: SpoRadek38 | V24: =SpoRadek38 -> 0
D25: =IF(Bonita2!K73>0,TRUE,FALSE) -> FALSE | I25: =IF(Bonita2!M73>0,TRUE,FALSE) -> FALSE | U25: SpoRadek105 | V25: =SpoRadek105 -> 
D26: přijem z d.p. | I26: přijem z d.p. | U26: SpoRadek74 | V26: =SpoRadek74 -> 
D27: =IF(_xlfn.NUMBERVALUE(DanoveVysledny)>0,TRUE,FALSE) -> FALSE | E27: =DanoveVysledny ->  | I27: =IF(_xlfn.NUMBERVALUE(SpoDanoveVysledny)>0,TRUE,FALSE) -> FALSE | U27: SpoDanoveVysledny | V27: =SpoDanoveVysledny -> 
D28: hrubý podn. | I28: hrubý podn. | U28: SpoRadek37Odecteni | V28: =SpoRadek37Odecteni -> 
B29: Odečtení pojistného | C29: =IF(PausalZad="Ano",radek37+C24+C25,IF(radek37=0,IF(C24=0,radek37+C25-0,(C24+C25)-(L13+IF(M14=TRUE,L14,0))),radek37+C24+C25-(IF(M12=TRUE,L12+L14+L15,IF(C24=0,IF(C25=0,IF(C37=0,0,L13+L14+L15),L13+L14+L15)))))) -> 0 | D29: =IF(HrubyVysledny>0,TRUE,FALSE) -> FALSE | F29: Odečtení pojistného | G29: =IF(SpoPausal="Ano",G37+G24+G25,IF(G37=0,IF(G24=0,G37+G25-0,(G24+G25)-(R13+IF(S14=TRUE,R14,0))),G37+G24+G25-(IF(S12=TRUE,R12+R14+R15,IF(G24=0,IF(G25=0,IF(G37=0,0,R13+R14+R15),R13+R14+R15)))))) -> 0 | I29: =IF(SpoHrubyVysledny>0,TRUE,FALSE) -> FALSE | U29: SpoOstatniMesicni | V29: =SpoOstatniMesicni -> 
D30: vlastní spol. | I30: vlastní spol. | U30: SpoPrimeMesicni | V30: =SpoPrimeMesicni -> 0
D31: =IF(_xlfn.NUMBERVALUE(VlastniVysledny)>0,TRUE,FALSE) -> FALSE | I31: =IF(_xlfn.NUMBERVALUE(SpoVlastniVysledny)>0,TRUE,FALSE) -> FALSE | U31: SpoHrubyPrijem | V31: =SpoHrubyPrijem -> 0
U32: SpoHrubyVysledny | V32: =SpoHrubyVysledny -> 0
U33: checkSpoDanove | V33: =I27 -> FALSE
U34: checkSpoZavisla | V34: =I21 -> FALSE
U35: checkSpoHruby | V35: =I29 -> FALSE
B36: Zadatel podnikani NEW | F36: Spoluzadatel podnikani NEW | U36: checkSpoOstatni | V36: =I23 -> FALSE
B37: radek37 | C37: =IF(OstRodicPrisp>0,0,radek37) -> 0 | D37: z podnikání | E37: =IFERROR(INDEX(E146:F148,MATCH(Zad3P,D146:D148,0),MATCH(PausalZad,E145:F145,0)),0) -> 0 | F37: radek37 | G37: =IF(SpoOstRodicPrisp>0,0,SpoRadek37) -> 0 | H37: z podnikání | I37: =IFERROR(INDEX(L146:M148,MATCH(Spo3P,K146:K148,0),MATCH(SpoPausal,L145:M145,0)),0) -> 0 | U37: checkSpoPrime | V37: =I25 -> FALSE
B38: pausal | C38: =PausalZad -> 0 | D38: z pronájmu | E38: =IF(Zad3P="Ano",C39/12,IF((0.7*radek201)/12<C39/12,(0.7*radek201)/12,C39/12)) -> 0 | F38: pausal | G38: =SpoPausal -> 0 | H38: z pronájmu | I38: =IF(Spo3P="Ano",G39/12,IF((0.7*SpoRadek201)/12<G39/12,(0.7*SpoRadek201)/12,G39/12)) -> 0 | U38: Typ hypotéky: | V38: =ProduktList -> Hypotéka účelová
B39: radek39 | C39: =radek39 -> 0 | D39: z kapit.maj. | E39: =IF(C40>(SplatkaBON*12/10),SplatkaBON/10,C40/12) -> 0 | F39: radek39 | G39: =SpoRadek39 -> 0 | H39: z kapit.maj. | I39: =IF(G40>(SplatkaBON*12/10),SplatkaBON/10,G40/12) -> 0 | U39: Účel hypotéky: | V39: =HlavUcelUveru -> 0
B40: radek38 | C40: =radek38 -> 0 | D40: paušál | E40: =IF(MIN((PausalM1+PausalM2+PausalM3)/3,170000)-MAX(ProhlaseneNaklady,0.4*MIN((PausalM1+PausalM2+PausalM3)/3,170000))<=0,0,MIN((PausalM1+PausalM2+PausalM3)/3,170000)-MAX(ProhlaseneNaklady,0.4*MIN((PausalM1+PausalM2+PausalM3)/3,170000))) -> 0 | F40: radek38 | G40: =SpoRadek38 -> 0 | H40: paušál | I40: =IF(MIN((SpoPausalM1+SpoPausalM2+SpoPausalM3)/3,170000)-MAX(SpoProhlaseneNaklady,0.4*MIN((SpoPausalM1+SpoPausalM2+SpoPausalM3)/3,170000))<=0,0,MIN((SpoPausalM1+SpoPausalM2+SpoPausalM3)/3,170000)-MAX(SpoProhlaseneNaklady,0.4*MIN((SpoPausalM1+SpoPausalM2+SpoPausalM3)/3,170000))) -> 0 | U40: Typ zastavované nemovitosti: | V40: =SplTypNemovitosti -> vyberte
E41: =IF(((Bonita2!F59+Bonita2!F60+Bonita2!F61)/3)>170000,170000,((Bonita2!F59+Bonita2!F60+Bonita2!F61)/3))*0.4 -> 0 | I41: =IF((+(Bonita2!H59+Bonita2!H60+Bonita2!H61)/3)>90000,90000,(+(Bonita2!H59+Bonita2!H60+Bonita2!H61)/3))*0.4 -> 0 | U41: LTV: | V41: =splLTV -> 
H42: sporadek101/provize | I42: =IFERROR(IF(AND(SpoRadek101/SpoProvize>=80%,SpoRadek101/SpoProvize<=120%),"ANO","NE"),"NE") -> NE | U42: Výše měsíční splátky: | V42: =Splatka -> 6214
B43: Výsledný příjem | C43: =IF(OR(AND(radek37="",radek39="",radek38="")),0,(IF(M28=TRUE,adminZadVysledny-L30+C40,IF(SoubehZC_Podnikani=TRUE,adminZadVysledny-((C37+C39+C40)*0.15),adminZadVysledny-L31)))/12) -> 0 | F43: Výsledný příjem | G43: =IF(OR(AND(SpoRadek37="",SpoRadek39="",SpoRadek38="")),0,(IF(S28=TRUE,-R30+G40,IF(S29=TRUE,((G37+G39+G40)*0.15),-R31)))/12) -> 0 | U43: Společná domácnost žadatelů: | V43: =adminBonita!V1 -> Ano
B44: Výsledný příjem | C44: =SUM(E37:E39) -> 0 | F44: Výsledný příjem | G44: =SUM(I37:I39) -> 0 | U44: Výše hypotečního úvěru: | V44: =#REF! -> 
B45: činnost | C45: TRUE | F45: činnost | G45: TRUE | U45: Splatnost HÚ: | V45: =DobaSplatnosti2 -> 0
B46: Podnikání | C46: =IF(D27=TRUE,IF(D21=FALSE,IF(D25=FALSE,IF(D29=FALSE,IF(D23=FALSE,IF(radek37=0,FALSE,TRUE),FALSE))))) -> FALSE | F46: Podnikání | G46: =IF(I27=TRUE,IF(I21=FALSE,IF(I25=FALSE,IF(I29=FALSE,IF(I23=FALSE,IF(SpoRadek37=0,FALSE,TRUE),FALSE))))) -> FALSE | U46: DR | V46: =DR -> 999999
B47: Podnikání při ZČ | C47: =IF(D27=TRUE,IF(D21=TRUE,IF(D25=FALSE,IF(D29=FALSE,IF(D23=FALSE,TRUE,FALSE))))) -> FALSE | F47: Podnikání při ZČ | G47: =IF(I27=TRUE,IF(I21=TRUE,IF(I25=FALSE,IF(I29=FALSE,IF(I23=FALSE,TRUE,FALSE))))) -> FALSE | U47: maxDR | V47: =MaxDR -> 0
B48: Pronájem | C48: =IF(D27=TRUE,IF(D21=FALSE,IF(D25=FALSE,IF(D29=FALSE,IF(D23=FALSE,IF(adminBonita!C24>0,TRUE,FALSE)))))) -> FALSE | F48: Pronájem | G48: =IF(I27=TRUE,IF(I21=FALSE,IF(I25=FALSE,IF(I29=FALSE,IF(I23=FALSE,IF(adminBonita!G24>0,TRUE,FALSE)))))) -> FALSE
B49: Pronájem a ZČ | C49: =IF(I21=TRUE,IF(I27=TRUE,TRUE,FALSE)) -> FALSE | F49: Pronájem a ZČ | G49: =IF(I21=TRUE,IF(I27=TRUE,TRUE,FALSE)) -> FALSE
B50: Podnikání a jiný příjem | C50: =IF(D23=TRUE,IF(PrijemDP=TRUE,TRUE,FALSE),FALSE) -> FALSE | F50: Podnikání a jiný příjem | G50: =IF(I23=TRUE,IF(I27=TRUE,TRUE,FALSE),FALSE) -> FALSE
C52: =OR(C46:C50) -> FALSE | G52: =OR(G46:G50) -> FALSE | J52: =IF(Pojisteni<>"",IF(Pojisteni="měsíční pojištění",Spl_SouborPojisteniMesicni,IF(Pojisteni="jednorázové pojištění",Spl_SouborPojisteniJednorazove,Spl_NevybranyTypPojisteni))) -> 
B54: Ostatní | C54: 100% | D54: přepočet | E54: max limit | F54: Ostatní | G54: 100% | H54: přepočet
B55: Starobní důchod | C55: =OstStarobPrijem -> 0 | D55: =C55 -> 0 | F55: Starobní důchod | G55: =SpoOstStarobPrijem -> 0 | H55: =G55 -> 0
B56: Rodičovský příspěvek | C56: =IF((Mesic1+vlastniZavislaCinnost)>0,OstRodicPrisp*0.5,OstRodicPrisp) -> 0 | D56: =IF(AND(C56>=E56,Deti>0),E56,IF(AND(C56<E56,Deti>0),C56,0)) -> 0 | E56: 12500 | F56: Rodičovský příspěvek | G56: =+IF((SpoMesic1+SpoVlastniZavislaCinnost)>0,SpoOstRodicPrisp*0.5,SpoOstRodicPrisp) -> 0 | H56: =IF(AND(G56>E56,OR(Deti>0,SpoDeti>0)),E56,IF(AND(G56<E56,OR(Deti>0,SpoDeti>0)),G56,0)) -> 0
B57: Vdovský důchod | C57: =OstVdovDuchod -> 0 | D57: =IF(C57*0.6>E57,E57,C57*0.6) -> 0 | E57: 8000 | F57: Vdovský důchod | G57: =SpoOstVdovDuchod -> 0 | H57: =IF(G57*0.6>E57,E57,G57*0.6) -> 0
B58: Sirotčí důchod | C58: =OstSirotDuchod -> 0 | D58: =IF(C58*0.6>E58,E58,C58*0.6) -> 0 | E58: 8000 | F58: Sirotčí důchod | G58: =SpoOstSirotDuchod -> 0 | H58: =IF(G58*0.6>E58,E58,G58*0.6) -> 0
B59: Odměna pěstouna | F59: Odměna pěstouna
B60: Renta výsluhová (vojáci, horníci, atd.) | C60: =OstRentaVysluh -> 0 | D60: =+C60 -> 0 | F60: Renta výsluhová (vojáci, horníci, atd.) | G60: =SpoOstRentaVysluh -> 0 | H60: =+G60 -> 0
B61: Výživné | C61: =OstVyzivne -> 0 | D61: =IF(SUM(ZadZavislaCinnost,C4,C5,C7,C8,D55,D56,D57,D58,D59,D60,D62,D64,D65)=0,0,IF(SUM(ZadZavislaCinnost,C4,C5,C7,C8,D55,D56,D57,D58,D59,D60,D62,D64,D65)=D56,0,IF(C61>((Deti+SpoDeti)*8000),(Deti+SpoDeti)*8000,C61))) -> 0 | F61: Výživné | G61: =SpoOstVyzivne -> 0 | H61: =IF(SUM(ZadZavislaCinnost,D4,D5,D7,D8,H55,H56,H57,H58,H59,H60,H62,H64,H65)=0,0,IF(SUM(ZadZavislaCinnost,D4,D5,D7,D8,H55,H56,H57,H58,H59,H60,H62,H64,H65)=H56,0,IF(G61>((Deti+SpoDeti)*8000),(Deti+SpoDeti)*8000,G61))) -> 0
B62: Invalidní důchod | C62: =OstInvalidDuchod -> 0 | D62: =IF(C62*0.6>E62,E62,C62*0.6) -> 0 | E62: 12000 | F62: Invalidní důchod | G62: =SpoOstInvalidDuchod -> 0 | H62: =+IF(G62*0.6>E62,E62,G62*0.6) -> 0
B63: Celkem | C63: =SUM(C55:C62) -> 0 | D63: =(SUM(D55:D62)+D64+D65) -> 0 | F63: Celkem | G63: =SUM(G55:G62) -> 0 | H63: =(SUM(H55:H62)+H64+H65) -> 0
B64: Budoucí příjem z pronájmu | D64: =C64*0.6 -> 0 | F64: Budoucí příjem z pronájmu | H64: =G64*0.6 -> 0
B65: OstPrispevekBydleni | D65: =IF(C65>E65,E65,C65) -> 0 | E65: 7000 | F65: OstPrispevekBydleni | H65: =+IF(G65>E65,E65,G65) -> 0 | M65: 3,504,000.00 | N65: =+FLOOR(M65,50000) -> 3,500,000.00
M66: 3,512,000.00 | N66: =+FLOOR(M66,50000) -> 3,500,000.00
B67: TRUE | M67: 3,543,000.00 | N67: =+FLOOR(M67,50000) -> 3,500,000.00
B68: FALSE | M68: 3,566,000.00 | N68: =+FLOOR(M68,50000) -> 3,550,000.00
B72: žadatel | F72: spolužadatel | I72: ttl
B73: limit KTK | C73: =+KTK -> 0 | F73: limit KTK | G73: =+SpoKtk -> 0 | I73: KTK vyčerpané | J73: =+(G74+C74) -> 0
B74: z toho vyčerpáno | C74: =+Bonita2!F84 -> 0 | F74: z toho vyčerpáno | G74: =+Bonita2!H84 -> 0 | I74: KT nevyčerpané | J74: =+(C73+G73-J73)*C82 -> 0
B75: limit KK | C75: =+KK -> 0 | F75: limit KK | G75: =+SpoKk -> 0 | I75: KK vyčerpané | J75: =+(G76+C76) -> 0
B76: z toho vyčerpáno | C76: =+Bonita2!F86 -> 0 | F76: z toho vyčerpáno | G76: =+Bonita2!H86 -> 0 | I76: KK nevyčerpané | J76: =+(C75+G75-J75)*C81 -> 0
B77: zbývající jistiny splátkových | C77: =+ZbytkoveJistiny -> 0 | F77: zbývající jistiny splátkových | G77: =SpoZbytkoveJistiny -> 0 | I77: zbývající jistiny | J77: =+G77+C77 -> 0
B78: Měsíční splátky všech existujících splátkových produktů | C78: =+Splatky -> 0 | F78: Měsíční splátky všech existujících splátkových produktů | G78: =+SpoSplatky -> 0 | I78: všechny měsíční splátky existujícíc | J78: =+G78+C78 -> 0
I79: rámce ktk | J79: =(+C73+G73)*C84 -> 0
H80: =+H81*12 -> 0.00% | I80: rámce kk | J80: =+(C75+G75)*C83 -> 0
B81: nevyčerpané KK | C81: 100.0% | F81: přirážka k sazbě - objem | G81: =+adminSplatka!K22 -> 0.00% | H81: =+IF(AND(OR(F87<2000000,F87=2000000),ProduktList<>"U hypotéka neúčelová"),(SazbaTrigger+G81)/12,G82) -> 0 | I81: výše úvěru nového | J81: =vyseUveru2+VyseUveruZaklad+VyseJedPoj -> 0
B82: nevyčerpané KTK | C82: 100.0% | F82: sazba | G82: =+SazbaTrigger/12 -> 0.0000% | H82: =+IF(AND(OR(F89<2000000,F89=2000000),ProduktList<>"U hypotéka neúčelová"),(SazbaTrigger+G81)/12,G82) -> 0
B83: rámec KK | C83: 2.9% | F83: splatnost | G83: =+Splatnost -> 0
B84: rámec KTK | C84: 3.4% | F84: měsíční pojištění anone | G84: =IF(Pojisteni="měsíční pojištění",sazbaPoj,0) -> 
B86: DTI | C86: =+(J77+J75+J76+J73+J74+J81)/(12*adminCelkovePrijmy) ->  | D86: =(L102*12*adminCelkovePrijmy)-((J77+J75+J76+J73+J74)) -> 0.00 | F86: =+FLOOR(G86,100) -> 0 | G86: =FLOOR(+D86,1) -> 0
B87: DSTI | C87: =FIXED(+(J78+J80+J79+SplatkaTrigger)/(adminCelkovePrijmy),4) ->  | D87: 0.00 | E87: =+IF(G84>0,((CUMIPMT(G82,G83,(PV(G82,G83,-(L103*adminCelkovePrijmy)-(J78+J80+J79),0,)*G84*G83),1,G83,0)*-1)-((PV(G82,G83,-(L103*adminCelkovePrijmy)-(J78+J80+J79),0,)*G84*G83))),0) ->  | F87: =+FLOOR(G87/(1+sazbaJedPoj),1000) -> 14820000 | G87: 14,820,000 | H87: =+PMT(H81,G83,G87,0,)*-1 ->  | I87: =+IF(Splatka2!L38="",0,G87*G84) -> 0 | J87: =+(J78+J80+J79+H87)/(adminCelkovePrijmy) ->  | K87: =+FIXED(J87,5) ->  | L87: =+K87*1 ->  | M87: =L87>var_dsti -> 
B88: max výše úvěru dle bonity | D88: =IF(adminCelkovePrijmy=0,"",adminMaxVyse) -> 
B89: =+IF(FLOOR(+MIN(F89),50000)<0,0,FLOOR(+MIN(F89),1000)) -> 4,350,000.00 | D89: 0.00 Kč | E89: =IF(OR(adminDisponibilniZdroje<0,adminDisponibilniZdroje=0),0,+IF(G84>0,((CUMIPMT(G82,G83,(PV(G82,G83,0.8*-(adminDisponibilniZdroje+adminOstatniSplatky)-(adminOstatniSplatky+VyseMesPoj),0)*G84*G83),1,G83,0)*-1)-((PV(G82,G83,-0.8*(adminDisponibilniZdroje+adminOstatniSplatky)-(adminOstatniSplatky+VyseMesPoj),0)*G84*G83))),0)) -> 0.00 Kč | F89: =+FLOOR(G89,1000) -> 4,350,000.00 | G89: 4,350,000.00 Kč | H89: =+PMT(H82,G83,G89,0,)*-1 ->  | I89: =+IF(Splatka2!L38="",0,G89*G84) -> 0 | J89: =(H89+adminOstatniSplatky) / (adminDisponibilniZdroje+adminOstatniSplatky-G84*H89) ->  | K89: =+FIXED(J89,6) ->  | L89: =+K89/1 -> 
B90: =+KDYŽ(ZAOKR.DOLŮ(+MIN(F86:F89);50000)<0;0;ZAOKR.DOLŮ(+MIN(F86:F89);1000))
B91: pro zohlednění dti, dsti a bonity | H91: DTI + DSTI makro pro výpočet zakomentováno
B92: zaměstnanec | C92: =+MAX(C93:C95) -> 0.00 | H92: module1 - naázev "max výše úvěru dle DSTI (DTI)
B93: bonita | C93: =+IF(SplatkaTrigger>0,(((((adminSplatkaBon+adminOstatniSplatky)/(0.8))+adminCelkovyVydaj-adminOstatniSplatky))-adminPrijmySpoluzadatel)*1,0) -> 0.00 | E93: 104552.5
B94: DTI | C94: =+(J77+J75+J76+J73+J74+J81)/(12*9) -> 0.00 | E94: 50000
B95: DSTI | C95: =CEILING(+(J78+J80+J79+SplatkaTrigger+IF(Splatka2!L38="",0,Splatka2!L38))/0.45,1) -> 0.00 | E95: 126183
B96: když i DTI a DSTI tak max nad c93:c95
E98: =+ProduktList -> Hypotéka účelová | F98: =+HlavUcelUveru -> 0
E99: >= 36 let | G99: <36 let | I99: Rekonstrukce
B100: datedif | C100: =+DATEDIF(Vek,TODAY(),"y") -> 126 | E100: 36 | F100: =+C100>=E100 -> TRUE | G100: 36 | H100: =C100<G100 -> FALSE | I100: Hypotéka neúčelová | J100: =+E98=I100 -> FALSE
B101: ltv | C101: =+LTV ->  | E101: 80% | F101: =IF(+C101>E101,1,0) -> 1.00 | G101: 90% | H101: =IF(+C101>G101,1,0) -> 1.00 | I101: 70% | J101: =IF(+C101>I101,1,0) -> 1 | L101: =+IF($J$100=TRUE,I101, IF($H$100=TRUE,G101,IF($F$100=TRUE,E101,""))) -> 0.8
B102: dti | C102: =+C86 ->  | E102: 8.5 | F102: 0.00 | G102: 9.5 | H102: 0.00 | I102: 8.5 | J102: =IF(+C102>1102,1,0) ->  | L102: =+IF($J$100=TRUE,I102, IF($H$100=TRUE,G102,IF($F$100=TRUE,E102,""))) -> 8.5
B103: dsti | C103: =+C87*1 ->  | E103: 100% | F103: =IF(+C103>E103,1,0) ->  | G103: 100% | H103: =IF(+C103>G103,1,0) ->  | I103: 100% | J103: =IF(+C103>I103,1,0) ->  | L103: =+IF($J$100=TRUE,I103, IF($H$100=TRUE,G103,IF($F$100=TRUE,E103,""))) -> 1
B105: =IF(AND(J100=TRUE,SUM(J101:J103)>0),1,IF(OR(AND(F100=TRUE,SUM(F101:F103)>0),AND(H100=TRUE,SUM(H101:H103)>0)),1,0)) ->  | C105: =+prihlaseny -> 3P
B106: Hypotéka přesahuje některý z poměrových ukazatelů vyhlášených ČNB. Kontaktujte, prosím, Vašeho bankéře, abyste se domluvili, zda budeme moci tuto hypotéku zpracovat. | C106: Hypotéka přesahuje některý z poměrových ukazatelů vyhlášených ČNB. Kontaktujte, prosím, Vašeho Manažera regionu, abyste se domluvili, zda budeme moci tuto hypotéku zpracovat. | E106: =+IFERROR(IF(AND(B105=1,C105="3P"),B106,IF(AND(B105=1,C105<>"3P"),C106,"")),"") -> 
B109: max výše úvěru | C109: =IF(Bonita2!K8="",TRUE,FALSE) -> TRUE | D109: =Bonita2!K8 -> 
B110: Uznatelný příjem | C110: =IF(Bonita2!K9="",TRUE,FALSE) -> TRUE
C112: žadatel | D112: Spolužadatel
B113: souběh příjmů | C113: =IF(AND(D21=TRUE,OR(D23=TRUE,D25=TRUE,PrijemDP=TRUE,D29=TRUE,D31=TRUE)),TRUE,IF(AND(D23=TRUE,OR(D25=TRUE,PrijemDP=TRUE,D29=TRUE,D31=TRUE)),TRUE,IF(AND(D25=TRUE,OR(PrijemDP=TRUE,D29=TRUE,D31=TRUE)),TRUE,IF(AND(PrijemDP=TRUE,OR(D29=TRUE,D31=TRUE)),TRUE,FALSE)))) -> FALSE | D113: =IF(AND(I21=TRUE,OR(I23=TRUE,I25=TRUE,I27=TRUE,I29=TRUE,I31=TRUE)),TRUE,IF(AND(I23=TRUE,OR(I25=TRUE,I27=TRUE,I29=TRUE,I31=TRUE)),TRUE,IF(AND(I25=TRUE,OR(I27=TRUE,I29=TRUE,I31=TRUE)),TRUE,IF(AND(I27=TRUE,OR(I29=TRUE,I31=TRUE)),TRUE,FALSE)))) -> FALSE
B114: souběh příjmů | C114: =IF(OR(C113=TRUE,D113=TRUE),TRUE,FALSE) -> FALSE
C119: 1. domácnost | E119: 2. domácnost
B121: Prohlášené výdaje na bydlení | C121: =VLOOKUP(Bydliste&MIN(Dospeli+Deti,10),NakladDomacnosti,2,FALSE)*Parametry!E94 -> 8,774 Kč | E121: =IF(BonDomacnosti="Ano","",ROUND(VLOOKUP(SpoBydliste&MIN(SpoDospeli+SpoDeti,10),NakladDomacnosti,2,FALSE)*Parametry!E94,)) -> 
B122: Prohlášené výdaje na domácnost | C122: =(VLOOKUP(Bydliste&"Dosp",OsobniNaklady,2,FALSE)*IF(Dospeli>1,1,Dospeli)+IF(Dospeli>1,(Dospeli-1)*VLOOKUP(Bydliste&"Dosp2",OsobniNaklady,2,FALSE))+VLOOKUP(Bydliste&"Dite",OsobniNaklady,2,FALSE)*Deti)*Parametry!F94 -> 5,141 Kč | E122: =IF(BonDomacnosti="Ano","",ROUND((IF(BonDomacnosti="Ano","",(VLOOKUP(SpoBydliste&"Dosp",OsobniNaklady,2,FALSE)*IF(SpoDospeli>1,1,SpoDospeli)+IF(SpoDospeli>1,(SpoDospeli-1)*VLOOKUP(SpoBydliste&"Dosp2",OsobniNaklady,2,FALSE))+VLOOKUP(SpoBydliste&"Dite",OsobniNaklady,2,FALSE)*SpoDeti)))*Parametry!F95,)) -> 
B126: ZREÁLNĚNÍ PAUŠÁLNÍCH VÝDAJŮ | I126: ZREÁLNĚNÍ PAUŠÁLNÍCH VÝDAJŮ - spolužadatel
B127: Limit příjmu (ř.101) | C127: 2,000,000 Kč | I127: Limit příjmu (ř.101) | J127: 2,000,000 Kč
B128: Výše paušálních výdajů | C128: 40% | D128: 60% | E128: 80% | F128: Hodnota ze zákona, vstupuje do vzorečku | I128: Výše paušálních výdajů | J128: 40% | K128: 60% | L128: 80%
B129: Maximální výše uplatněných výdajů dle zákona | C129: 800,000 Kč | D129: 1,200,000 Kč | E129: 1,600,000 Kč | F129: Hodnota ze zákona, vstupuje do vzorečku | I129: Maximální výše uplatněných výdajů dle zákona | J129: 800,000 Kč | K129: 1,200,000 Kč | L129: 1,600,000 Kč
B130: Procento zreálnění | C130: 20% | D130: 20% | E130: 10% | F130: Dohodnuté parametry, vstupuje do vzorečku | I130: Procento zreálnění | J130: 20% | K130: 20% | L130: 10%
B131: Mezivýpočet výše nákladů | C131: =+radek101*C128 -> 0 | D131: =+radek101*D128 -> 0 | E131: =+radek101*E128 -> 0 | I131: Mezivýpočet výše nákladů | J131: =+SpoRadek101*J128 -> 0 | K131: =+SpoRadek101*K128 -> 0 | L131: =+SpoRadek101*L128 -> 0
B132: Zreálněné výdaje (prohlášené < max výše dle zákona) | C132: =+C131-(+C131*C130) -> 0 | D132: =+D131-(+D131*D130) -> 0 | E132: =+E131-(+E131*E130) -> 0 | I132: Zreálněné výdaje (prohlášené < max výše dle zákona) | J132: =+J131-(+J131*J130) -> 0 | K132: =+K131-(+K131*K130) -> 0 | L132: =+L131-(+L131*L130) -> 0
J133: =IF(SpoProhlasVydaje<IFERROR(HLOOKUP(SpoProcentoVydaju,adminBonita!J128:L129,2,0),""),"ano","ne") -> ne
B134: Příjem | C134: =IF(ProhlasVydaje<IFERROR(HLOOKUP(ProcentoVydaju,adminBonita!C128:E129,2,0),""),(radek101-IFERROR(HLOOKUP(ProcentoVydaju,C128:E132,5,0),0))/12,(radek101-ProhlasVydaje)/12) -> 0 | I134: Příjem | J134: =IF(SpoProhlasVydaje<IFERROR(HLOOKUP(SpoProcentoVydaju,adminBonita!J128:L129,2,0),""),(SpoRadek101-IFERROR(HLOOKUP(SpoProcentoVydaju,J128:L132,5,0),0))/12,(SpoRadek101-SpoProhlasVydaje)/12) -> 0
B136: 3P | I136: 3P
B137: radek101/provize | C137: =IFERROR(IF(AND(radek101/ZadProvize>=80%,radek101/ZadProvize<=120%),"ANO","NE"),"NE") -> NE | I137: sporadek101/provize | J137: =IFERROR(IF(AND(SpoRadek101/SpoProvize>=80%,SpoRadek101/SpoProvize<=120%),"ANO","NE"),"NE") -> NE
B138: pausal | I138: pausal
B139: Příjem (ř. 101) max 2000000 | C139: =IF(radek101<=adminBonita!C127,"ANO","NE") -> ANO | I139: Příjem (ř. 101) max 2000000 | J139: =IF(SpoRadek101<=adminBonita!J127,"ANO","NE") -> ANO
B140: Prohlášené > dle zákona pro DP | C140: =IF(ProhlasVydaje>IFERROR(HLOOKUP(ProcentoVydaju,adminBonita!C128:E129,2,0),""),"ANO","NE") -> NE | I140: Prohlášené > dle zákona pro DP | J140: =IF(SpoProhlasVydaje>IFERROR(HLOOKUP(SpoProcentoVydaju,adminBonita!J128:L129,2,0),""),"ANO","NE") -> NE
B141: Prohlášené > zreálněné | C141: =IF(ProhlasVydaje>IFERROR(HLOOKUP(ProcentoVydaju,adminBonita!C128:E132,5,0),""),"ANO","NE") -> NE | D141: =IF(C141="ANO",ProhlasVydaje,IFERROR(HLOOKUP(ProcentoVydaju,adminBonita!C128:E132,5,0),"")) ->  | F141: Vždy bereme vyšší než hodnotu, ANO, když Prohlášené jsou vyšší než Zreálněné | I141: Prohlášené > zreálněné | J141: =IF(SpoProhlasVydaje>IFERROR(HLOOKUP(SpoProcentoVydaju,adminBonita!J128:L132,5,0),""),"ANO","NE") -> NE | K141: =IF(J141="ANO",SpoProhlasVydaje,IFERROR(HLOOKUP(SpoProcentoVydaju,adminBonita!J128:L132,5,0),"")) -> 
E144: paušal | L144: paušal
E145: ne | F145: ano | L145: ne | M145: ano
C146: 3P | D146: ne | E146: =IF((0.7*radek101)/12<(C37)/12,(0.7*IF(OstRodicPrisp>0,0,radek101)/12),(C37)/12) -> 0 | F146: =IF(AND(C139="ANO",C140="NE"),(radek101-D141)/12,E146) ->  | J146: 3P | K146: ne | L146: =IF((0.7*SpoRadek101)/12<(G37)/12,(0.7*IF(SpoOstRodicPrisp>0,0,SpoRadek101)/12),(G37)/12) -> 0 | M146: =IF(AND(J139="ANO",J140="NE"),(SpoRadek101-K141)/12,L146) -> 
D147: ano | E147: =IF(C137="ANO",(ZadProvize*0.4)/12,IF((0.7*radek101)/12<(C37)/12,(0.7*IF(OstRodicPrisp>0,0,radek101)/12),(C37)/12)) -> 0 | F147: =IF(C137="ANO",(ZadProvize*0.6)/12,IF((0.7*radek101)/12<(C37)/12,(0.7*IF(OstRodicPrisp>0,0,radek101)/12),(C37)/12)) -> 0 | K147: ano | L147: =IF(J137="ANO",(SpoProvize*0.4)/12,IF((0.7*SpoRadek101)/12<(G37)/12,(0.7*IF(SpoOstRodicPrisp>0>0,0,SpoRadek101)/12),(G37)/12)) -> 0 | M147: =IF(J137="ANO",(SpoProvize*0.6)/12,IF((0.7*SpoRadek101)/12<(G37)/12,(0.7*IF(SpoOstRodicPrisp>0>0,0,SpoRadek101)/12),(G37)/12)) -> 0
D148: 0 | E148: =E146 -> 0 | F148: =F146 ->  | K148: 0 | L148: =L146 -> 0 | M148: =M146 -> 

Sheet Bonita2
AG1: Bonita není dostatečná.
B3: BONITA | N3: =_xlfn.SINGLE(manVerze) -> 2026_04
B5: Jméno a příjmení klienta | E5: =IF(SplatkaJmenoKlienta="","",SplatkaJmenoKlienta) -> 
B8: Úroková sazba | E8: =SazbaTrigger -> 0.00% | H8: Max. možná výše úvěru | K8: =IF(adminCelkovePrijmy=0,"",adminBonita!B89) ->  | L8: Vyplňte příjmy a výdaje a zmáčkněte tlačítko vyhodnotit.
B9: Měsíční splátka | E9: =SplatkaTrigger -> 0 Kč | H9: Celkový uznatelný příjem | K9: =IF(adminCelkovePrijmy = 0,"",adminCelkovePrijmy) -> 
B10: Výše pojistného | E10: =Splatka2!L38 ->  | H10: Debt ratio (max.80%) | K10: =IF(adminCelkovePrijmy=0,"",ROUNDUP(DR,2)) ->  | O10: =IF(adminCelkovePrijmy=0,"",IF(MaxDR="","",IF(DR<0%,"Bonita není dostatečná.",IF(DR<=MaxDR,"Bonita je dostatečná.","Bonita není dostatečná.")))) -> 
B11: Celková měsíční platba | E11: =SUM(E9:E10) -> 0 Kč | H11: Stress Debt ratio (max. 100%) | K11: =IF(adminCelkovePrijmy=0,"",TEXT(ROUNDUP(stress_DR*100,0),"0")&"%") -> 
B12: RPSN | E12: =Splatka2!E38 ->  | H12: DTI | K12: =IFERROR(hodDTI,"") -> 
F15: Prohlášené hodnoty | K15: Bankou kalkulované hodnoty
B18: Patří všichni žadatelé do jedné domácnosti? | F18: Ano
F19: 1. domácnost | H19: 2. domácnost
B20: Počet dospělých v domácnosti | F20: 1 | H20: 0
B21: Počet dětí v domácnosti | F21: 0 | H21: 0
B22: Současné bydliště | F22: Praha
B25: PŘÍJMY | F25: Žadatel | H25: Spolužadatel | K25: Žadatel | M25: Spolužadatel
B26: Příjem ze závislé činnosti
B28: Průměrný měsíční příjem | G28: Kč | I28: Kč | K28: =IF(F28="","",adminBonita!C3) ->  | M28: =IF(H28="","",adminBonita!G22) -> 
F29: V případě jiného příjmu než Kč
B30: Kurz
B31: Výkon práce v ČR?
B32: Adresa zaměstnavatele
B34: Příjem z daňového přiznání
B36: Příjmy z podnikání (ř.37) | K36: =IF(adminBonita!C44=0,"",adminBonita!C44) ->  | M36: =IF(SpoOstRodicPrisp>0,0,IF(adminBonita!G44=0,"",adminBonita!G44)) -> 
B37: Hrubé příjmy z podnikání (ř. 101 přílohy č.1)
B38: Prohlášené výdaje spojené s podnikáním
B39: Výdaje jsou uplatňované paušálem?
B40: Výše paušálních výdajů
B41: Příjmy z pronájmu (ř.39)
B42: Hrubé příjmy z pronájmu (ř. 201a Přílohy č. 2)
B43: Příjmy z kapitálového majetku (ř.38)
B44: Hrubé příjmy z vyplacených provizí
B45: Uznány jako 3P?
B47: Ostatní standardní příjmy
B49: Rodičovský příspěvek | K49: =adminBonita!D56 -> 0 Kč | M49: =adminBonita!H56 -> 0 Kč
B50: Výživné | K50: =adminBonita!D61 -> 0 Kč | M50: =adminBonita!H61 -> 0 Kč
B51: Invalidní důchod 3. stupně | K51: =adminBonita!D62 -> 0 Kč | M51: =adminBonita!H62 -> 0 Kč
B52: Sirotčí důchod | K52: =adminBonita!D58 -> 0 Kč | M52: =adminBonita!H58 -> 0 Kč
B53: Vdovský důchod | K53: =adminBonita!D57 -> 0 Kč | M53: =adminBonita!H57 -> 0 Kč
B54: Starobní důchod | K54: =adminBonita!D55 -> 0 Kč | M54: =adminBonita!H55 -> 0 Kč
B55: Renta výsluhová | K55: =adminBonita!C60 -> 0 Kč | M55: =adminBonita!H60 -> 0 Kč
B57: Paušální daň
B59: Kreditní obrat na účtu za: | E59: Měsíc 1
E60: Měsíc 2
E61: Měsíc 3
B62: Prohlášené náklady spojené s podnikáním
B63: Výsledný měsíční příjem | K63: =IF(OstRodicPrisp>0,0,IF(SUM(F59:F61)=0,"",adminBonita!E40)) ->  | M63: =IF(SpoOstRodicPrisp>0,0,IF(SUM(H59:H61)=0,"",adminBonita!I40)) -> 
B65: Další příjmy
B67: Hrubý příjem - svobodná povolání (ř.101) | K67: =IF(OstRodicPrisp>0,0,HrubyPrijem/12*0.6) -> 0 Kč | M67: =IF(SpoOstRodicPrisp>0,0,SpoHrubyPrijem/12*0.6) -> 0 Kč
B69: Příjem z vlastní společnosti
B70: Průměrný měsíční příjem ze ZČ | K70: =IF(AND(vlastniZavislaCinnost="",vlastniPodil=""),"",(IF(vlastniZavislaCinnost>45000,45000,vlastniZavislaCinnost)+vlastniPodil/36)) ->  | M70: =IF(AND(SpoVlastniZavislaCinnost="",SpoVlastniPodil=""),"",(IF(SpoVlastniZavislaCinnost>45000,45000,SpoVlastniZavislaCinnost)+(SpoVlastniPodil/36))) -> 
B71: Rozdělený a vyplacený podíl na zisku
B73: Ostatní (předschválené příjmy nebo na výjimku) | G73: Kč | I73: Kč | K73: =adminBonita!C7 -> 0 Kč | M73: =adminBonita!D7 -> 0 Kč
B75: VÝDAJE
F76: 1. domácnost | H76: 2. domácnost | K76: 1. domácnost | M76: 2. domácnost
B78: Prohlášené výdaje na bydlení | F78: 0 Kč | H78: 0 Kč | K78: =MAX(ZadProhVB,adminBonita!C121) -> 8,774 Kč | M78: =IF(BonDomacnosti="Ano","",MAX(SpoProhVB,adminBonita!E121)) -> 
B79: Prohlášené výdaje na domácnost | F79: 0 Kč | H79: 0 Kč | K79: =MAX(ZadProhOV,adminBonita!C122) -> 5,141 Kč | M79: =IF(BonDomacnosti="Ano","",MAX(SpoProhlOV,adminBonita!E122)) -> 
B80: Ostatní pravidelné výdaje | F80: 0 | H80: 0
B81: Měsíční splátky dalších úvěrů (mimo refinancovaných) | F81: 0 | H81: 0
B82: Zbytkové jistiny existujících splátkových produktů (mimo refinancovaných) | F82: 0 | H82: 0
B83: Limit kontokoretních úvěrů | F83: 0 | H83: 0
B84: z toho vyčerpáno | F84: 0 | H84: 0
B85: Limity kreditních karet | F85: 0 | H85: 0
B86: z toho vyčerpáno | F86: 0 | H86: 0

Sheet adminStressDr (hidden)
B2: DTI | C2: A/B | E2: =StressDrA/StressDrB ->  | G2: POSOUZENÍ NA UDW | I2: =IF(AND(bonDostatecna="Ano",dtiDstiLtvNad+StressDrNad>0),1,0) -> 
B3: A | E3: =SUM(E4:E8) -> 0 | G3: DTI > 8 & DSTI > 40% & LTV > 80% & Regulatory LTV > 80% | I3: =IF(DtiNad+DstiNad+LtvNad+RegulatoryLtvNad=4,1,0) -> 
C4: financovaná částka požadovaného úvěru (včetně up-front CPI) | E4: =StressDrVyseUveru -> 0 | G4: DTI > 8 | H4: 8 | I4: =IF(Dti>DtiNadLimit,1,0) -> 
C5: + suma zbytkových jistin stávajících HU – suma zbytkových jistin refinancovaných HU | G5: DSTI > 40% | H5: 40.00% | I5: =IF(Dsti>DstiNadLimit,1,0) -> 
C6: + suma zbytkových jistin a stávajících SU – suma zbytkových jistin refinancovaných SU | G6: LTV > 80% | H6: 80.00% | I6: =IF(StressDrLtv>LtvNadLimit,1,0) -> 
C7: + suma celkových limitů KK – suma celkových limitů refinancovaných/rušených KK | E7: =KK+SpoSplatky+SpoKk -> 0 | G7: Regulatory LTV > 80% | H7: 80.00% | I7: =IF(StressDrRegulatoryLtv>RegulatoryltvNadLimit,1,0) -> 
C8: + suma celkových limitů KTK – suma celkových limitů refinancovaných/rušených KTK | E8: =KTK+SpoKtk -> 0 | G8: STRESS DR > 100% | H8: 100.00% | I8: =IF(StressDr>StressDrNadLimit,1,0) -> 0
B9: B | C9: 12*čistý měsíční příjem klienta | E9: =12*adminCelkovePrijmy -> 0
B11: DSTI | C11: C/D | E11: =StressDrC/StressDrD -> 
B12: C | E12: =SUM(E13:E16) -> 0
C13: splátka požadovaného úvěru | E13: =StressDrVyseSplatky -> 0
C14: + suma aktuálních splátek HU, SU v registrech – suma aktuálních splátek refinancovaných HU, SU | E14: =Splatky -> 0
C15: + suma celkových limitů KK * 0,025 – suma celkových limitů refinanc/rušených KK * 0,025 | E15: =KK*adminKoefKK+SpoSplatky+SpoKk*adminKoefKK -> 0
C16: + suma celkových limitů KTK * 0,04 – suma celkových limitů refinanc/rušených KTK * 0,04 | E16: =KTK*adminKoefKtk+SpoKtk*adminKoefKtk -> 0
B17: D | C17: čistý měsíční příjem klienta | E17: =adminCelkovePrijmy -> 0
B19: LTV | E19: =C_D_CardIncl -> 
B21: Regulatory LTV | E21: =(VyseUveruZaklad+vyseUveru2+VyseLimit_presto)/NemHodn -> 
B23: STRESS DR | C23: E/F | E23: =StressDrVyseSplatky/StressDrDisponibilniPrijem -> 0.00%
B24: E | C24: výše splátky | E24: =VypoctiSplatku(StressDrSazba,StressDrVyseUveru,StressDrSplatnost) -> 0
C25: výše úvěru vč. pojistného | E25: =VyseUveruZaklad+vyseUveru2+VyseJedPoj -> 0
C26: úroková sazba + 2 % | E26: =UrSazba+0.02 -> 6.29%
C27: splatnost 30 let | E27: 360
C28: ostatní splátky | E28: =adminOstatniSplatky -> 0
C29: měsíční pojištění | E29: =VyseMesPoj -> 
B30: F | C30: disponibilní příjem | E30: =adminDisponibilniZdroje+adminOstatniSplatky -> -13,915
B41: Slevy

Sheet Zam_HU
A3: Příjem zaměstnance | R3: =_xlfn.SINGLE([0]!manVerze) -> 2026_04
C5: Minimální požadovaný čistý měsíční příjem: | G5: =+adminBonita!C92 -> 0 Kč
C7: Disponibilní příjem: | G7: =(adminDisponibilniZdroje) -> -13,915 Kč | I7: = | J7: Příjem celkem: | L7: =adminCelkovePrijmy -> 0 | N7: - | O7: Výdaje celkem: | Q7: =adminCelkovyVydaj -> 13,915
C9: Ostatní splátky: | G9: =adminOstatniSplatky -> 0 Kč
C11: Splátka HÚ: | G11: =Splatka -> 6,214 Kč
G12: (((((adminSplatkaBon+adminOstatniSplatky)/(0,8))+adminCelkovyVydaj-adminOstatniSplatky))-adminPrijmySpoluzadatel)*1

Sheet Nabidka (hidden)
A3: NABÍDKA | AT3: =_xlfn.SINGLE(manVerze) -> 2026_04
E4: POUŽÍVEJTE PRO TISK NABÍDKY TLAČÍTKO VPRAVO NAHOŘE!!!!!
E9: Orientační nabídka hypotečního úvěru
E14: Klient: | J14: =SplatkaJmenoKlienta -> 
E15: E-mail:
E16: Telefon:
E17: Dne: | J17: =TODAY() -> 2026-03-06
E19: Typ | W19: =IF(NizkoEn="nizkoener","Hypotéka účelová – nízkoenergetická",TypHypoteky) -> Hypotéka účelová
E20: Výše úvěru | W20: =VyseUveruZaklad+vyseUveru2+VyseJedPoj -> 0 Kč
E21: Minimální hodnota nemovitosti * | W21: =NemHodn -> 0 Kč
E22: Fixní období | W22: =Fix_obdobi -> 3 roky
E23: Doba splatnosti (v měsících) | W23: =SplatnostPrepocetMesice -> 0
E24: =+IF(Fix_obdobi="Float","Úroková sazba (výše Přirážky)","Úroková sazba") -> Úroková sazba | W24: =SazbaTrigger -> 0.00% | Z24: p. a. | AB24: =IF((Splatka2!P21+Splatka2!P22)>0,+"(včetně indiv. slev " &FIXED( (Splatka2!P21+Splatka2!P22)*100,2)&" %)","") -> 
E25: Výše splátky | W25: =SplatkaTrigger -> 0 Kč | AB25: =IF(Pojisteni="měsíční pojištění","(+ měsíční pojistné "&(VyseMesPoj)&" Kč)","") -> 
E26: Měsíční poplatek za správu úvěru | W26: 0 Kč
E27: Poplatek za poskytnutí úvěru | W27: =IF(splPoplPoskZmena="",splPoplPosk,splPoplPoskZmena) -> 0 Kč
E28: Poplatek za ověření podpisu | W28: 50 Kč
E29: Popl. za podání návrhu na vklad (výmaz) zástavního práva | W29: 2,000 Kč
E30: RPSN ** | W30: =Splatka2!E38 -> 
E31: Maximální výše úvěru (při uvedeném příjmu a výdajích) | W31: =adminBonita!B89 -> 4,350,000 Kč
E32: Minimální hodnota nemovitosti* | W32: =nMaxVyse*1.25 -> 5,437,500 Kč
E33: =Parametry!A144 -> 
E34: =Parametry!A139 -> ** Ve výpočtu RPSN není zohledněn poplatek za vyhodnocení rizik spojených se zástavou nemovitosti (náklady odhad nemovitosti)
E36: =+IF(Fix_obdobi="Float","V případě Fixního období ''Float'' se úroková sazba skládá z variabilní Base Mortage Rate (BMR) a pevné Přirážky. U tohoto Fixního období Vám rezervujeme výši Přirážky za těchto předpokladů:","Úrokovou sazbu Vám v uvedené výši rezervujeme za těchto předpokladů:") -> Úrokovou sazbu Vám v uvedené výši rezervujeme za těchto předpokladů:
E37: · požadované parametry úvěru (účel úvěru, výše úvěru, doba splatnosti, fixní období) zůstanou beze změn | F37: požadované parametry úvěru (účel úvěru, výše úvěru, doba splatnosti, fixní období) zůstanou beze změn
E38: · | F38: =Parametry!A148 -> hodnota nemovitosti, která bude sloužit k zajištění úvěru, bude ve výši alespoň Kč, za předpokladu, že zastavovaná nemovitost neslouží k zajištění jiného úvěru
E39: · | F39: =IF(OR(C_D_CardIncl<0.8,docHUAnoNe=FALSE),nabidkaText,nabidkaTextDocHu) -> 
E41: =IF(F41<>"","·","") -> · | F41: =+IF(Pojisteni="jednorázové pojištění","sjednání jednorázově hrazeného Pojištění schopnosti splácet úvěr",IF(Pojisteni="měsíční pojištění","sjednání měsíčně hrazeného Pojištění schopnosti splácet úvěr","")) -> sjednání měsíčně hrazeného Pojištění schopnosti splácet úvěr
E42: =IF(F42<>"","·","") -> · | F42: =+IF(AktivitaU="ANO",adminSplatka!B98,"") -> aktivity na účtu, kterou se rozumí měsíční zaslání částky ve výši alespoň 1,5 násobku anuitní splátky ve prospěch tohoto účtu a měsíční provedení minimálně 3 plateb kartou vydanou k tomuto účtu
E46: =IF(prihlaseny="banka","Jméno bankéře:","Jméno poradce:") -> Jméno poradce:
E47: =IF(prihlaseny="banka","Pobočka:","Společnost:") -> Společnost:
E48: E-mail:
E49: Telefon:
E51: Víte, že si u nás můžete půjčit až 1 mil Kč na rekonstrukci bez dokladování faktur, stavebních povolení atd.? Pro Vámi zvolenou fixaci by splátky mohly vypadat takto:
P53: Maximální částka, kterou vám můžeme nabídnout | Z53: Nebo uvažujete o rekonstrukci na nižší částku?
E55: Navýšení hypotéky na rekonstrukci o | P55: =adminSplatka!C75 ->  | Z55: =adminSplatka!C76 ->  | AE55: =adminSplatka!C77 -> 
E56: Dodatečná výše splátky | K56: 7,851 Kč | P56: =adminSplatka!D75 -> 7,457 Kč | Z56: =adminSplatka!D76 ->  | AE56: =adminSplatka!D77 -> 
K57: 8,110 Kč | P57: 8,110 Kč | U57: 8,110 Kč | Z57: 8,110 Kč | AE57: 8,110 Kč | AJ57: 8,110 Kč
E58: Pozn. Nabízené částky jsou kalkulovány pouze na základě poměru požadované Výše úvěru a Odhadované tržní hodnoty nemovitosti | BA58: 1403
P59: Bez poj. | U59: Basic | Z59: Standard | AE59: Full
E60: Měsíční splátka | P60: =+splatka_bez_pojM_nabidka -> 6,376 Kč | U60: =+splatka_s_pojM_nabidka -> 6,214 Kč | Z60: =+splatka_s_pojM_nabidka -> 6,214 Kč | AE60: =+splatka_s_pojM_nabidka -> 6,214 Kč
E61: Měsíční poplatek za pojištění | P61: 0 Kč | U61: =ROUNDUP(IF(AND(adminSplatka!C1>Parametry!E20,adminSplatka!C1<Parametry!F20),VLOOKUP(U59,Parametry!B20:D22,3,0)*splatka_s_pojM_nabidka,IF(OR(adminSplatka!C1<=Parametry!E20,adminSplatka!C1>=Parametry!F20),VLOOKUP(U59,Parametry!B20:D22,2,0)*splatka_s_pojM_nabidka)),0) -> 342 Kč | Z61: =ROUNDUP(IF(AND(adminSplatka!C1>Parametry!E20,adminSplatka!C1<Parametry!F20),VLOOKUP(Z59,Parametry!B20:D22,3,0)*splatka_s_pojM_nabidka,IF(OR(adminSplatka!C1<=Parametry!E20,adminSplatka!C1>=Parametry!F20),VLOOKUP(Z59,Parametry!B20:D22,2,0)*splatka_s_pojM_nabidka,)),0) -> 529 Kč | AE61: =ROUNDUP(IF(AND(adminSplatka!C1>Parametry!E20,adminSplatka!C1<Parametry!F20),VLOOKUP(AE59,Parametry!B20:D22,3,0)*splatka_s_pojM_nabidka,IF(OR(adminSplatka!C1<=Parametry!E20,adminSplatka!C1>=Parametry!F20),VLOOKUP(AE59,Parametry!B20:D22,2,0)*splatka_s_pojM_nabidka,)),0) -> 684 Kč
E62: Poplatek za odhad | P62: =IF(SplTypNemovitosti="Expresní vyhodnocení bytové jednotky",500,IF(SplTypNemovitosti="Bytová jednotka, pozemek",5300,IF(SplTypNemovitosti="Rodinný dům, objekt individuální rekreace",6500,IF(SplTypNemovitosti="Ostatní objekty",7000,7000)))) -> 7,000 Kč | U62: =IF((LTV<=0.8),0,IF(SplTypNemovitosti="Expresní vyhodnocení bytové jednotky",500,IF(SplTypNemovitosti="Bytová jednotka, pozemek",5300,IF(SplTypNemovitosti="Rodinný dům, objekt individuální rekreace",6500,IF(SplTypNemovitosti="Ostatní objekty",7000,7000))))) -> 7,000 Kč | Z62: =IF((LTV<=0.8),0,IF(SplTypNemovitosti="Expresní vyhodnocení bytové jednotky",500,IF(SplTypNemovitosti="Bytová jednotka, pozemek",5300,IF(SplTypNemovitosti="Rodinný dům, objekt individuální rekreace",6500,IF(SplTypNemovitosti="Ostatní objekty",7000,7000))))) -> 7,000 Kč | AE62: =IF((LTV<=0.8),0,IF(SplTypNemovitosti="Expresní vyhodnocení bytové jednotky",500,IF(SplTypNemovitosti="Bytová jednotka, pozemek",5300,IF(SplTypNemovitosti="Rodinný dům, objekt individuální rekreace",6500,IF(SplTypNemovitosti="Ostatní objekty",7000,7000))))) -> 7,000 Kč
E63: O kolik zaplatíte navíc s pojištěním | P63: 0 Kč | U63: =(+U61-(P60-U60)) -> 180 Kč | Z63: =(+Z61-(P60-Z60)) -> 367 Kč | AE63: =(+AE61-(P60-AE60)) -> 522 Kč
E64: Za tyto reálné měsíční náklady získáte pojištění:
E65: • pro případ smrti | U65: ANO | Z65: ANO | AE65: ANO
E66: • pro případ invalidity 3. stupně | U66: ANO | Z66: ANO | AE66: ANO
E67: • pro případ pracovní neschopnosti | Z67: ANO | AE67: ANO
E68: • pro případ závažných onemocnění | AE68: ANO
E69: • pro případ ztráty zaměstnání | AE69: ANO
E75: Tato nabídka je pouze indikativní, není návrhem na uzavření smlouvy a nelze z ní proto dovozovat povinnost banky uskutečnit jakékoli transakce. Případné uzavření smlouvy nebo uskutečnění transakce je vázáno na získání potřebných interních schválení v rámci banky a na podepsání příslušné smluvní dokumentace. Tato nabídka není radou podle pravidel stanovených zákonem č. 257/2016 Sb., o spotřebitelském úvěru.
E80: Nízkoenergetická hypotéka – podporujeme dlouhodobě udržitelné bydlení
E81: · Pokud nám k financované nemovitosti dodáte Průkaz energetické náročnosti budovy v klasifikační třídě A nebo B:
E82: o získáte slevu na úrokové sazbě ve výši 0,1 %
E88: Výhody dalších produktů
E92: Konto OPEN – pro Vaši jistotu a svobodu za 89 Kč měsíčně
E93: · Základní výbava
E94: o 2 běžné účty v Kč a 1 účet v EUR
E95: o Internetové bankovnictví Online Banking
E96: o Mobilní bankovnictví Smart Banking
E97: · Nákupy bez starostí
E98: o U-šetřete – slevy a odměny za nákupy přímo na vaší kartě
E99: o Výběry z bankomatů UniCredit zdarma
E100: o Neomezené výběry hotovosti ze všech ostatních bankomatů doma i v zahraničí zdarma
E101: · Pro vaši jistotu
E102: o Cestovní pojištění dovolené i pracovních cest
E103: o Pojištění vašich osobních věcí, jako je peněženka, klíče a platební karty
E104: o Pojištění nákupů na internetu
E109: Konto TOP – pro nejvyšší standard - zdarma (při příjmu nad 40 000 Kč měsíčně) nebo za 299 Kč měsíčně
E110: · Základní výbava
E111: o 2 běžné účty v Kč a 1 účet v EUR a 1 účet v USD
E112: o Internetové bankovnictví Online Banking
E113: o Mobilní bankovnictví Smart Banking
E114: · Nákupy bez starostí
E115: o U-šetřete – slevy a odměny za nákupy přímo na vaší kartě
E116: o Výběry z bankomatů UniCredit zdarma
E117: o Neomezené výběry hotovosti ze všech ostatních bankomatů doma i v zahraničí zdarma
E118: · Pro vaši jistotu
E119: o Cestovní pojištění dovolené i pracovních cest v nejvyšším standardu
E120: o Pojištění vašich osobních věcí, jako je peněženka, klíče a platební karty, s vyšším limitem
E121: o Pojištění nákupů na internetu
E126: POJIŠTĚNÍ SCHOPNOSTI SPLÁCET – Ochraní Vás a Vaše blízké před riziky, která jsou spojena se ztrátou příjmu a mohou vám způsobit finanční potíže. Pojištění schopnosti splácet úvěr slouží jako základ pro úhradu Vašich závazků v případě nepředvídaných životních situací. Na výběr máte z těchto variant:
E129: · Balíček pojištění BASIC RP – zahrnuje pojištění smrti a pojištění invalidity třetího stupně / přiznání průkazu ZTP/P
E130: · Balíček pojištění STANDARD RP – zahrnuje pojištění smrti a pojištění invalidity třetího stupně / přiznání průkazu ZTP/P a pojištění pracovní neschopnosti
E131: · Balíček pojištění FULL RP - zahrnuje pojištění smrti a pojištění invalidity třetího stupně / přiznání průkazu ZTP/P a pojištění pracovní neschopnosti, pojištění ztráty zaměstnání a pojištění závažných onemocnění
E134: · Rychlé a snadné sjednání
E137: VYHODNOCENÍ RIZIK SPOJENÝCH SE ZÁSTAVOU NEMOVITOSTI
E139: Zdarma poskytujeme za následujících podmínek:
E140: · podepsaná hypoteční úvěrová smlouva
E141: · uzavřené pojištění schopnosti splácet úvěr
E142: · aktivované U konto, účet OPEN, nebo účet TOP, ze kterého je splácen úvěr
E143: · výše úvěru max. do 80 % hodnoty zastavované nemovitosti
E145: Individuální podmínky jsou na úvážení banky.
E146: Poplatek je vrácen do 30 pracovních dnů od splnění podmínek.

Sheet Kalendar
B3: Orientační splátkový kalendář hypotečního úvěru
B5: Typ produktu | E5: =Nabidka!W19 -> Hypotéka účelová
B6: Výše úvěru | E6: =RPSN!B2 -> 0 Kč
B7: Fixní období | E7: =Nabidka!W22 -> 3 roky
B8: Doba splatnosti | E8: =RPSN!B7 -> 0
B9: Úroková sazba | E9: =RPSN!B3 -> 4.29
B10: Výše splátky | E10: =RPSN!B8 -> 6,214 Kč
B11: Měsíční poplatek za správu úvěru | E11: =RPSN!B4 -> 0 Kč
B12: Poplatek za poskytnutí úvěru | E12: =RPSN!B5 -> 0 Kč
B13: RPSN * | E13: =kalkAPR -> 5.07%
B14: * Ve výpočtu RPSN není zohledněn poplatek za vyhodnocení rizik spojených se zástavou nemovitosti (náklady odhad nemovitosti).
B16: Tento přehled je pouze indikativní, není návrhem na uzavření smlouvy a nelze z ní něj proto dovozovat povinnost banky uskutečnit jakékoliv transakce. Případné uzavření smlouvy nebo uskutečnění transakce je vázáno na získání potřebných interních schválení v rámci banky a na podepsání příslušné smluvní dokumentace.
B18: ČÍSLO SPLÁTKY | C18: DATUM SPLÁTKY | D18: SPLÁTKA JISTINY | E18: SPLÁTKA ÚROKU | F18: CELKOVÁ SPLÁTKA | G18: ZŮSTATEK JISTINY PO SPLÁTCE
B19: =RPSN!D2 -> 0 | C19: =RPSN!E2 -> 2026-03-25 | D19: 0.00 | E19: =F19 -> 0.00 | F19: =RPSN!J2 -> 0.00 | G19: =RPSN!K2 -> 0.00
B20: =IF(SplDobaSplatnosti>B19,RPSN!C3,"") ->  | C20: =IF($B20<>"",RPSN!E3,"") ->  | D20: =IF($B20<>"",F20-E20,"") ->  | E20: =IF($B20<>"",RPSN!I3,"") ->  | F20: =IF($B20<>"",RPSN!J3,"") ->  | G20: =IF($B20<>"",RPSN!K3,"") -> 
B21: =IF(SplDobaSplatnosti>B20,RPSN!D4,"") ->  | C21: =IF($B21<>"",RPSN!E4,"") ->  | D21: =IF($B21<>"",F21-E21,"") ->  | E21: =IF($B21<>"",RPSN!I4,"") ->  | F21: =IF($B21<>"",RPSN!J4,"") ->  | G21: =IF($B21<>"",RPSN!K4,"") -> 
B22: =IF(SplDobaSplatnosti>B21,RPSN!D5,"") ->  | C22: =IF($B22<>"",RPSN!E5,"") ->  | E22: =IF($B22<>"",RPSN!I5,"") ->  | F22: =IF($B22<>"",RPSN!J5,"") ->  | G22: =IF($B22<>"",RPSN!K5,"") -> 
B23: =IF(SplDobaSplatnosti>B22,RPSN!D6,"") ->  | C23: =IF($B23<>"",RPSN!E6,"") ->  | E23: =IF($B23<>"",RPSN!I6,"") ->  | F23: =IF($B23<>"",RPSN!J6,"") ->  | G23: =IF($B23<>"",RPSN!K6,"") -> 
B24: =IF(SplDobaSplatnosti>B23,RPSN!D7,"") ->  | C24: =IF($B24<>"",RPSN!E7,"") ->  | E24: =IF($B24<>"",RPSN!I7,"") ->  | F24: =IF($B24<>"",RPSN!J7,"") ->  | G24: =IF($B24<>"",RPSN!K7,"") -> 
B25: =IF(SplDobaSplatnosti>B24,RPSN!D8,"") ->  | C25: =IF($B25<>"",RPSN!E8,"") ->  | E25: =IF($B25<>"",RPSN!I8,"") ->  | F25: =IF($B25<>"",RPSN!J8,"") ->  | G25: =IF($B25<>"",RPSN!K8,"") -> 
B26: =IF(SplDobaSplatnosti>B25,RPSN!D9,"") ->  | C26: =IF($B26<>"",RPSN!E9,"") ->  | E26: =IF($B26<>"",RPSN!I9,"") ->  | F26: =IF($B26<>"",RPSN!J9,"") ->  | G26: =IF($B26<>"",RPSN!K9,"") -> 
B27: =IF(SplDobaSplatnosti>B26,RPSN!D10,"") ->  | C27: =IF($B27<>"",RPSN!E10,"") ->  | E27: =IF($B27<>"",RPSN!I10,"") ->  | F27: =IF($B27<>"",RPSN!J10,"") ->  | G27: =IF($B27<>"",RPSN!K10,"") -> 
B28: =IF(SplDobaSplatnosti>B27,RPSN!D11,"") ->  | C28: =IF($B28<>"",RPSN!E11,"") ->  | E28: =IF($B28<>"",RPSN!I11,"") ->  | F28: =IF($B28<>"",RPSN!J11,"") ->  | G28: =IF($B28<>"",RPSN!K11,"") -> 
B29: =IF(SplDobaSplatnosti>B28,RPSN!D12,"") ->  | C29: =IF($B29<>"",RPSN!E12,"") ->  | E29: =IF($B29<>"",RPSN!I12,"") ->  | F29: =IF($B29<>"",RPSN!J12,"") ->  | G29: =IF($B29<>"",RPSN!K12,"") -> 
B30: =IF(SplDobaSplatnosti>B29,RPSN!D13,"") ->  | C30: =IF($B30<>"",RPSN!E13,"") ->  | E30: =IF($B30<>"",RPSN!I13,"") ->  | F30: =IF($B30<>"",RPSN!J13,"") ->  | G30: =IF($B30<>"",RPSN!K13,"") -> 
B31: =IF(SplDobaSplatnosti>B30,RPSN!D14,"") ->  | C31: =IF($B31<>"",RPSN!E14,"") ->  | E31: =IF($B31<>"",RPSN!I14,"") ->  | F31: =IF($B31<>"",RPSN!J14,"") ->  | G31: =IF($B31<>"",RPSN!K14,"") -> 
B32: =IF(SplDobaSplatnosti>B31,RPSN!D15,"") ->  | C32: =IF($B32<>"",RPSN!E15,"") ->  | E32: =IF($B32<>"",RPSN!I15,"") ->  | F32: =IF($B32<>"",RPSN!J15,"") ->  | G32: =IF($B32<>"",RPSN!K15,"") -> 
B33: =IF(SplDobaSplatnosti>B32,RPSN!D16,"") ->  | C33: =IF($B33<>"",RPSN!E16,"") ->  | E33: =IF($B33<>"",RPSN!I16,"") ->  | F33: =IF($B33<>"",RPSN!J16,"") ->  | G33: =IF($B33<>"",RPSN!K16,"") -> 
B34: =IF(SplDobaSplatnosti>B33,RPSN!D17,"") ->  | C34: =IF($B34<>"",RPSN!E17,"") ->  | E34: =IF($B34<>"",RPSN!I17,"") ->  | F34: =IF($B34<>"",RPSN!J17,"") ->  | G34: =IF($B34<>"",RPSN!K17,"") -> 
B35: =IF(SplDobaSplatnosti>B34,RPSN!D18,"") ->  | C35: =IF($B35<>"",RPSN!E18,"") ->  | E35: =IF($B35<>"",RPSN!I18,"") ->  | F35: =IF($B35<>"",RPSN!J18,"") ->  | G35: =IF($B35<>"",RPSN!K18,"") -> 
B36: =IF(SplDobaSplatnosti>B35,RPSN!D19,"") ->  | C36: =IF($B36<>"",RPSN!E19,"") ->  | E36: =IF($B36<>"",RPSN!I19,"") ->  | F36: =IF($B36<>"",RPSN!J19,"") ->  | G36: =IF($B36<>"",RPSN!K19,"") -> 
B37: =IF(SplDobaSplatnosti>B36,RPSN!D20,"") ->  | C37: =IF($B37<>"",RPSN!E20,"") ->  | E37: =IF($B37<>"",RPSN!I20,"") ->  | F37: =IF($B37<>"",RPSN!J20,"") ->  | G37: =IF($B37<>"",RPSN!K20,"") -> 
B38: =IF(SplDobaSplatnosti>B37,RPSN!D21,"") ->  | C38: =IF($B38<>"",RPSN!E21,"") ->  | E38: =IF($B38<>"",RPSN!I21,"") ->  | F38: =IF($B38<>"",RPSN!J21,"") ->  | G38: =IF($B38<>"",RPSN!K21,"") -> 
B39: =IF(SplDobaSplatnosti>B38,RPSN!D22,"") ->  | C39: =IF($B39<>"",RPSN!E22,"") ->  | E39: =IF($B39<>"",RPSN!I22,"") ->  | F39: =IF($B39<>"",RPSN!J22,"") ->  | G39: =IF($B39<>"",RPSN!K22,"") -> 
B40: =IF(SplDobaSplatnosti>B39,RPSN!D23,"") ->  | C40: =IF($B40<>"",RPSN!E23,"") ->  | E40: =IF($B40<>"",RPSN!I23,"") ->  | F40: =IF($B40<>"",RPSN!J23,"") ->  | G40: =IF($B40<>"",RPSN!K23,"") -> 
B41: =IF(SplDobaSplatnosti>B40,RPSN!D24,"") ->  | C41: =IF($B41<>"",RPSN!E24,"") ->  | E41: =IF($B41<>"",RPSN!I24,"") ->  | F41: =IF($B41<>"",RPSN!J24,"") ->  | G41: =IF($B41<>"",RPSN!K24,"") -> 
B42: =IF(SplDobaSplatnosti>B41,RPSN!D25,"") ->  | C42: =IF($B42<>"",RPSN!E25,"") ->  | E42: =IF($B42<>"",RPSN!I25,"") ->  | F42: =IF($B42<>"",RPSN!J25,"") ->  | G42: =IF($B42<>"",RPSN!K25,"") -> 
B43: =IF(SplDobaSplatnosti>B42,RPSN!D26,"") ->  | C43: =IF($B43<>"",RPSN!E26,"") ->  | E43: =IF($B43<>"",RPSN!I26,"") ->  | F43: =IF($B43<>"",RPSN!J26,"") ->  | G43: =IF($B43<>"",RPSN!K26,"") -> 
B44: =IF(SplDobaSplatnosti>B43,RPSN!D27,"") ->  | C44: =IF($B44<>"",RPSN!E27,"") ->  | E44: =IF($B44<>"",RPSN!I27,"") ->  | F44: =IF($B44<>"",RPSN!J27,"") ->  | G44: =IF($B44<>"",RPSN!K27,"") -> 
B45: =IF(SplDobaSplatnosti>B44,RPSN!D28,"") ->  | C45: =IF($B45<>"",RPSN!E28,"") ->  | E45: =IF($B45<>"",RPSN!I28,"") ->  | F45: =IF($B45<>"",RPSN!J28,"") ->  | G45: =IF($B45<>"",RPSN!K28,"") -> 
B46: =IF(SplDobaSplatnosti>B45,RPSN!D29,"") ->  | C46: =IF($B46<>"",RPSN!E29,"") ->  | E46: =IF($B46<>"",RPSN!I29,"") ->  | F46: =IF($B46<>"",RPSN!J29,"") ->  | G46: =IF($B46<>"",RPSN!K29,"") -> 
B47: =IF(SplDobaSplatnosti>B46,RPSN!D30,"") ->  | C47: =IF($B47<>"",RPSN!E30,"") ->  | E47: =IF($B47<>"",RPSN!I30,"") ->  | F47: =IF($B47<>"",RPSN!J30,"") ->  | G47: =IF($B47<>"",RPSN!K30,"") -> 
B48: =IF(SplDobaSplatnosti>B47,RPSN!D31,"") ->  | C48: =IF($B48<>"",RPSN!E31,"") ->  | E48: =IF($B48<>"",RPSN!I31,"") ->  | F48: =IF($B48<>"",RPSN!J31,"") ->  | G48: =IF($B48<>"",RPSN!K31,"") -> 
B49: =IF(SplDobaSplatnosti>B48,RPSN!D32,"") ->  | C49: =IF($B49<>"",RPSN!E32,"") ->  | E49: =IF($B49<>"",RPSN!I32,"") ->  | F49: =IF($B49<>"",RPSN!J32,"") ->  | G49: =IF($B49<>"",RPSN!K32,"") -> 
B50: =IF(SplDobaSplatnosti>B49,RPSN!D33,"") ->  | C50: =IF($B50<>"",RPSN!E33,"") ->  | E50: =IF($B50<>"",RPSN!I33,"") ->  | F50: =IF($B50<>"",RPSN!J33,"") ->  | G50: =IF($B50<>"",RPSN!K33,"") -> 
B51: =IF(SplDobaSplatnosti>B50,RPSN!D34,"") ->  | C51: =IF($B51<>"",RPSN!E34,"") ->  | E51: =IF($B51<>"",RPSN!I34,"") ->  | F51: =IF($B51<>"",RPSN!J34,"") ->  | G51: =IF($B51<>"",RPSN!K34,"") -> 
B52: =IF(SplDobaSplatnosti>B51,RPSN!D35,"") ->  | C52: =IF($B52<>"",RPSN!E35,"") ->  | E52: =IF($B52<>"",RPSN!I35,"") ->  | F52: =IF($B52<>"",RPSN!J35,"") ->  | G52: =IF($B52<>"",RPSN!K35,"") -> 
B53: =IF(SplDobaSplatnosti>B52,RPSN!D36,"") ->  | C53: =IF($B53<>"",RPSN!E36,"") ->  | E53: =IF($B53<>"",RPSN!I36,"") ->  | F53: =IF($B53<>"",RPSN!J36,"") ->  | G53: =IF($B53<>"",RPSN!K36,"") -> 
B54: =IF(SplDobaSplatnosti>B53,RPSN!D37,"") ->  | C54: =IF($B54<>"",RPSN!E37,"") ->  | E54: =IF($B54<>"",RPSN!I37,"") ->  | F54: =IF($B54<>"",RPSN!J37,"") ->  | G54: =IF($B54<>"",RPSN!K37,"") -> 
B55: =IF(SplDobaSplatnosti>B54,RPSN!D38,"") ->  | C55: =IF($B55<>"",RPSN!E38,"") ->  | E55: =IF($B55<>"",RPSN!I38,"") ->  | F55: =IF($B55<>"",RPSN!J38,"") ->  | G55: =IF($B55<>"",RPSN!K38,"") -> 
B56: =IF(SplDobaSplatnosti>B55,RPSN!D39,"") ->  | C56: =IF($B56<>"",RPSN!E39,"") ->  | E56: =IF($B56<>"",RPSN!I39,"") ->  | F56: =IF($B56<>"",RPSN!J39,"") ->  | G56: =IF($B56<>"",RPSN!K39,"") -> 
B57: =IF(SplDobaSplatnosti>B56,RPSN!D40,"") ->  | C57: =IF($B57<>"",RPSN!E40,"") ->  | E57: =IF($B57<>"",RPSN!I40,"") ->  | F57: =IF($B57<>"",RPSN!J40,"") ->  | G57: =IF($B57<>"",RPSN!K40,"") -> 
B58: =IF(SplDobaSplatnosti>B57,RPSN!D41,"") ->  | C58: =IF($B58<>"",RPSN!E41,"") ->  | E58: =IF($B58<>"",RPSN!I41,"") ->  | F58: =IF($B58<>"",RPSN!J41,"") ->  | G58: =IF($B58<>"",RPSN!K41,"") -> 
B59: =IF(SplDobaSplatnosti>B58,RPSN!D42,"") ->  | C59: =IF($B59<>"",RPSN!E42,"") ->  | E59: =IF($B59<>"",RPSN!I42,"") ->  | F59: =IF($B59<>"",RPSN!J42,"") ->  | G59: =IF($B59<>"",RPSN!K42,"") -> 
B60: =IF(SplDobaSplatnosti>B59,RPSN!D43,"") ->  | C60: =IF($B60<>"",RPSN!E43,"") ->  | E60: =IF($B60<>"",RPSN!I43,"") ->  | F60: =IF($B60<>"",RPSN!J43,"") ->  | G60: =IF($B60<>"",RPSN!K43,"") -> 
B61: =IF(SplDobaSplatnosti>B60,RPSN!D44,"") ->  | C61: =IF($B61<>"",RPSN!E44,"") ->  | E61: =IF($B61<>"",RPSN!I44,"") ->  | F61: =IF($B61<>"",RPSN!J44,"") ->  | G61: =IF($B61<>"",RPSN!K44,"") -> 
B62: =IF(SplDobaSplatnosti>B61,RPSN!D45,"") ->  | C62: =IF($B62<>"",RPSN!E45,"") ->  | E62: =IF($B62<>"",RPSN!I45,"") ->  | F62: =IF($B62<>"",RPSN!J45,"") ->  | G62: =IF($B62<>"",RPSN!K45,"") -> 
B63: =IF(SplDobaSplatnosti>B62,RPSN!D46,"") ->  | C63: =IF($B63<>"",RPSN!E46,"") ->  | E63: =IF($B63<>"",RPSN!I46,"") ->  | F63: =IF($B63<>"",RPSN!J46,"") ->  | G63: =IF($B63<>"",RPSN!K46,"") -> 
B64: =IF(SplDobaSplatnosti>B63,RPSN!D47,"") ->  | C64: =IF($B64<>"",RPSN!E47,"") ->  | E64: =IF($B64<>"",RPSN!I47,"") ->  | F64: =IF($B64<>"",RPSN!J47,"") ->  | G64: =IF($B64<>"",RPSN!K47,"") -> 
B65: =IF(SplDobaSplatnosti>B64,RPSN!D48,"") ->  | C65: =IF($B65<>"",RPSN!E48,"") ->  | E65: =IF($B65<>"",RPSN!I48,"") ->  | F65: =IF($B65<>"",RPSN!J48,"") ->  | G65: =IF($B65<>"",RPSN!K48,"") -> 
B66: =IF(SplDobaSplatnosti>B65,RPSN!D49,"") ->  | C66: =IF($B66<>"",RPSN!E49,"") ->  | E66: =IF($B66<>"",RPSN!I49,"") ->  | F66: =IF($B66<>"",RPSN!J49,"") ->  | G66: =IF($B66<>"",RPSN!K49,"") -> 
B67: =IF(SplDobaSplatnosti>B66,RPSN!D50,"") ->  | C67: =IF($B67<>"",RPSN!E50,"") ->  | E67: =IF($B67<>"",RPSN!I50,"") ->  | F67: =IF($B67<>"",RPSN!J50,"") ->  | G67: =IF($B67<>"",RPSN!K50,"") -> 
B68: =IF(SplDobaSplatnosti>B67,RPSN!D51,"") ->  | C68: =IF($B68<>"",RPSN!E51,"") ->  | E68: =IF($B68<>"",RPSN!I51,"") ->  | F68: =IF($B68<>"",RPSN!J51,"") ->  | G68: =IF($B68<>"",RPSN!K51,"") -> 
B69: =IF(SplDobaSplatnosti>B68,RPSN!D52,"") ->  | C69: =IF($B69<>"",RPSN!E52,"") ->  | E69: =IF($B69<>"",RPSN!I52,"") ->  | F69: =IF($B69<>"",RPSN!J52,"") ->  | G69: =IF($B69<>"",RPSN!K52,"") -> 
B70: =IF(SplDobaSplatnosti>B69,RPSN!D53,"") ->  | C70: =IF($B70<>"",RPSN!E53,"") ->  | E70: =IF($B70<>"",RPSN!I53,"") ->  | F70: =IF($B70<>"",RPSN!J53,"") ->  | G70: =IF($B70<>"",RPSN!K53,"") -> 
B71: =IF(SplDobaSplatnosti>B70,RPSN!D54,"") ->  | C71: =IF($B71<>"",RPSN!E54,"") ->  | E71: =IF($B71<>"",RPSN!I54,"") ->  | F71: =IF($B71<>"",RPSN!J54,"") ->  | G71: =IF($B71<>"",RPSN!K54,"") -> 
B72: =IF(SplDobaSplatnosti>B71,RPSN!D55,"") ->  | C72: =IF($B72<>"",RPSN!E55,"") ->  | E72: =IF($B72<>"",RPSN!I55,"") ->  | F72: =IF($B72<>"",RPSN!J55,"") ->  | G72: =IF($B72<>"",RPSN!K55,"") -> 
B73: =IF(SplDobaSplatnosti>B72,RPSN!D56,"") ->  | C73: =IF($B73<>"",RPSN!E56,"") ->  | E73: =IF($B73<>"",RPSN!I56,"") ->  | F73: =IF($B73<>"",RPSN!J56,"") ->  | G73: =IF($B73<>"",RPSN!K56,"") -> 
B74: =IF(SplDobaSplatnosti>B73,RPSN!D57,"") ->  | C74: =IF($B74<>"",RPSN!E57,"") ->  | E74: =IF($B74<>"",RPSN!I57,"") ->  | F74: =IF($B74<>"",RPSN!J57,"") ->  | G74: =IF($B74<>"",RPSN!K57,"") -> 
B75: =IF(SplDobaSplatnosti>B74,RPSN!D58,"") ->  | C75: =IF($B75<>"",RPSN!E58,"") ->  | E75: =IF($B75<>"",RPSN!I58,"") ->  | F75: =IF($B75<>"",RPSN!J58,"") ->  | G75: =IF($B75<>"",RPSN!K58,"") -> 
B76: =IF(SplDobaSplatnosti>B75,RPSN!D59,"") ->  | C76: =IF($B76<>"",RPSN!E59,"") ->  | E76: =IF($B76<>"",RPSN!I59,"") ->  | F76: =IF($B76<>"",RPSN!J59,"") ->  | G76: =IF($B76<>"",RPSN!K59,"") -> 
B77: =IF(SplDobaSplatnosti>B76,RPSN!D60,"") ->  | C77: =IF($B77<>"",RPSN!E60,"") ->  | E77: =IF($B77<>"",RPSN!I60,"") ->  | F77: =IF($B77<>"",RPSN!J60,"") ->  | G77: =IF($B77<>"",RPSN!K60,"") -> 
B78: =IF(SplDobaSplatnosti>B77,RPSN!D61,"") ->  | C78: =IF($B78<>"",RPSN!E61,"") ->  | E78: =IF($B78<>"",RPSN!I61,"") ->  | F78: =IF($B78<>"",RPSN!J61,"") ->  | G78: =IF($B78<>"",RPSN!K61,"") -> 
B79: =IF(SplDobaSplatnosti>B78,RPSN!D62,"") ->  | C79: =IF($B79<>"",RPSN!E62,"") ->  | E79: =IF($B79<>"",RPSN!I62,"") ->  | F79: =IF($B79<>"",RPSN!J62,"") ->  | G79: =IF($B79<>"",RPSN!K62,"") -> 
B80: =IF(SplDobaSplatnosti>B79,RPSN!D63,"") ->  | C80: =IF($B80<>"",RPSN!E63,"") ->  | E80: =IF($B80<>"",RPSN!I63,"") ->  | F80: =IF($B80<>"",RPSN!J63,"") ->  | G80: =IF($B80<>"",RPSN!K63,"") -> 
B81: =IF(SplDobaSplatnosti>B80,RPSN!D64,"") ->  | C81: =IF($B81<>"",RPSN!E64,"") ->  | E81: =IF($B81<>"",RPSN!I64,"") ->  | F81: =IF($B81<>"",RPSN!J64,"") ->  | G81: =IF($B81<>"",RPSN!K64,"") -> 
B82: =IF(SplDobaSplatnosti>B81,RPSN!D65,"") ->  | C82: =IF($B82<>"",RPSN!E65,"") ->  | E82: =IF($B82<>"",RPSN!I65,"") ->  | F82: =IF($B82<>"",RPSN!J65,"") ->  | G82: =IF($B82<>"",RPSN!K65,"") -> 
B83: =IF(SplDobaSplatnosti>B82,RPSN!D66,"") ->  | C83: =IF($B83<>"",RPSN!E66,"") ->  | E83: =IF($B83<>"",RPSN!I66,"") ->  | F83: =IF($B83<>"",RPSN!J66,"") ->  | G83: =IF($B83<>"",RPSN!K66,"") -> 
B84: =IF(SplDobaSplatnosti>B83,RPSN!D67,"") ->  | C84: =IF($B84<>"",RPSN!E67,"") ->  | E84: =IF($B84<>"",RPSN!I67,"") ->  | F84: =IF($B84<>"",RPSN!J67,"") ->  | G84: =IF($B84<>"",RPSN!K67,"") -> 
B85: =IF(SplDobaSplatnosti>B84,RPSN!D68,"") ->  | C85: =IF($B85<>"",RPSN!E68,"") ->  | D85: =IF($B85<>"",F85-E85,"") ->  | E85: =IF($B85<>"",RPSN!I68,"") ->  | F85: =IF($B85<>"",RPSN!J68,"") ->  | G85: =IF($B85<>"",RPSN!K68,"") -> 
B86: =IF(SplDobaSplatnosti>B85,RPSN!D69,"") ->  | C86: =IF($B86<>"",RPSN!E69,"") ->  | E86: =IF($B86<>"",RPSN!I69,"") ->  | F86: =IF($B86<>"",RPSN!J69,"") ->  | G86: =IF($B86<>"",RPSN!K69,"") -> 
B87: =IF(SplDobaSplatnosti>B86,RPSN!D70,"") ->  | C87: =IF($B87<>"",RPSN!E70,"") ->  | E87: =IF($B87<>"",RPSN!I70,"") ->  | F87: =IF($B87<>"",RPSN!J70,"") ->  | G87: =IF($B87<>"",RPSN!K70,"") -> 
B88: =IF(SplDobaSplatnosti>B87,RPSN!D71,"") ->  | C88: =IF($B88<>"",RPSN!E71,"") ->  | E88: =IF($B88<>"",RPSN!I71,"") ->  | F88: =IF($B88<>"",RPSN!J71,"") ->  | G88: =IF($B88<>"",RPSN!K71,"") -> 
B89: =IF(SplDobaSplatnosti>B88,RPSN!D72,"") ->  | C89: =IF($B89<>"",RPSN!E72,"") ->  | E89: =IF($B89<>"",RPSN!I72,"") ->  | F89: =IF($B89<>"",RPSN!J72,"") ->  | G89: =IF($B89<>"",RPSN!K72,"") -> 
B90: =IF(SplDobaSplatnosti>B89,RPSN!D73,"") ->  | C90: =IF($B90<>"",RPSN!E73,"") ->  | E90: =IF($B90<>"",RPSN!I73,"") ->  | F90: =IF($B90<>"",RPSN!J73,"") ->  | G90: =IF($B90<>"",RPSN!K73,"") -> 
B91: =IF(SplDobaSplatnosti>B90,RPSN!D74,"") ->  | C91: =IF($B91<>"",RPSN!E74,"") ->  | E91: =IF($B91<>"",RPSN!I74,"") ->  | F91: =IF($B91<>"",RPSN!J74,"") ->  | G91: =IF($B91<>"",RPSN!K74,"") -> 
B92: =IF(SplDobaSplatnosti>B91,RPSN!D75,"") ->  | C92: =IF($B92<>"",RPSN!E75,"") ->  | E92: =IF($B92<>"",RPSN!I75,"") ->  | F92: =IF($B92<>"",RPSN!J75,"") ->  | G92: =IF($B92<>"",RPSN!K75,"") -> 
B93: =IF(SplDobaSplatnosti>B92,RPSN!D76,"") ->  | C93: =IF($B93<>"",RPSN!E76,"") ->  | E93: =IF($B93<>"",RPSN!I76,"") ->  | F93: =IF($B93<>"",RPSN!J76,"") ->  | G93: =IF($B93<>"",RPSN!K76,"") -> 
B94: =IF(SplDobaSplatnosti>B93,RPSN!D77,"") ->  | C94: =IF($B94<>"",RPSN!E77,"") ->  | E94: =IF($B94<>"",RPSN!I77,"") ->  | F94: =IF($B94<>"",RPSN!J77,"") ->  | G94: =IF($B94<>"",RPSN!K77,"") -> 
B95: =IF(SplDobaSplatnosti>B94,RPSN!D78,"") ->  | C95: =IF($B95<>"",RPSN!E78,"") ->  | E95: =IF($B95<>"",RPSN!I78,"") ->  | F95: =IF($B95<>"",RPSN!J78,"") ->  | G95: =IF($B95<>"",RPSN!K78,"") -> 
B96: =IF(SplDobaSplatnosti>B95,RPSN!D79,"") ->  | C96: =IF($B96<>"",RPSN!E79,"") ->  | E96: =IF($B96<>"",RPSN!I79,"") ->  | F96: =IF($B96<>"",RPSN!J79,"") ->  | G96: =IF($B96<>"",RPSN!K79,"") -> 
B97: =IF(SplDobaSplatnosti>B96,RPSN!D80,"") ->  | C97: =IF($B97<>"",RPSN!E80,"") ->  | E97: =IF($B97<>"",RPSN!I80,"") ->  | F97: =IF($B97<>"",RPSN!J80,"") ->  | G97: =IF($B97<>"",RPSN!K80,"") -> 
B98: =IF(SplDobaSplatnosti>B97,RPSN!D81,"") ->  | C98: =IF($B98<>"",RPSN!E81,"") ->  | E98: =IF($B98<>"",RPSN!I81,"") ->  | F98: =IF($B98<>"",RPSN!J81,"") ->  | G98: =IF($B98<>"",RPSN!K81,"") -> 
B99: =IF(SplDobaSplatnosti>B98,RPSN!D82,"") ->  | C99: =IF($B99<>"",RPSN!E82,"") ->  | E99: =IF($B99<>"",RPSN!I82,"") ->  | F99: =IF($B99<>"",RPSN!J82,"") ->  | G99: =IF($B99<>"",RPSN!K82,"") -> 
B100: =IF(SplDobaSplatnosti>B99,RPSN!D83,"") ->  | C100: =IF($B100<>"",RPSN!E83,"") ->  | E100: =IF($B100<>"",RPSN!I83,"") ->  | F100: =IF($B100<>"",RPSN!J83,"") ->  | G100: =IF($B100<>"",RPSN!K83,"") -> 
B101: =IF(SplDobaSplatnosti>B100,RPSN!D84,"") ->  | C101: =IF($B101<>"",RPSN!E84,"") ->  | E101: =IF($B101<>"",RPSN!I84,"") ->  | F101: =IF($B101<>"",RPSN!J84,"") ->  | G101: =IF($B101<>"",RPSN!K84,"") -> 
B102: =IF(SplDobaSplatnosti>B101,RPSN!D85,"") ->  | C102: =IF($B102<>"",RPSN!E85,"") ->  | E102: =IF($B102<>"",RPSN!I85,"") ->  | F102: =IF($B102<>"",RPSN!J85,"") ->  | G102: =IF($B102<>"",RPSN!K85,"") -> 
B103: =IF(SplDobaSplatnosti>B102,RPSN!D86,"") ->  | C103: =IF($B103<>"",RPSN!E86,"") ->  | E103: =IF($B103<>"",RPSN!I86,"") ->  | F103: =IF($B103<>"",RPSN!J86,"") ->  | G103: =IF($B103<>"",RPSN!K86,"") -> 
B104: =IF(SplDobaSplatnosti>B103,RPSN!D87,"") ->  | C104: =IF($B104<>"",RPSN!E87,"") ->  | E104: =IF($B104<>"",RPSN!I87,"") ->  | F104: =IF($B104<>"",RPSN!J87,"") ->  | G104: =IF($B104<>"",RPSN!K87,"") -> 
B105: =IF(SplDobaSplatnosti>B104,RPSN!D88,"") ->  | C105: =IF($B105<>"",RPSN!E88,"") ->  | E105: =IF($B105<>"",RPSN!I88,"") ->  | F105: =IF($B105<>"",RPSN!J88,"") ->  | G105: =IF($B105<>"",RPSN!K88,"") -> 
B106: =IF(SplDobaSplatnosti>B105,RPSN!D89,"") ->  | C106: =IF($B106<>"",RPSN!E89,"") ->  | E106: =IF($B106<>"",RPSN!I89,"") ->  | F106: =IF($B106<>"",RPSN!J89,"") ->  | G106: =IF($B106<>"",RPSN!K89,"") -> 
B107: =IF(SplDobaSplatnosti>B106,RPSN!D90,"") ->  | C107: =IF($B107<>"",RPSN!E90,"") ->  | E107: =IF($B107<>"",RPSN!I90,"") ->  | F107: =IF($B107<>"",RPSN!J90,"") ->  | G107: =IF($B107<>"",RPSN!K90,"") -> 
B108: =IF(SplDobaSplatnosti>B107,RPSN!D91,"") ->  | C108: =IF($B108<>"",RPSN!E91,"") ->  | E108: =IF($B108<>"",RPSN!I91,"") ->  | F108: =IF($B108<>"",RPSN!J91,"") ->  | G108: =IF($B108<>"",RPSN!K91,"") -> 
B109: =IF(SplDobaSplatnosti>B108,RPSN!D92,"") ->  | C109: =IF($B109<>"",RPSN!E92,"") ->  | E109: =IF($B109<>"",RPSN!I92,"") ->  | F109: =IF($B109<>"",RPSN!J92,"") ->  | G109: =IF($B109<>"",RPSN!K92,"") -> 
B110: =IF(SplDobaSplatnosti>B109,RPSN!D93,"") ->  | C110: =IF($B110<>"",RPSN!E93,"") ->  | E110: =IF($B110<>"",RPSN!I93,"") ->  | F110: =IF($B110<>"",RPSN!J93,"") ->  | G110: =IF($B110<>"",RPSN!K93,"") -> 
B111: =IF(SplDobaSplatnosti>B110,RPSN!D94,"") ->  | C111: =IF($B111<>"",RPSN!E94,"") ->  | E111: =IF($B111<>"",RPSN!I94,"") ->  | F111: =IF($B111<>"",RPSN!J94,"") ->  | G111: =IF($B111<>"",RPSN!K94,"") -> 
B112: =IF(SplDobaSplatnosti>B111,RPSN!D95,"") ->  | C112: =IF($B112<>"",RPSN!E95,"") ->  | E112: =IF($B112<>"",RPSN!I95,"") ->  | F112: =IF($B112<>"",RPSN!J95,"") ->  | G112: =IF($B112<>"",RPSN!K95,"") -> 
B113: =IF(SplDobaSplatnosti>B112,RPSN!D96,"") ->  | C113: =IF($B113<>"",RPSN!E96,"") ->  | E113: =IF($B113<>"",RPSN!I96,"") ->  | F113: =IF($B113<>"",RPSN!J96,"") ->  | G113: =IF($B113<>"",RPSN!K96,"") -> 
B114: =IF(SplDobaSplatnosti>B113,RPSN!D97,"") ->  | C114: =IF($B114<>"",RPSN!E97,"") ->  | E114: =IF($B114<>"",RPSN!I97,"") ->  | F114: =IF($B114<>"",RPSN!J97,"") ->  | G114: =IF($B114<>"",RPSN!K97,"") -> 
B115: =IF(SplDobaSplatnosti>B114,RPSN!D98,"") ->  | C115: =IF($B115<>"",RPSN!E98,"") ->  | E115: =IF($B115<>"",RPSN!I98,"") ->  | F115: =IF($B115<>"",RPSN!J98,"") ->  | G115: =IF($B115<>"",RPSN!K98,"") -> 
B116: =IF(SplDobaSplatnosti>B115,RPSN!D99,"") ->  | C116: =IF($B116<>"",RPSN!E99,"") ->  | E116: =IF($B116<>"",RPSN!I99,"") ->  | F116: =IF($B116<>"",RPSN!J99,"") ->  | G116: =IF($B116<>"",RPSN!K99,"") -> 
B117: =IF(SplDobaSplatnosti>B116,RPSN!D100,"") ->  | C117: =IF($B117<>"",RPSN!E100,"") ->  | E117: =IF($B117<>"",RPSN!I100,"") ->  | F117: =IF($B117<>"",RPSN!J100,"") ->  | G117: =IF($B117<>"",RPSN!K100,"") -> 
B118: =IF(SplDobaSplatnosti>B117,RPSN!D101,"") ->  | C118: =IF($B118<>"",RPSN!E101,"") ->  | E118: =IF($B118<>"",RPSN!I101,"") ->  | F118: =IF($B118<>"",RPSN!J101,"") ->  | G118: =IF($B118<>"",RPSN!K101,"") -> 
B119: =IF(SplDobaSplatnosti>B118,RPSN!D102,"") ->  | C119: =IF($B119<>"",RPSN!E102,"") ->  | E119: =IF($B119<>"",RPSN!I102,"") ->  | F119: =IF($B119<>"",RPSN!J102,"") ->  | G119: =IF($B119<>"",RPSN!K102,"") -> 
B120: =IF(SplDobaSplatnosti>B119,RPSN!D103,"") ->  | C120: =IF($B120<>"",RPSN!E103,"") ->  | E120: =IF($B120<>"",RPSN!I103,"") ->  | F120: =IF($B120<>"",RPSN!J103,"") ->  | G120: =IF($B120<>"",RPSN!K103,"") -> 
B121: =IF(SplDobaSplatnosti>B120,RPSN!D104,"") ->  | C121: =IF($B121<>"",RPSN!E104,"") ->  | E121: =IF($B121<>"",RPSN!I104,"") ->  | F121: =IF($B121<>"",RPSN!J104,"") ->  | G121: =IF($B121<>"",RPSN!K104,"") -> 
B122: =IF(SplDobaSplatnosti>B121,RPSN!D105,"") ->  | C122: =IF($B122<>"",RPSN!E105,"") ->  | E122: =IF($B122<>"",RPSN!I105,"") ->  | F122: =IF($B122<>"",RPSN!J105,"") ->  | G122: =IF($B122<>"",RPSN!K105,"") -> 
B123: =IF(SplDobaSplatnosti>B122,RPSN!D106,"") ->  | C123: =IF($B123<>"",RPSN!E106,"") ->  | E123: =IF($B123<>"",RPSN!I106,"") ->  | F123: =IF($B123<>"",RPSN!J106,"") ->  | G123: =IF($B123<>"",RPSN!K106,"") -> 
B124: =IF(SplDobaSplatnosti>B123,RPSN!D107,"") ->  | C124: =IF($B124<>"",RPSN!E107,"") ->  | E124: =IF($B124<>"",RPSN!I107,"") ->  | F124: =IF($B124<>"",RPSN!J107,"") ->  | G124: =IF($B124<>"",RPSN!K107,"") -> 
B125: =IF(SplDobaSplatnosti>B124,RPSN!D108,"") ->  | C125: =IF($B125<>"",RPSN!E108,"") ->  | E125: =IF($B125<>"",RPSN!I108,"") ->  | F125: =IF($B125<>"",RPSN!J108,"") ->  | G125: =IF($B125<>"",RPSN!K108,"") -> 
B126: =IF(SplDobaSplatnosti>B125,RPSN!D109,"") ->  | C126: =IF($B126<>"",RPSN!E109,"") ->  | E126: =IF($B126<>"",RPSN!I109,"") ->  | F126: =IF($B126<>"",RPSN!J109,"") ->  | G126: =IF($B126<>"",RPSN!K109,"") -> 
B127: =IF(SplDobaSplatnosti>B126,RPSN!D110,"") ->  | C127: =IF($B127<>"",RPSN!E110,"") ->  | E127: =IF($B127<>"",RPSN!I110,"") ->  | F127: =IF($B127<>"",RPSN!J110,"") ->  | G127: =IF($B127<>"",RPSN!K110,"") -> 
B128: =IF(SplDobaSplatnosti>B127,RPSN!D111,"") ->  | C128: =IF($B128<>"",RPSN!E111,"") ->  | E128: =IF($B128<>"",RPSN!I111,"") ->  | F128: =IF($B128<>"",RPSN!J111,"") ->  | G128: =IF($B128<>"",RPSN!K111,"") -> 
B129: =IF(SplDobaSplatnosti>B128,RPSN!D112,"") ->  | C129: =IF($B129<>"",RPSN!E112,"") ->  | E129: =IF($B129<>"",RPSN!I112,"") ->  | F129: =IF($B129<>"",RPSN!J112,"") ->  | G129: =IF($B129<>"",RPSN!K112,"") -> 
B130: =IF(SplDobaSplatnosti>B129,RPSN!D113,"") ->  | C130: =IF($B130<>"",RPSN!E113,"") ->  | E130: =IF($B130<>"",RPSN!I113,"") ->  | F130: =IF($B130<>"",RPSN!J113,"") ->  | G130: =IF($B130<>"",RPSN!K113,"") -> 
B131: =IF(SplDobaSplatnosti>B130,RPSN!D114,"") ->  | C131: =IF($B131<>"",RPSN!E114,"") ->  | E131: =IF($B131<>"",RPSN!I114,"") ->  | F131: =IF($B131<>"",RPSN!J114,"") ->  | G131: =IF($B131<>"",RPSN!K114,"") -> 
B132: =IF(SplDobaSplatnosti>B131,RPSN!D115,"") ->  | C132: =IF($B132<>"",RPSN!E115,"") ->  | E132: =IF($B132<>"",RPSN!I115,"") ->  | F132: =IF($B132<>"",RPSN!J115,"") ->  | G132: =IF($B132<>"",RPSN!K115,"") -> 
B133: =IF(SplDobaSplatnosti>B132,RPSN!D116,"") ->  | C133: =IF($B133<>"",RPSN!E116,"") ->  | E133: =IF($B133<>"",RPSN!I116,"") ->  | F133: =IF($B133<>"",RPSN!J116,"") ->  | G133: =IF($B133<>"",RPSN!K116,"") -> 
B134: =IF(SplDobaSplatnosti>B133,RPSN!D117,"") ->  | C134: =IF($B134<>"",RPSN!E117,"") ->  | E134: =IF($B134<>"",RPSN!I117,"") ->  | F134: =IF($B134<>"",RPSN!J117,"") ->  | G134: =IF($B134<>"",RPSN!K117,"") -> 
B135: =IF(SplDobaSplatnosti>B134,RPSN!D118,"") ->  | C135: =IF($B135<>"",RPSN!E118,"") ->  | E135: =IF($B135<>"",RPSN!I118,"") ->  | F135: =IF($B135<>"",RPSN!J118,"") ->  | G135: =IF($B135<>"",RPSN!K118,"") -> 
B136: =IF(SplDobaSplatnosti>B135,RPSN!D119,"") ->  | C136: =IF($B136<>"",RPSN!E119,"") ->  | E136: =IF($B136<>"",RPSN!I119,"") ->  | F136: =IF($B136<>"",RPSN!J119,"") ->  | G136: =IF($B136<>"",RPSN!K119,"") -> 
B137: =IF(SplDobaSplatnosti>B136,RPSN!D120,"") ->  | C137: =IF($B137<>"",RPSN!E120,"") ->  | E137: =IF($B137<>"",RPSN!I120,"") ->  | F137: =IF($B137<>"",RPSN!J120,"") ->  | G137: =IF($B137<>"",RPSN!K120,"") -> 
B138: =IF(SplDobaSplatnosti>B137,RPSN!D121,"") ->  | C138: =IF($B138<>"",RPSN!E121,"") ->  | E138: =IF($B138<>"",RPSN!I121,"") ->  | F138: =IF($B138<>"",RPSN!J121,"") ->  | G138: =IF($B138<>"",RPSN!K121,"") -> 
B139: =IF(SplDobaSplatnosti>B138,RPSN!D122,"") ->  | C139: =IF($B139<>"",RPSN!E122,"") ->  | E139: =IF($B139<>"",RPSN!I122,"") ->  | F139: =IF($B139<>"",RPSN!J122,"") ->  | G139: =IF($B139<>"",RPSN!K122,"") -> 
B140: =IF(SplDobaSplatnosti>B139,RPSN!D123,"") ->  | C140: =IF($B140<>"",RPSN!E123,"") ->  | E140: =IF($B140<>"",RPSN!I123,"") ->  | F140: =IF($B140<>"",RPSN!J123,"") ->  | G140: =IF($B140<>"",RPSN!K123,"") -> 
B141: =IF(SplDobaSplatnosti>B140,RPSN!D124,"") ->  | C141: =IF($B141<>"",RPSN!E124,"") ->  | E141: =IF($B141<>"",RPSN!I124,"") ->  | F141: =IF($B141<>"",RPSN!J124,"") ->  | G141: =IF($B141<>"",RPSN!K124,"") -> 
B142: =IF(SplDobaSplatnosti>B141,RPSN!D125,"") ->  | C142: =IF($B142<>"",RPSN!E125,"") ->  | E142: =IF($B142<>"",RPSN!I125,"") ->  | F142: =IF($B142<>"",RPSN!J125,"") ->  | G142: =IF($B142<>"",RPSN!K125,"") -> 
B143: =IF(SplDobaSplatnosti>B142,RPSN!D126,"") ->  | C143: =IF($B143<>"",RPSN!E126,"") ->  | E143: =IF($B143<>"",RPSN!I126,"") ->  | F143: =IF($B143<>"",RPSN!J126,"") ->  | G143: =IF($B143<>"",RPSN!K126,"") -> 
B144: =IF(SplDobaSplatnosti>B143,RPSN!D127,"") ->  | C144: =IF($B144<>"",RPSN!E127,"") ->  | E144: =IF($B144<>"",RPSN!I127,"") ->  | F144: =IF($B144<>"",RPSN!J127,"") ->  | G144: =IF($B144<>"",RPSN!K127,"") -> 
B145: =IF(SplDobaSplatnosti>B144,RPSN!D128,"") ->  | C145: =IF($B145<>"",RPSN!E128,"") ->  | E145: =IF($B145<>"",RPSN!I128,"") ->  | F145: =IF($B145<>"",RPSN!J128,"") ->  | G145: =IF($B145<>"",RPSN!K128,"") -> 
B146: =IF(SplDobaSplatnosti>B145,RPSN!D129,"") ->  | C146: =IF($B146<>"",RPSN!E129,"") ->  | E146: =IF($B146<>"",RPSN!I129,"") ->  | F146: =IF($B146<>"",RPSN!J129,"") ->  | G146: =IF($B146<>"",RPSN!K129,"") -> 
B147: =IF(SplDobaSplatnosti>B146,RPSN!D130,"") ->  | C147: =IF($B147<>"",RPSN!E130,"") ->  | E147: =IF($B147<>"",RPSN!I130,"") ->  | F147: =IF($B147<>"",RPSN!J130,"") ->  | G147: =IF($B147<>"",RPSN!K130,"") -> 
B148: =IF(SplDobaSplatnosti>B147,RPSN!D131,"") ->  | C148: =IF($B148<>"",RPSN!E131,"") ->  | E148: =IF($B148<>"",RPSN!I131,"") ->  | F148: =IF($B148<>"",RPSN!J131,"") ->  | G148: =IF($B148<>"",RPSN!K131,"") -> 
B149: =IF(SplDobaSplatnosti>B148,RPSN!D132,"") ->  | C149: =IF($B149<>"",RPSN!E132,"") ->  | D149: =IF($B149<>"",F149-E149,"") ->  | E149: =IF($B149<>"",RPSN!I132,"") ->  | F149: =IF($B149<>"",RPSN!J132,"") ->  | G149: =IF($B149<>"",RPSN!K132,"") -> 
B150: =IF(SplDobaSplatnosti>B149,RPSN!D133,"") ->  | C150: =IF($B150<>"",RPSN!E133,"") ->  | E150: =IF($B150<>"",RPSN!I133,"") ->  | F150: =IF($B150<>"",RPSN!J133,"") ->  | G150: =IF($B150<>"",RPSN!K133,"") -> 
B151: =IF(SplDobaSplatnosti>B150,RPSN!D134,"") ->  | C151: =IF($B151<>"",RPSN!E134,"") ->  | E151: =IF($B151<>"",RPSN!I134,"") ->  | F151: =IF($B151<>"",RPSN!J134,"") ->  | G151: =IF($B151<>"",RPSN!K134,"") -> 
B152: =IF(SplDobaSplatnosti>B151,RPSN!D135,"") ->  | C152: =IF($B152<>"",RPSN!E135,"") ->  | E152: =IF($B152<>"",RPSN!I135,"") ->  | F152: =IF($B152<>"",RPSN!J135,"") ->  | G152: =IF($B152<>"",RPSN!K135,"") -> 
B153: =IF(SplDobaSplatnosti>B152,RPSN!D136,"") ->  | C153: =IF($B153<>"",RPSN!E136,"") ->  | E153: =IF($B153<>"",RPSN!I136,"") ->  | F153: =IF($B153<>"",RPSN!J136,"") ->  | G153: =IF($B153<>"",RPSN!K136,"") -> 
B154: =IF(SplDobaSplatnosti>B153,RPSN!D137,"") ->  | C154: =IF($B154<>"",RPSN!E137,"") ->  | E154: =IF($B154<>"",RPSN!I137,"") ->  | F154: =IF($B154<>"",RPSN!J137,"") ->  | G154: =IF($B154<>"",RPSN!K137,"") -> 
B155: =IF(SplDobaSplatnosti>B154,RPSN!D138,"") ->  | C155: =IF($B155<>"",RPSN!E138,"") ->  | E155: =IF($B155<>"",RPSN!I138,"") ->  | F155: =IF($B155<>"",RPSN!J138,"") ->  | G155: =IF($B155<>"",RPSN!K138,"") -> 
B156: =IF(SplDobaSplatnosti>B155,RPSN!D139,"") ->  | C156: =IF($B156<>"",RPSN!E139,"") ->  | E156: =IF($B156<>"",RPSN!I139,"") ->  | F156: =IF($B156<>"",RPSN!J139,"") ->  | G156: =IF($B156<>"",RPSN!K139,"") -> 
B157: =IF(SplDobaSplatnosti>B156,RPSN!D140,"") ->  | C157: =IF($B157<>"",RPSN!E140,"") ->  | E157: =IF($B157<>"",RPSN!I140,"") ->  | F157: =IF($B157<>"",RPSN!J140,"") ->  | G157: =IF($B157<>"",RPSN!K140,"") -> 
B158: =IF(SplDobaSplatnosti>B157,RPSN!D141,"") ->  | C158: =IF($B158<>"",RPSN!E141,"") ->  | E158: =IF($B158<>"",RPSN!I141,"") ->  | F158: =IF($B158<>"",RPSN!J141,"") ->  | G158: =IF($B158<>"",RPSN!K141,"") -> 
B159: =IF(SplDobaSplatnosti>B158,RPSN!D142,"") ->  | C159: =IF($B159<>"",RPSN!E142,"") ->  | E159: =IF($B159<>"",RPSN!I142,"") ->  | F159: =IF($B159<>"",RPSN!J142,"") ->  | G159: =IF($B159<>"",RPSN!K142,"") -> 
B160: =IF(SplDobaSplatnosti>B159,RPSN!D143,"") ->  | C160: =IF($B160<>"",RPSN!E143,"") ->  | E160: =IF($B160<>"",RPSN!I143,"") ->  | F160: =IF($B160<>"",RPSN!J143,"") ->  | G160: =IF($B160<>"",RPSN!K143,"") -> 
B161: =IF(SplDobaSplatnosti>B160,RPSN!D144,"") ->  | C161: =IF($B161<>"",RPSN!E144,"") ->  | E161: =IF($B161<>"",RPSN!I144,"") ->  | F161: =IF($B161<>"",RPSN!J144,"") ->  | G161: =IF($B161<>"",RPSN!K144,"") -> 
B162: =IF(SplDobaSplatnosti>B161,RPSN!D145,"") ->  | C162: =IF($B162<>"",RPSN!E145,"") ->  | E162: =IF($B162<>"",RPSN!I145,"") ->  | F162: =IF($B162<>"",RPSN!J145,"") ->  | G162: =IF($B162<>"",RPSN!K145,"") -> 
B163: =IF(SplDobaSplatnosti>B162,RPSN!D146,"") ->  | C163: =IF($B163<>"",RPSN!E146,"") ->  | E163: =IF($B163<>"",RPSN!I146,"") ->  | F163: =IF($B163<>"",RPSN!J146,"") ->  | G163: =IF($B163<>"",RPSN!K146,"") -> 
B164: =IF(SplDobaSplatnosti>B163,RPSN!D147,"") ->  | C164: =IF($B164<>"",RPSN!E147,"") ->  | E164: =IF($B164<>"",RPSN!I147,"") ->  | F164: =IF($B164<>"",RPSN!J147,"") ->  | G164: =IF($B164<>"",RPSN!K147,"") -> 
B165: =IF(SplDobaSplatnosti>B164,RPSN!D148,"") ->  | C165: =IF($B165<>"",RPSN!E148,"") ->  | E165: =IF($B165<>"",RPSN!I148,"") ->  | F165: =IF($B165<>"",RPSN!J148,"") ->  | G165: =IF($B165<>"",RPSN!K148,"") -> 
B166: =IF(SplDobaSplatnosti>B165,RPSN!D149,"") ->  | C166: =IF($B166<>"",RPSN!E149,"") ->  | E166: =IF($B166<>"",RPSN!I149,"") ->  | F166: =IF($B166<>"",RPSN!J149,"") ->  | G166: =IF($B166<>"",RPSN!K149,"") -> 
B167: =IF(SplDobaSplatnosti>B166,RPSN!D150,"") ->  | C167: =IF($B167<>"",RPSN!E150,"") ->  | E167: =IF($B167<>"",RPSN!I150,"") ->  | F167: =IF($B167<>"",RPSN!J150,"") ->  | G167: =IF($B167<>"",RPSN!K150,"") -> 
B168: =IF(SplDobaSplatnosti>B167,RPSN!D151,"") ->  | C168: =IF($B168<>"",RPSN!E151,"") ->  | E168: =IF($B168<>"",RPSN!I151,"") ->  | F168: =IF($B168<>"",RPSN!J151,"") ->  | G168: =IF($B168<>"",RPSN!K151,"") -> 
B169: =IF(SplDobaSplatnosti>B168,RPSN!D152,"") ->  | C169: =IF($B169<>"",RPSN!E152,"") ->  | E169: =IF($B169<>"",RPSN!I152,"") ->  | F169: =IF($B169<>"",RPSN!J152,"") ->  | G169: =IF($B169<>"",RPSN!K152,"") -> 
B170: =IF(SplDobaSplatnosti>B169,RPSN!D153,"") ->  | C170: =IF($B170<>"",RPSN!E153,"") ->  | E170: =IF($B170<>"",RPSN!I153,"") ->  | F170: =IF($B170<>"",RPSN!J153,"") ->  | G170: =IF($B170<>"",RPSN!K153,"") -> 
B171: =IF(SplDobaSplatnosti>B170,RPSN!D154,"") ->  | C171: =IF($B171<>"",RPSN!E154,"") ->  | E171: =IF($B171<>"",RPSN!I154,"") ->  | F171: =IF($B171<>"",RPSN!J154,"") ->  | G171: =IF($B171<>"",RPSN!K154,"") -> 
B172: =IF(SplDobaSplatnosti>B171,RPSN!D155,"") ->  | C172: =IF($B172<>"",RPSN!E155,"") ->  | E172: =IF($B172<>"",RPSN!I155,"") ->  | F172: =IF($B172<>"",RPSN!J155,"") ->  | G172: =IF($B172<>"",RPSN!K155,"") -> 
B173: =IF(SplDobaSplatnosti>B172,RPSN!D156,"") ->  | C173: =IF($B173<>"",RPSN!E156,"") ->  | E173: =IF($B173<>"",RPSN!I156,"") ->  | F173: =IF($B173<>"",RPSN!J156,"") ->  | G173: =IF($B173<>"",RPSN!K156,"") -> 
B174: =IF(SplDobaSplatnosti>B173,RPSN!D157,"") ->  | C174: =IF($B174<>"",RPSN!E157,"") ->  | E174: =IF($B174<>"",RPSN!I157,"") ->  | F174: =IF($B174<>"",RPSN!J157,"") ->  | G174: =IF($B174<>"",RPSN!K157,"") -> 
B175: =IF(SplDobaSplatnosti>B174,RPSN!D158,"") ->  | C175: =IF($B175<>"",RPSN!E158,"") ->  | E175: =IF($B175<>"",RPSN!I158,"") ->  | F175: =IF($B175<>"",RPSN!J158,"") ->  | G175: =IF($B175<>"",RPSN!K158,"") -> 
B176: =IF(SplDobaSplatnosti>B175,RPSN!D159,"") ->  | C176: =IF($B176<>"",RPSN!E159,"") ->  | E176: =IF($B176<>"",RPSN!I159,"") ->  | F176: =IF($B176<>"",RPSN!J159,"") ->  | G176: =IF($B176<>"",RPSN!K159,"") -> 
B177: =IF(SplDobaSplatnosti>B176,RPSN!D160,"") ->  | C177: =IF($B177<>"",RPSN!E160,"") ->  | E177: =IF($B177<>"",RPSN!I160,"") ->  | F177: =IF($B177<>"",RPSN!J160,"") ->  | G177: =IF($B177<>"",RPSN!K160,"") -> 
B178: =IF(SplDobaSplatnosti>B177,RPSN!D161,"") ->  | C178: =IF($B178<>"",RPSN!E161,"") ->  | E178: =IF($B178<>"",RPSN!I161,"") ->  | F178: =IF($B178<>"",RPSN!J161,"") ->  | G178: =IF($B178<>"",RPSN!K161,"") -> 
B179: =IF(SplDobaSplatnosti>B178,RPSN!D162,"") ->  | C179: =IF($B179<>"",RPSN!E162,"") ->  | E179: =IF($B179<>"",RPSN!I162,"") ->  | F179: =IF($B179<>"",RPSN!J162,"") ->  | G179: =IF($B179<>"",RPSN!K162,"") -> 
B180: =IF(SplDobaSplatnosti>B179,RPSN!D163,"") ->  | C180: =IF($B180<>"",RPSN!E163,"") ->  | E180: =IF($B180<>"",RPSN!I163,"") ->  | F180: =IF($B180<>"",RPSN!J163,"") ->  | G180: =IF($B180<>"",RPSN!K163,"") -> 
B181: =IF(SplDobaSplatnosti>B180,RPSN!D164,"") ->  | C181: =IF($B181<>"",RPSN!E164,"") ->  | E181: =IF($B181<>"",RPSN!I164,"") ->  | F181: =IF($B181<>"",RPSN!J164,"") ->  | G181: =IF($B181<>"",RPSN!K164,"") -> 
B182: =IF(SplDobaSplatnosti>B181,RPSN!D165,"") ->  | C182: =IF($B182<>"",RPSN!E165,"") ->  | E182: =IF($B182<>"",RPSN!I165,"") ->  | F182: =IF($B182<>"",RPSN!J165,"") ->  | G182: =IF($B182<>"",RPSN!K165,"") -> 
B183: =IF(SplDobaSplatnosti>B182,RPSN!D166,"") ->  | C183: =IF($B183<>"",RPSN!E166,"") ->  | E183: =IF($B183<>"",RPSN!I166,"") ->  | F183: =IF($B183<>"",RPSN!J166,"") ->  | G183: =IF($B183<>"",RPSN!K166,"") -> 
B184: =IF(SplDobaSplatnosti>B183,RPSN!D167,"") ->  | C184: =IF($B184<>"",RPSN!E167,"") ->  | E184: =IF($B184<>"",RPSN!I167,"") ->  | F184: =IF($B184<>"",RPSN!J167,"") ->  | G184: =IF($B184<>"",RPSN!K167,"") -> 
B185: =IF(SplDobaSplatnosti>B184,RPSN!D168,"") ->  | C185: =IF($B185<>"",RPSN!E168,"") ->  | E185: =IF($B185<>"",RPSN!I168,"") ->  | F185: =IF($B185<>"",RPSN!J168,"") ->  | G185: =IF($B185<>"",RPSN!K168,"") -> 
B186: =IF(SplDobaSplatnosti>B185,RPSN!D169,"") ->  | C186: =IF($B186<>"",RPSN!E169,"") ->  | E186: =IF($B186<>"",RPSN!I169,"") ->  | F186: =IF($B186<>"",RPSN!J169,"") ->  | G186: =IF($B186<>"",RPSN!K169,"") -> 
B187: =IF(SplDobaSplatnosti>B186,RPSN!D170,"") ->  | C187: =IF($B187<>"",RPSN!E170,"") ->  | E187: =IF($B187<>"",RPSN!I170,"") ->  | F187: =IF($B187<>"",RPSN!J170,"") ->  | G187: =IF($B187<>"",RPSN!K170,"") -> 
B188: =IF(SplDobaSplatnosti>B187,RPSN!D171,"") ->  | C188: =IF($B188<>"",RPSN!E171,"") ->  | E188: =IF($B188<>"",RPSN!I171,"") ->  | F188: =IF($B188<>"",RPSN!J171,"") ->  | G188: =IF($B188<>"",RPSN!K171,"") -> 
B189: =IF(SplDobaSplatnosti>B188,RPSN!D172,"") ->  | C189: =IF($B189<>"",RPSN!E172,"") ->  | E189: =IF($B189<>"",RPSN!I172,"") ->  | F189: =IF($B189<>"",RPSN!J172,"") ->  | G189: =IF($B189<>"",RPSN!K172,"") -> 
B190: =IF(SplDobaSplatnosti>B189,RPSN!D173,"") ->  | C190: =IF($B190<>"",RPSN!E173,"") ->  | E190: =IF($B190<>"",RPSN!I173,"") ->  | F190: =IF($B190<>"",RPSN!J173,"") ->  | G190: =IF($B190<>"",RPSN!K173,"") -> 
B191: =IF(SplDobaSplatnosti>B190,RPSN!D174,"") ->  | C191: =IF($B191<>"",RPSN!E174,"") ->  | E191: =IF($B191<>"",RPSN!I174,"") ->  | F191: =IF($B191<>"",RPSN!J174,"") ->  | G191: =IF($B191<>"",RPSN!K174,"") -> 
B192: =IF(SplDobaSplatnosti>B191,RPSN!D175,"") ->  | C192: =IF($B192<>"",RPSN!E175,"") ->  | E192: =IF($B192<>"",RPSN!I175,"") ->  | F192: =IF($B192<>"",RPSN!J175,"") ->  | G192: =IF($B192<>"",RPSN!K175,"") -> 
B193: =IF(SplDobaSplatnosti>B192,RPSN!D176,"") ->  | C193: =IF($B193<>"",RPSN!E176,"") ->  | E193: =IF($B193<>"",RPSN!I176,"") ->  | F193: =IF($B193<>"",RPSN!J176,"") ->  | G193: =IF($B193<>"",RPSN!K176,"") -> 
B194: =IF(SplDobaSplatnosti>B193,RPSN!D177,"") ->  | C194: =IF($B194<>"",RPSN!E177,"") ->  | E194: =IF($B194<>"",RPSN!I177,"") ->  | F194: =IF($B194<>"",RPSN!J177,"") ->  | G194: =IF($B194<>"",RPSN!K177,"") -> 
B195: =IF(SplDobaSplatnosti>B194,RPSN!D178,"") ->  | C195: =IF($B195<>"",RPSN!E178,"") ->  | E195: =IF($B195<>"",RPSN!I178,"") ->  | F195: =IF($B195<>"",RPSN!J178,"") ->  | G195: =IF($B195<>"",RPSN!K178,"") -> 
B196: =IF(SplDobaSplatnosti>B195,RPSN!D179,"") ->  | C196: =IF($B196<>"",RPSN!E179,"") ->  | E196: =IF($B196<>"",RPSN!I179,"") ->  | F196: =IF($B196<>"",RPSN!J179,"") ->  | G196: =IF($B196<>"",RPSN!K179,"") -> 
B197: =IF(SplDobaSplatnosti>B196,RPSN!D180,"") ->  | C197: =IF($B197<>"",RPSN!E180,"") ->  | E197: =IF($B197<>"",RPSN!I180,"") ->  | F197: =IF($B197<>"",RPSN!J180,"") ->  | G197: =IF($B197<>"",RPSN!K180,"") -> 
B198: =IF(SplDobaSplatnosti>B197,RPSN!D181,"") ->  | C198: =IF($B198<>"",RPSN!E181,"") ->  | E198: =IF($B198<>"",RPSN!I181,"") ->  | F198: =IF($B198<>"",RPSN!J181,"") ->  | G198: =IF($B198<>"",RPSN!K181,"") -> 
B199: =IF(SplDobaSplatnosti>B198,RPSN!D182,"") ->  | C199: =IF($B199<>"",RPSN!E182,"") ->  | E199: =IF($B199<>"",RPSN!I182,"") ->  | F199: =IF($B199<>"",RPSN!J182,"") ->  | G199: =IF($B199<>"",RPSN!K182,"") -> 
B200: =IF(SplDobaSplatnosti>B199,RPSN!D183,"") ->  | C200: =IF($B200<>"",RPSN!E183,"") ->  | E200: =IF($B200<>"",RPSN!I183,"") ->  | F200: =IF($B200<>"",RPSN!J183,"") ->  | G200: =IF($B200<>"",RPSN!K183,"") -> 
B201: =IF(SplDobaSplatnosti>B200,RPSN!D184,"") ->  | C201: =IF($B201<>"",RPSN!E184,"") ->  | E201: =IF($B201<>"",RPSN!I184,"") ->  | F201: =IF($B201<>"",RPSN!J184,"") ->  | G201: =IF($B201<>"",RPSN!K184,"") -> 
B202: =IF(SplDobaSplatnosti>B201,RPSN!D185,"") ->  | C202: =IF($B202<>"",RPSN!E185,"") ->  | E202: =IF($B202<>"",RPSN!I185,"") ->  | F202: =IF($B202<>"",RPSN!J185,"") ->  | G202: =IF($B202<>"",RPSN!K185,"") -> 
B203: =IF(SplDobaSplatnosti>B202,RPSN!D186,"") ->  | C203: =IF($B203<>"",RPSN!E186,"") ->  | E203: =IF($B203<>"",RPSN!I186,"") ->  | F203: =IF($B203<>"",RPSN!J186,"") ->  | G203: =IF($B203<>"",RPSN!K186,"") -> 
B204: =IF(SplDobaSplatnosti>B203,RPSN!D187,"") ->  | C204: =IF($B204<>"",RPSN!E187,"") ->  | E204: =IF($B204<>"",RPSN!I187,"") ->  | F204: =IF($B204<>"",RPSN!J187,"") ->  | G204: =IF($B204<>"",RPSN!K187,"") -> 
B205: =IF(SplDobaSplatnosti>B204,RPSN!D188,"") ->  | C205: =IF($B205<>"",RPSN!E188,"") ->  | E205: =IF($B205<>"",RPSN!I188,"") ->  | F205: =IF($B205<>"",RPSN!J188,"") ->  | G205: =IF($B205<>"",RPSN!K188,"") -> 
... 181 more rows

Sheet Parametry (hidden)
A1: Retail | K1: Privát
A2: Splátka
A3: Typ hypotéky
A4: Povolené produkty | B4: Prod Kód | C4: Product_name
A5: Hypotéka účelová | B5: 01a | C5: ucelova | P5: FIXlistPriv
A6: Hypotéka kombinovaná | B6: 01e | C6: kombinovana | K6: splátka - marketingová sleva | P6: Float
A7: Hypotéka neúčelová | B7: 03 | C7: neucelova | K7: Private banker | L7: 8.00% | N7: bez kompetence | P7: 1 ROK
A8: Hypotéka předem | B8: 04 | C8: nespecka | K8: Private banker (investment clients) | L8: 8.00% | N8: Private banker | P8: 2 ROKY
A9: Hypotéka na pronájem | B9: 05 | C9: napronajem | K9: Private manager | L9: 8.00% | N9: Private manager | P9: 3 ROKY
K10: Head of PB | L10: 8.00% | N10: Head of PB | P10: 4 ROKY
N11: Head of RET | P11: 5 LET
A12: Fixní období | P12: 6 LET
A13: 2 roky | P13: 7 LET
A14: 3 roky | P14: 8 LET
A15: 5 let | P15: 9 LET
P16: 10 LET
A18: Pojištění
A19: Spl_NevybranyTypPojisteni | B19: Spl_SouborPojisteniMesicni
A20: vyberte typ pojištění | B20: Basic | C20: 5.50% | D20: 4.95% | E20: 2024-09-02 | F20: 2025-04-15
A21: bez pojištění | B21: Standard | C21: 8.50% | D21: 8.50%
A22: měsíční pojištění | B22: Full | C22: 11% | D22: 11%
A24: Typ a účel hypotéky
A25: U hypotéka účelová | B25: U hypotéka kombinovaná | C25: U hypotéka neúčelová | D25: hypotéka předem
A27: Koupě | B27: Koupě | C27: Neúčelový | D27: Koupě
A28: Výstavba | B28: Výstavba | D28: Výstavba
A29: Rekonstrukce | B29: Rekonstrukce | E29: Poplatky fix:
A30: Refinancování úvěru | B30: Refinancování úvěru | E30: NnV | F30: Posk | G30: Odhad
A31: Vypořádání majetkových nároků | B31: Vypořádání majetkových nároků | F31: 0
A32: Zpětné proplacení vl. zdrojů | B32: Zpětné proplacení vl. zdrojů
A33: Získání práva nájmu / úhr. druž. pod. | B33: Získání práva nájmu / úhr. druž. pod. | E33: Poplatky výpočty:
E35: NnV | F35: Posk | G35: Odhad
E36: =splPoplNnV -> 1900 | F36: =splPoplPosk -> 0 | G36: =splPoplOdhad -> 7000
E38: Sleva na poplatcích
A39: Typ Nemovitosti: | B39: Nem Kód | E39: NnV | F39: Posk | G39: sazba
A40: zděná nemovitost nebo pozemek | B40: ZDE | E40: =IF(E43="","",((E36-E43)/E36)) ->  | F40: =IF(F43="","",IF(F36=0,"",((F36-F43)/F36))) ->  | G40: =IF(G43="","",IF(G36=0,"",((G36-G43)/G36))) -> 
A41: montovaný rodinný dům | B41: MON
A42: chata, chalupa | B42: PBR | E42: Výsledek
B43: PBN | E43: =IF(splPoplNnVx="","",splPoplNnVx) ->  | F43: =IF(splPoplPoskZmena="","",splPoplPoskZmena) ->  | G43: =IF(splPoplOdhadx="","",splPoplOdhadx) -> 
A45: Poplatky
A46: Poplatek za poskytnutí | B46: 8000
A47: Poplatek čerpání | B47: 1900
A51: Typ zastavované nemovitosti
A52: vyberte | B52: nespecifikovaná
A53: Expresní vyhodnocení bytové jednotky
A54: Bytová jednotka, pozemek
A55: Rodinný dům, objekt individuální rekreace
A56: Ostatní objekty
A63: Bonita
A64: Příjem ze ZČ
A65: Kč | B65: ANO
A66: EUR | B66: NE
A67: PLN
A68: ostatní
A72: Adresa zaměstnavatele
A74: Sousední státy ČR
A75: Ostatní
A79: Počet dospělých a dětí
A80: 0
A81: 1
A82: 2
A83: 3
A84: 4
A85: 5
A86: 6
A87: 7
A88: 8
A89: 9
A90: 10
B92: Výdaje na bydlení
A93: Bydliště+osob | B93: Náklad domacnosti | D93: zde neupravovat - dopočítává se:
A94: Praha1 | B94: 8774 | D94: hlavní | E94: =IF(Bydliste="mimo čr",1,+IF(AND(vykonprace="NE",adresazamest="ostatní",mena2<>"Kč",mena2<>"",Bydliste="praha"),1.5,+IF(AND(vykonprace="NE",adresazamest="ostatní",mena2<>"Kč",mena2<>"",Bydliste="ostatní kraje čr",(Dospeli+Deti)>=8),1.5,+IF(AND(vykonprace="NE",adresazamest="ostatní",mena2<>"Kč",mena2<>"",Bydliste="ostatní kraje čr",(Dospeli+Deti)<=7),Parametry!B114/Parametry!B104,1)))) -> 1 | F94: =IF(Bydliste="mimo ČR",1,+IF(AND(vykonprace="NE",adresazamest="sousední státy ČR",mena2<>"Kč",mena2<>""),1.2,IF(AND(vykonprace="NE",adresazamest="ostatní",mena2<>"Kč",mena2<>"",Bydliste="PRAHA"),1.5,IF(AND(vykonprace="NE",adresazamest="ostatní",mena2<>"Kč",mena2<>"",Bydliste="ostatní kraje čr"),Parametry!E107/Parametry!E104,1)))) -> 1
A95: Praha2 | B95: 9236 | D95: spo | E95: =IF(SpoBydliste="mimo čr",1,IF(AND(spovykonprace="NE",spoadresazamest="ostatní",spomena2<>"Kč",spomena2<>"",SpoBydliste="praha"),1.5,IF(AND(spovykonprace="NE",spoadresazamest="ostatní",spomena2<>"Kč",spomena2<>"",SpoBydliste="ostatní kraje čr",(SpoDeti+SpoDospeli)>=8),1.5,IF(AND(spovykonprace="NE",spoadresazamest="ostatní",spomena2<>"Kč",spomena2<>"",SpoBydliste="ostatní kraje čr",(SpoDeti+SpoDospeli)<=7),Parametry!B114/Parametry!B104,1)))) -> 1 | F95: =IF(SpoBydliste="mimo ČR",1,IF(AND(spovykonprace="NE",spoadresazamest="sousední státy ČR",spomena2<>"Kč",spomena2<>""),1.2,IF(AND(spovykonprace="NE",spoadresazamest="ostatní",spomena2<>"Kč",spomena2<>"",SpoBydliste="praha"),1.5,IF(AND(spovykonprace="NE",spoadresazamest="ostatní",spomena2<>"Kč",spomena2<>"",SpoBydliste="ostatní kraje čr"),Parametry!E107/Parametry!E104,1)))) -> 1
A96: Praha3 | B96: 11540
A97: Praha4 | B97: 11540
A98: Praha5 | B98: 14029
A99: Praha6 | B99: 14029
A100: Praha7 | B100: 15432 | D100: Bydliště +typ osoby | E100: Osobní náklady
A101: Praha8 | B101: 15432 | D101: PrahaDosp | E101: 5141
A102: Praha9 | B102: 15432 | D102: PrahaDite | E102: 3050
A103: Praha10 | B103: 15432 | D103: PrahaDosp2 | E103: 4646
A104: Ostatní kraje ČR1 | B104: 8774 | D104: Ostatní kraje ČRDosp | E104: 4694
A105: Ostatní kraje ČR2 | B105: 9236 | D105: Ostatní kraje ČRDite | E105: 3050
A106: Ostatní kraje ČR3 | B106: 11540 | D106: Ostatní kraje ČRDosp2 | E106: 4242
A107: Ostatní kraje ČR4 | B107: 11540 | D107: Mimo ČRDosp | E107: 7711
A108: Ostatní kraje ČR5 | B108: 14029 | D108: Mimo ČRDite | E108: 4575
A109: Ostatní kraje ČR6 | B109: 14029 | D109: Mimo ČRDosp2 | E109: 6969
A110: Ostatní kraje ČR7 | B110: 15432
A111: Ostatní kraje ČR8 | B111: 15432
A112: Ostatní kraje ČR9 | B112: 15432
A113: Ostatní kraje ČR10 | B113: 15432
A114: Mimo ČR1 | B114: 13161
A115: Mimo ČR2 | B115: 13854
A116: Mimo ČR3 | B116: 17310
A117: Mimo ČR4 | B117: 17310
A118: Mimo ČR5 | B118: 21044
A119: Mimo ČR6 | B119: 21044
A120: Mimo ČR7 | B120: 23148
A121: Mimo ČR8 | B121: 23148
A122: Mimo ČR9 | B122: 23148
A123: Mimo ČR10 | B123: 23148
A126: Výše paušálních výdajů
A127: 40%
A128: 60%
A129: 80%
A134: Nabídka | K134: RPSN
K135: ** Ve výpočtu RPSN není zohledněn poplatek za vyhodnocení rizik spojených se zástavou nemovitosti (náklady odhad nemovitosti)
A136: RPSN | K136: ="** Ve výpočtu RPSN je zohledněn poplatek "&splPoplOdhad&" Kč za vyhodnocení rizik spojených se zástavou nemovitosti (náklady odhad nemovitosti)" -> ** Ve výpočtu RPSN je zohledněn poplatek 7000 Kč za vyhodnocení rizik spojených se zástavou nemovitosti (náklady odhad nemovitosti)
A137: ** Ve výpočtu RPSN není zohledněn poplatek za vyhodnocení rizik spojených se zástavou nemovitosti (náklady odhad nemovitosti) | K137: =IF(AND(LEFT(Product_Sub,2)="04",Pojisteni_mesicni="ne"),Parametry!K136,Parametry!K135) -> ** Ve výpočtu RPSN není zohledněn poplatek za vyhodnocení rizik spojených se zástavou nemovitosti (náklady odhad nemovitosti)
A138: ="** Ve výpočtu RPSN je zohledněn poplatek "&splPoplOdhad&" Kč za vyhodnocení rizik spojených se zástavou nemovitosti (náklady odhad nemovitosti)" -> ** Ve výpočtu RPSN je zohledněn poplatek 7000 Kč za vyhodnocení rizik spojených se zástavou nemovitosti (náklady odhad nemovitosti)
A139: =IF(AND(LEFT(Product_Sub,2)="04",Pojisteni_mesicni="ne"),Parametry!A138,Parametry!A137) -> ** Ve výpočtu RPSN není zohledněn poplatek za vyhodnocení rizik spojených se zástavou nemovitosti (náklady odhad nemovitosti)
K140: Minimální hodnota nemovitosti
K141: * hodnota nemovitosti, která bude sloužit k zajištění úvěru za předpokladu, že již neslouží k zajištění jiného úvěru
A142: Minimální hodnota nemovitosti | K142: =IF(LEFT(Product_Sub,2)="04",K141,"") -> 
A143: * hodnota nemovitosti, která bude sloužit k zajištění úvěru za předpokladu, že již neslouží k zajištění jiného úvěru
A144: =IF(LEFT(Product_Sub,2)="04",A143,"") ->  | K144: Texty předpokladů
K145: ="hodnota nemovitosti, která bude sloužit k zajištění úvěru, bude ve výši alespoň "&NemHodn&" Kč, za předpokladu, že zastavovaná nemovitost neslouží k zajištění jiného úvěru" -> hodnota nemovitosti, která bude sloužit k zajištění úvěru, bude ve výši alespoň Kč, za předpokladu, že zastavovaná nemovitost neslouží k zajištění jiného úvěru
A146: Texty předpokladů | K146: =IF(LEFT(Product_Sub,2)="04","",K145) -> hodnota nemovitosti, která bude sloužit k zajištění úvěru, bude ve výši alespoň Kč, za předpokladu, že zastavovaná nemovitost neslouží k zajištění jiného úvěru
A147: ="hodnota nemovitosti, která bude sloužit k zajištění úvěru, bude ve výši alespoň "&NemHodn&" Kč, za předpokladu, že zastavovaná nemovitost neslouží k zajištění jiného úvěru" -> hodnota nemovitosti, která bude sloužit k zajištění úvěru, bude ve výši alespoň Kč, za předpokladu, že zastavovaná nemovitost neslouží k zajištění jiného úvěru
A148: =IF(LEFT(Product_Sub,2)="04","",A147) -> hodnota nemovitosti, která bude sloužit k zajištění úvěru, bude ve výši alespoň Kč, za předpokladu, že zastavovaná nemovitost neslouží k zajištění jiného úvěru

Sheet ALM_Hypo (hidden)
I1: Jen pro vnitřní potřebu ! | N1: Platnost pro období
N2: Od: | O2: 2026-03-11
N3: Do: | O3: 2026-04-26
N5: Zdroje platí
B6: Tabulka referenčních úrokových sazeb pro standardní hypotéční úvěry v CZK Česká republika | N6: Od: | O6: 2026-03-11
B7: (úvěry pro úvěry do 20 mio. CZK) | N7: Do: | O7: 2026-04-26
B9: Perioda | D9: 1 | E9: 2 | F9: 3 | G9: 4 | H9: 5 | I9: 6 | J9: 7 | K9: 8 | L9: 9 | M9: 10
B10: Typ sazby | D10: Market Rate (fixní sazba)
B11: FIX | D11: 3.68% | E11: 3.77% | F11: 3.83% | G11: 3.89% | H11: 3.94% | I11: 3.99% | J11: 4.03% | K11: 4.07% | L11: 4.11% | M11: 4.15%
B12: Typ sazby | D12: Special Refinancing Spread
B13: FIX | D13: 0.07% | E13: 0.07% | F13: 0.12% | G13: 0.15% | H13: 0.21% | I13: 0.25% | J13: 0.29% | K13: 0.34% | L13: 0.38% | M13: 0.42%
B14: Typ sazby | D14: Option Spread
B15: FIX | D15: 0.30% | E15: 0.30% | F15: 0.30% | G15: 0.30% | H15: 0.30% | I15: 0.30% | J15: 0.30% | K15: 0.30% | L15: 0.30% | M15: 0.30%
B16: Typ sazby | D16: Option Spread - prepayment option
B17: FIX | D17: 0.02% | E17: 0.02% | F17: 0.02% | G17: 0.02% | H17: 0.02% | I17: 0.02% | J17: 0.02% | K17: 0.02% | L17: 0.02% | M17: 0.02%
B18: Typ sazby | D18: Special Refinancing Spread
B19: FLOAT | D19: 0.20%
B20: Typ sazby | D20: Basis Risk Spread/Market Rate Penalty
B21: FLOAT | D21: 0.00%
B22: Typ sazby | D22: Special Refinancing Spread
B23: FLOAT2 | D23: 0.20%
B24: Typ sazby | D24: Option Spread
B25: FLOAT2 | D25: 0.39%
B26: Typ sazby | D26: Prepayment adjustment
B27: FIX | D27: 0.00% | E27: -0.01% | F27: -0.01% | G27: -0.01% | H27: -0.01% | I27: -0.02% | J27: -0.02% | K27: -0.02% | L27: -0.03% | M27: -0.04%
B28: Typ sazby | D28: Liquidity Buffer Costs
B29: FIX/FLOAT | D29: 0.01% | E29: 0.01% | F29: 0.01% | G29: 0.01% | H29: 0.01% | I29: 0.01% | J29: 0.01% | K29: 0.01% | L29: 0.01% | M29: 0.01%
B30: Typ sazby | D30: FTP Subsidy
B31: FIX | D31: 0.00% | E31: 0.00% | F31: 0.00% | G31: 0.00% | H31: 0.00% | I31: 0.00% | J31: 0.00% | K31: 0.00% | L31: 0.00% | M31: 0.00%
B33: 1 | D33: =+D11 -> 3.68% | E33: =+D13 -> 0.07% | F33: 0.02% | G33: =+D27 -> 0.00% | H33: =+D29 -> 0.01% | I33: =SUM(D33:H33) -> 3.78% | K33: 6.24%
B34: 2 | D34: =+E11 -> 3.77% | E34: =+E13 -> 0.07% | F34: 0.02% | G34: =+E27 -> -0.01% | H34: =+E29 -> 0.01% | I34: 3.86% | K34: 5.29%
B35: 3 | D35: =+F11 -> 3.83% | E35: =+F13 -> 0.12% | F35: 0.02% | G35: =+F27 -> -0.01% | H35: =+F29 -> 0.01% | I35: 3.97% | K35: 5.08%
B36: 4 | D36: =+G11 -> 3.89% | E36: =+G13 -> 0.15% | F36: 0.02% | G36: =+G27 -> -0.01% | H36: =+G29 -> 0.01% | I36: 4.06% | K36: 5.05%
B37: 5 | D37: =+H11 -> 3.94% | E37: =+H13 -> 0.21% | F37: 0.02% | G37: =+H27 -> -0.01% | H37: =+H29 -> 0.01% | I37: 4.17% | K37: 5.10%
B38: 6 | D38: =+I11 -> 3.99% | E38: =+I13 -> 0.25% | F38: 0.02% | G38: =+I27 -> -0.02% | H38: =+I29 -> 0.01% | I38: 4.25% | K38: 5.13%
B39: 7 | D39: =+J11 -> 4.03% | E39: =+J13 -> 0.29% | F39: 0.02% | G39: =+J27 -> -0.02% | H39: =+J29 -> 0.01% | I39: 4.33% | K39: 5.17%
B40: 8 | D40: =+K11 -> 4.07% | E40: =+K13 -> 0.34% | F40: 0.02% | G40: =+K27 -> -0.02% | H40: =+K29 -> 0.01% | I40: 4.42% | K40: 5.23%
B41: 9 | D41: =+L11 -> 4.11% | E41: =+L13 -> 0.38% | F41: 0.02% | G41: =+L27 -> -0.03% | I41: 4.48% | K41: 5.29%
D42: =+M11 -> 4.15% | E42: =+M13 -> 0.42% | F42: 0.02% | G42: =+M27 -> -0.04% | H42: =+M29 -> 0.01% | I42: 4.56% | K42: 5.34%
C44: Se CPI | D44: účelová 80% | E44: kombin | F44: neúčel
D45: ucelova | E45: kombinovana | F45: neucelova | G45: nespecka | H45: napronajem | J45: Nejnižší sazba
B46: 1 | C46: 1 | D46: =+J46+$H$76 -> 5.19 | E46: =+D46+$D$74 -> 5.19 | F46: =D46+$D$76 -> 5.19 | G46: =D46 -> 5.19 | H46: =E46 -> 5.19 | I46: 1 | J46: 4.99
B47: 2 | C47: 2 | D47: 4.39 | E47: =+D47+$D$74 -> 4.39 | F47: =D47+$D$76 -> 4.39 | G47: =D47 -> 4.39 | H47: =E47 -> 4.39 | I47: 2 | J47: 4.19
B48: 3 | C48: 3 | D48: 4.49 | E48: 4.49 | F48: 4.49 | G48: =D48 -> 4.49 | H48: 4.49 | I48: 3 | J48: 4.29
B49: 4 | C49: 4 | D49: 4.99 | E49: 4.99 | F49: 4.99 | G49: 4.99 | H49: 4.99 | I49: 4 | J49: 4.79
B50: 5 | C50: 5 | D50: 4.99 | E50: 4.99 | F50: 4.99 | G50: 4.99 | H50: 4.99 | I50: 5 | J50: 4.79
B51: 6 | C51: 6 | D51: 4.99 | E51: 4.99 | F51: 4.99 | G51: 4.99 | H51: 4.99 | I51: 6 | J51: 4.79
B52: 7 | C52: 7 | D52: 7.09 | E52: 7.09 | F52: 7.09 | G52: 7.09 | H52: 7.09 | I52: 7 | J52: 6.89
B53: 8 | C53: 8 | D53: 7.09 | E53: 7.09 | F53: 7.09 | G53: 7.09 | H53: 7.09 | I53: 8 | J53: 6.89
B54: 9 | C54: 9 | D54: 7.09 | E54: 7.09 | F54: 7.09 | G54: 7.09 | H54: 7.09 | I54: 9 | J54: 6.89 | M54: *
B55: 10 | C55: 10 | D55: 7.09 | E55: 7.09 | F55: 7.09 | G55: 7.09 | H55: 7.09 | I55: 10 | J55: 6.89
B56: Float | C56: 15 | D56: 5.01 | E56: 5.01 | F56: 5.01 | G56: =D56 -> 5.01 | H56: =E56 -> 5.01 | I56: Float | J56: =(+D95+D100)*100 -> 4.81
B59: bez CPI | D59: účelová 80% | E59: kombin | F59: neúčel
B60: 1 | D60: =+D46+$G$73 -> 5.49 | E60: 5.49 | F60: 5.49
B61: 2 | D61: 4.69 | E61: 4.69 | F61: 4.69
B62: 3 | D62: 4.79 | E62: 4.79 | F62: 4.79
B63: 4 | D63: 5.29 | E63: 5.29 | F63: 5.29
B64: 5 | D64: 5.29 | E64: 5.29 | F64: 5.29
B65: 6 | D65: 5.29 | E65: 5.29 | F65: 5.29
B66: 7 | D66: 7.39 | E66: 7.39 | F66: 7.39
B67: 8 | D67: 7.39 | E67: 7.39 | F67: 7.39
B68: 9 | D68: 7.39 | E68: 7.39 | F68: 7.39
B69: 10 | D69: 7.39 | E69: 7.39 | F69: 7.39
B70: Float | D70: 5.31 | E70: 5.31 | F70: 5.31
B72: Přirážka | F72: x-sell a marketingové slevy | I72: výše hypotéky
B73: LTV>80 % | D73: 0.5% | F73: CPI | G73: 0.30 | I73: 999,999 Kč
B74: Kombi | D74: 0.00 | F74: Marketingová sleva u nízkoenergetické hypotéky | G74: 0.1%
B75: Hypo pod urč. Výši | D75: =1/100 -> 0.01 | F75: Hypotéka pro mladé | G75: 0.50%
B76: Neúčelová hypotéka | D76: 0.00 | F76: Aktivita na účtu | G76: 0.20% | H76: =+G76*100 -> 0.20
D84: Klientské zdroje | E84: Zaměstnanecké (=ZSK) | G84: Zdroje bez subsidy | H84: Klientské sazby
B85: 1 | C85: 1 | D85: =+D11+D13+D17+D27+D29+D31 -> 3.78% | E85: =IF(G85>H85,H85,G85) -> 3.78% | G85: =+D11+D13+D17+D27+D29 -> 3.78% | H85: =+D46/100 -> 5.19%
B86: 2 | C86: 2 | D86: =+E11+E13+E17+E27+E29+E31 -> 3.86% | E86: 3.86% | G86: =+E11+E13+E17+E27+E29 -> 3.86% | H86: 4.39%
B87: 3 | C87: 3 | D87: =+F11+F13+F17+F27+F29+F31 -> 3.97% | E87: 3.97% | G87: =+F11+F13+F17+F27+F29 -> 3.97% | H87: 4.49%
B88: 4 | C88: 4 | D88: =+G11+G13+G17+G27+G29+G31 -> 4.06% | E88: 4.06% | G88: =+G11+G13+G17+G27+G29 -> 4.06% | H88: 4.99%
B89: 5 | C89: 5 | D89: =+H11+H13+H17+H27+H29+H31 -> 4.17% | E89: 4.17% | G89: =+H11+H13+H17+H27+H29 -> 4.17% | H89: 4.99%
B90: 6 | C90: 6 | D90: =+I11+I13+I17+I27+I29+I31 -> 4.25% | E90: 4.25% | G90: =+I11+I13+I17+I27+I29 -> 4.25% | H90: 4.99%
B91: 7 | C91: 7 | D91: =+J11+J13+J17+J27+J29+J31 -> 4.33% | E91: 4.33% | G91: =+J11+J13+J17+J27+J29 -> 4.33% | H91: 7.09%
B92: 8 | C92: 8 | D92: =+K11+K13+K17+K27+K29+K31 -> 4.42% | E92: 4.42% | G92: =+K11+K13+K17+K27+K29 -> 4.42% | H92: 7.09%
B93: 9 | C93: 9 | D93: =+L11+L13+L17+L27+L29+L31 -> 4.49% | E93: 4.49% | G93: =+L11+L13+L17+L27+L29 -> 4.49% | H93: 7.09%
B94: 10 | C94: 10 | D94: =+M11+M13+M17+M27+M29+M31 -> 4.56% | E94: 4.56% | G94: =+M11+M13+M17+M27+M29 -> 4.56% | H94: 7.09%
B95: Float | C95: 15 | D95: =+D96+D19+D21 -> 3.74% | E95: =+D96+D19+D21 -> 3.74%
B96: BMR | D96: 3.54%
B100: Přirážka | D100: 1.07%

Sheet DefProd (hidden)
A1: TYP_ID | B1: PRODUCT | C1: VYSE_MIN | D1: MINTEXT | E1: VYSE_MAX | F1: MAXTEXT | G1: FIXACE | H1: SPLATNOST_MIN | I1: SPLATNOST_MAX | J1: MAXBEZALM | K1: VEK_MIN | L1: VEK_MAX | M1: LTV Max
A2: 01a_N | B2: Hypoteční úvěr účelový rezidenční Individual | C2: 200000 | D2: 200.000 | E2: 999999999 | F2: 999.999.999 | G2: Float, 1 rok, 2 roky, 3 roky, 5 let, 7 let, 10 let, 4 roky, 5 let, 6 let, 7 let, 8 let, 9 let, 10 let | H2: 12 | I2: 300 | J2: 20000000 | K2: 18 | L2: 99 | M2: 100
A3: 01a_S | B3: Hypoteční úvěr účelový rezidenční Individual | C3: 200000 | D3: 200.000 | E3: 999999999 | F3: 999.999.999 | G3: Float, 1 rok, 2 roky, 3 roky, 5 let, 7 let, 10 let, 4 roky, 5 let, 6 let, 7 let, 8 let, 9 let, 10 let | H3: 12 | I3: 360 | J3: 20000000 | K3: 18 | L3: 99 | M3: 100
A4: 01e_N | B4: Hypoteční úvěr účelový rezidenční Twin | C4: 200000 | D4: 200.000 | E4: 999999999 | F4: 999.999.999 | G4: Float, 1 rok, 2 roky, 3 roky, 5 let, 7 let, 10 let, 4 roky, 5 let, 6 let, 7 let, 8 let, 9 let, 10 let | H4: 12 | I4: 300 | J4: 20000000 | K4: 18 | L4: 99 | M4: 100
A5: 01e_S | B5: Hypoteční úvěr účelový rezidenční Twin | C5: 200000 | D5: 200.000 | E5: 999999999 | F5: 999.999.999 | G5: Float, 1 rok, 2 roky, 3 roky, 5 let, 7 let, 10 let, 4 roky, 5 let, 6 let, 7 let, 8 let, 9 let, 10 let | H5: 12 | I5: 360 | J5: 20000000 | K5: 18 | L5: 99 | M5: 100
A6: 03_N | B6: Hypoteční úvěr neúčelový | C6: 200000 | D6: 200.000 | E6: 999999999 | F6: 999.999.999 | G6: Float, 1 rok, 2 roky, 3 roky, 5 let, 7 let, 10 let, 4 roky, 5 let, 6 let, 7 let, 8 let, 9 let, 10 let | H6: 12 | I6: 240 | J6: 20000000 | K6: 18 | L6: 99 | M6: 70
A7: 03_S | B7: Hypoteční úvěr neúčelový | C7: 200000 | D7: 200.000 | E7: 999999999 | F7: 999.999.999 | G7: Float, 1 rok, 2 roky, 3 roky, 5 let, 7 let, 10 let, 4 roky, 5 let, 6 let, 7 let, 8 let, 9 let, 10 let | H7: 12 | I7: 240 | J7: 20000000 | K7: 18 | L7: 99 | M7: 70
A8: 04_N | B8: Hypotéka předem | C8: 200000 | D8: 200.000 | E8: 999999999 | F8: 999.999.999 | G8: Float, 1 rok, 2 roky, 3 roky, 5 let, 7 let, 10 let, 4 roky, 5 let, 6 let, 7 let, 8 let, 9 let, 10 let | H8: 12 | I8: 360 | M8: 80
A9: 04_S | B9: Hypotéka předem | C9: 200000 | D9: 200.000 | E9: 999999999 | F9: 999.999.999 | G9: Float, 1 rok, 2 roky, 3 roky, 5 let, 7 let, 10 let, 4 roky, 5 let, 6 let, 7 let, 8 let, 9 let, 10 let | H9: 12 | I9: 360 | M9: 80
A10: 05_N | B10: Hypotéka na pronájem | C10: 200000 | D10: 200.000 | E10: 999999999 | F10: 999.999.999 | G10: Float, 1 rok, 2 roky, 3 roky, 5 let, 7 let, 10 let, 4 roky, 5 let, 6 let, 7 let, 8 let, 9 let, 10 let | H10: 12 | I10: 360 | M10: 70
A11: 05_S | B11: Hypotéka na pronájem | C11: 200000 | D11: 200.000 | E11: 999999999 | F11: 999.999.999 | G11: Float, 1 rok, 2 roky, 3 roky, 5 let, 7 let, 10 let, 4 roky, 5 let, 6 let, 7 let, 8 let, 9 let, 10 let | H11: 12 | I11: 360 | M11: 70

Sheet FIN_CLC (hidden)
R1: 0 | S1: roků | T1: měsíců
C2: Pomocník při výpočtu splatnosti v EUROSIGovských úvěrových aplikacích | J2: max délka dle typu produktu | K2: =+IF(ProduktList="U hypotéka neúčelová",240,360) -> 360 | R2: 1 | S2: rok | T2: měsíc
R3: 2 | S3: roky | T3: měsíce
C4: Zadejte typ úvěru | N4: 4 | R4: 3 | S4: roky | T4: měsíce
M5: =+TODAY() -> 2026-03-06 | N5: =IF(TODAY()<+DATE(YEAR(TODAY()),MONTH(TODAY()),DAY(25)),+DATE(YEAR(TODAY()),MONTH(TODAY()),DAY(25)),EDATE(+DATE(YEAR(TODAY()),MONTH(TODAY()),DAY(25)),1)) -> 2026-03-25 | O5: =DAY(N5) -> 25 | R5: 4 | S5: roky | T5: měsíce
D6: FIN - parametry: | N6: =MID(I8,1,30) -> 
N7: =MID(I12,1,30) -> 
D8: ASD | E8: (doba čerpání) | G8: =DatumDocerpani ->  | H8: =IF(G8=1,"měsíc",IF(OR(G8=2,G8=3,G8=4),"měsíce","měsíců")) ->  | I8: =IF(OR(N4=1,N4=3),IF(G8>0,"POZOR!!! Vyplňte pouze hodnotu: 0",""),IF(OR(N4=2,N4=5),IF(G8>6,"POZOR!!! Vyplňte pouze hodnotu: 0-6",""),IF(N4=7,IF(G8>6,"POZOR!!! Vyplňte pouze hodnotu: 0-6",""),IF(N4=6,IF(G8>18,"POZOR!!! Vyplňte pouze hodnotu: 0-18",""),IF(G8>24,"POZOR!!! Vyplňte pouze hodnotu: 0-24",""))))) ->  | N8: =FinKonecUveru-Vek/365 -> 
N9: =+Vek -> 00:00:00 | O9: datum narození
D10: =IF(N4=5,"","PSD") -> PSD | E10: =IF(N4=5,"Odklad splátek","(počet úrokových plateb po vyčerpání)") -> (počet úrokových plateb po vyčerpání) | G10: 1 | H10: =IF(G10=1,"měsíc",IF(OR(G10=2,G10=3,G10=4),"měsíce","měsíců")) -> měsíc | I10: =IF(N4=8,IF(G10<12,"POZOR!!! Vyplňte pouze hodnotu: 12 a více","Uveďte dobu splatnosti x 12 měsíců"),IF(N4=3,"K výpočtu použijte kalkulačku na Studentskou půjčku",IF(N4=5,IF(G10>12,"POZOR!!! Vyplňte pouze hodnotu: 1-12",""),IF(N4<>5,IF(G10=1,"","POZOR!!! Vyplňte pouze hodnotu: 1"),IF(G10=1,"","POZOR!!! Vyplňte pouze hodnotu: 1"))))) -> 
N11: =+N9+67*365 -> 1966-12-14
D12: AMM | E12: počet splátek | G12: =Splatnost -> 0 | H12: =IF(G12=1,"měsíc",IF(OR(G12=2,G12=3,G12=4),"měsíce","měsíců")) -> měsíců | I12: =IF(N4=8,IF(G12>1,"POZOR!!! Vyplňte pouze hodnotu: 1",""),IF(N4=2,IF(G12>120,"POZOR!!! Vyplňte pouze hodnotu: 1-120 - dle platné metodiky",""),IF(N4=1,IF(G12>60,"POZOR!!! Vyplňte pouze hodnotu: 1-60 - dle platné metodiky",""),IF(OR(N4=3,N4=7),IF(G12>120,"POZOR!!! Vyplňte pouze hodnotu: 1-120",""),IF(OR(N4=4,N4=5),IF(G12>480,"POZOR!!! Vyplňte pouze hodnotu: 1-480",""),IF(N4=6,IF(G12>180,"POZOR!!! Vyplňte pouze hodnotu: 1-180",""),"")))))) ->  | N12: =+YEAR(N9)+67 -> 1967
N13: =+EDATE(N9,67*12) -> 1966-12-31
D14: Duration | G14: =IF(N4=5,G12+G8,G12+G10+G8) ->  | H14: =IF(G14=1,"měsíc",IF(OR(G14=2,G14=3,G14=4),"měsíce","měsíců")) -> 
N15: =+DAY(25) -> 25
D16: Předpoklad podpisu smlouvy do: | G16: =CLC_PodpisSml ->  | H16: =IF(G16=1,"měsíce","měsíců") ->  | I16: 0
M17: start | N17: =IF(TODAY()<+DATE(YEAR(TODAY()),MONTH(TODAY()),DAY(25)),+DATE(YEAR(TODAY()),MONTH(TODAY()),DAY(25)),EDATE(+DATE(YEAR(TODAY()),MONTH(TODAY()),DAY(25)),1)) -> 2026-03-25 | O17: =+N17 -> 2026-03-25
D18: Délka fixního období | G18: =IF(LEFT(Fix_obdobi,1)>0,LEFT(Fix_obdobi,2),0) -> 3 | H18: =IF(G18=1,"rok",IF(OR(G18=2,G18=3,G18=4),"roky","roků")) -> roků | M18: cíl | N18: =IF(25<DAY(Vek),DATE(YEAR(EDATE(Vek,67*12)),MONTH(EDATE(Vek,67*12)),DAY(25)),DATE(YEAR(EDATE(Vek,67*12-1)),MONTH(EDATE(Vek,67*12-1)),DAY(25))) -> 1966-11-25 | O18: =+EDATE(O17,100) -> 2034-07-25 | P18: poslední možná splátky
N19: =+N18-N17 -> -21670 | O19: =+EDATE(N17,N20-1) ->  | T19: =23*12+9 -> 285
F20: =IF(OR(N4=1,N4=2,N4=3),"19.",IF(OR(N4=4,N4=5),"24.","9.")) -> 24. | G20: =IF(O5<25,EDATE(N5,G18*12),EDATE(N5,G18*12+1)) -> 2029-04-25 | M20: jen splátky | N20: =IF(+DATEDIF(N17,N18,"M")-G8-G16>K2,K2,+DATEDIF(N17,N18,"M")-G8-G16) ->  | O20: =+DATEDIF(O17,O18,"M") -> 100 | Q20: =+IF(ISERR(N23),1,0) -> 0
D21: Předpokládané datum konce fixního období | F21: =DATE(YEAR(G20),MONTH(G20),LEFT(F20,2)) -> 2029-04-24
N22: =+O35/12 -> -61 | O22: =+IF(+DATEDIF(N35,N36,"M")-G8-I16>K2,EDATE(N35,K2+G8+I16),N36) ->  | T22: =+DATEDIF(N17,N18,"M") -> 
D23: CL&C - datum splatnosti | N23: =FIXED(ROUNDDOWN(N22,0),0) -> -61 | O23: =FIXED((+N22-N23)*12,0) -> 0
N24: =+"Pro započítávání příjmů do bonity je maximální doba splatnosti "&N23&IFERROR(+VLOOKUP(N23,$R$1:$S$5,2,0)," let")&"." -> Pro započítávání příjmů do bonity je maximální doba splatnosti -61 let.
F25: =IF(OR(N4=1,N4=2,N4=3),"20.",IF(OR(N4=4,N4=5),"25.","10.")) -> 25. | G25: =EDATE(N5,IF(OR(N4=1,N4=2,N4=3),G12+G16,G14+G16-1)) ->  | I25: 1960-04-24 | N25: ="(Včetně doby na podpis smlouvy.Splatnost je kalkulována do " &N41&" let věku klienta. Výpočet nezahrnuje délku čerpání.;)" -> (Včetně doby na podpis smlouvy.Splatnost je kalkulována do -61 let věku klienta. Výpočet nezahrnuje délku čerpání.;)
D26: vypočtené dle parametrů ve FINu | F26: =DATE(YEAR(G25),MONTH(G25),LEFT(F25,2)) ->  | I26: =+FinKonecUveru-I25 ->  | J26: =+I26/365 ->  | O26: =IF(ISNA(+VLOOKUP(N23,$R$2:$S$5,2,0)),"let",+VLOOKUP(N23,$R$2:$S$5,2,0)) -> let
O27: =IF(ISNA(+VLOOKUP(O23,$R$1:$T$5,3,0))," měsíců",+VLOOKUP(O23,$R$1:$T$5,3,0)) -> měsíců
B28: V případě, že se Vám v poli "Předpokládané datum konce fixního období" a "CL&C - datum splatnosti" nezobrazuje správně datum (v poli je #NÁZEV?), musíte si povolit rozšířené funkce a poté excel znovu otevřít: Nástroje -> Doplňky -> a zde zaškrnout pole Analysis ToolPak
N30: Maximální doba splatnosti je xx let a x měsíců (do dd.mm.yyyy).
N31: (Včetně doby na podpis smlouvy a období čerpání. Splatnost je kalkulována do 67 let věku klienta)
H35: datum narození | I35: =+Vek -> 00:00:00 | M35: podpis | N35: =+I36 -> 2026-03-06 | O35: =+IF(N41>30,30,N41)*12 -> -732 | P35: 2021-01-25
H36: start | I36: =+TODAY() -> 2026-03-06 | M36: poslední možná | N36: =+DATE(N41+YEAR(I35),12,25) -> 3739-12-25 | P36: =+EDATE(P35,1) -> 2021-02-25
H37: věk ke startu | I37: =+DATEDIF(I35,I36,"y") -> 126.00 | P37: =+EDATE(P36,1) -> 2021-03-25
I38: =+G12/12 -> 0 | P38: 2021-04-25
D39: 2018-07-01 | H39: věk ke konci | I39: =+DATEDIF(I35,I42,"Y") -> 126.00 | P39: 2021-05-25
D40: 2018-08-01 | E40: 1 | H40: konec úvěru | I40: =+YEAR(I42) -> 2026 | P40: 2021-06-25
D41: 2018-09-01 | E41: 2 | H41: první platba | I41: =IF(OR(N4=1,N4=2,N4=3),"20.",IF(OR(N4=4,N4=5),"25.","10.")) -> 25. | J41: =EDATE(N5,G12) -> 2026-03-25 | M41: max délka | N41: =+IF(I37<=59,70,65)-I37 -> -61.00 | P41: 2021-07-25
D42: 2018-10-01 | E42: 3 | H42: poslední splátka | I42: =DATE(YEAR(J41),MONTH(J41),LEFT(I41,2)) -> 2026-03-25 | P42: 2021-08-25
D43: 2018-11-01 | E43: 4 | P43: 2021-09-25
D44: 2018-12-01 | E44: 5 | G44: 65 | H44: final | I44: =+IF(AND(I37<=59,I38>N41),"KO","OK") -> OK | K44: =+IF(AND(I37<=59,I39>70),"KO","OK") -> OK | P44: 2021-10-25
D45: 2019-01-01 | E45: 6 | G45: 70 | I45: =+IF(AND(I37>59,I39>65,I38>N41),"KO","OK") -> KO | K45: =+IF(AND(I37>59,I39>65),"KO","OK") -> KO | P45: 2021-11-25
D46: 2019-02-01 | E46: 7 | P46: 2021-12-25
D47: 2019-03-01 | E47: 8 | P47: 2022-01-25
D48: 2019-04-01 | E48: 9 | P48: 2022-02-25
D49: 2019-05-01 | E49: 10 | P49: 2022-03-25
D50: 2019-06-01 | E50: 11 | P50: 2022-04-25
D51: 2019-07-01 | E51: 12 | P51: 2022-05-25
D52: 2019-08-01 | E52: 13 | P52: 2022-06-25
D53: 2019-09-01 | E53: 14 | P53: 2022-07-25
D54: 2019-10-01 | E54: 15 | P54: 2022-08-25
D55: 2019-11-01 | E55: 16 | P55: 2022-09-25
D56: 2019-12-01 | E56: 17 | P56: 2022-10-25
D57: 2020-01-01 | E57: 18 | P57: 2022-11-25
D58: 2020-02-01 | E58: 19 | P58: 2022-12-25
D59: 2020-03-01 | E59: 20 | P59: 2023-01-25
D60: 2020-04-01 | E60: 21 | P60: 2023-02-25
D61: 2020-05-01 | E61: 22 | P61: 2023-03-25
D62: 2020-06-01 | E62: 23 | P62: 2023-04-25
D63: 2020-07-01 | E63: 24 | P63: 2023-05-25
D64: 2020-08-01 | E64: 25 | P64: 2023-06-25
D65: 2020-09-01 | E65: 26 | P65: 2023-07-25
D66: 2020-10-01 | E66: 27 | P66: 2023-08-25
D67: 2020-11-01 | E67: 28 | P67: 2023-09-25
D68: 2020-12-01 | E68: 29 | P68: 2023-10-25
D69: 2021-01-01 | E69: 30 | P69: 2023-11-25
D70: 2021-02-01 | E70: 31 | P70: 2023-12-25
D71: 2021-03-01 | E71: 32 | P71: 2024-01-25
D72: 2021-04-01 | E72: 33 | P72: 2024-02-25
D73: 2021-05-01 | E73: 34 | P73: 2024-03-25
D74: 2021-06-01 | E74: 35 | P74: 2024-04-25
D75: 2021-07-01 | E75: 36 | P75: 2024-05-25
D76: 2021-08-01 | E76: 37 | P76: 2024-06-25
D77: 2021-09-01 | E77: 38 | P77: 2024-07-25
D78: 2021-10-01 | E78: 39 | P78: 2024-08-25
D79: 2021-11-01 | E79: 40 | P79: 2024-09-25
D80: 2021-12-01 | E80: 41 | P80: 2024-10-25
D81: 2022-01-01 | E81: 42 | P81: 2024-11-25
D82: 2022-02-01 | E82: 43 | P82: 2024-12-25
D83: 2022-03-01 | E83: 44 | P83: 2025-01-25
D84: 2022-04-01 | E84: 45 | P84: 2025-02-25
D85: 2022-05-01 | E85: 46 | P85: 2025-03-25
D86: 2022-06-01 | E86: 47 | P86: 2025-04-25
D87: 2022-07-01 | E87: 48 | P87: 2025-05-25
D88: 2022-08-01 | E88: 49 | P88: 2025-06-25
D89: 2022-09-01 | E89: 50 | P89: 2025-07-25
D90: 2022-10-01 | E90: 51 | P90: 2025-08-25
D91: 2022-11-01 | E91: 52 | P91: 2025-09-25
D92: 2022-12-01 | E92: 53 | P92: 2025-10-25
D93: 2023-01-01 | E93: 54 | P93: 2025-11-25
D94: 2023-02-01 | E94: 55 | P94: 2025-12-25
D95: 2023-03-01 | E95: 56 | P95: 2026-01-25
D96: 2023-04-01 | E96: 57 | P96: 2026-02-25
D97: 2023-05-01 | E97: 58 | P97: 2026-03-25
D98: 2023-06-01 | E98: 59 | P98: 2026-04-25
D99: 2023-07-01 | E99: 60 | P99: 2026-05-25
D100: 2023-08-01 | E100: 61 | P100: 2026-06-25
D101: 2023-09-01 | E101: 62 | P101: =+EDATE(P100,1) -> 2026-07-25
D102: 2023-10-01 | E102: 63 | P102: 2026-08-25
D103: 2023-11-01 | E103: 64 | P103: 2026-09-25
D104: 2023-12-01 | E104: 65 | P104: 2026-10-25
D105: 2024-01-01 | E105: 66 | P105: 2026-11-25
D106: 2024-02-01 | E106: 67 | P106: 2026-12-25
D107: 2024-03-01 | E107: 68 | P107: 2027-01-25
D108: 2024-04-01 | E108: 69 | P108: 2027-02-25
D109: 2024-05-01 | E109: 70 | P109: 2027-03-25
D110: 2024-06-01 | E110: 71 | P110: 2027-04-25
D111: 2024-07-01 | E111: 72 | P111: 2027-05-25
D112: 2024-08-01 | E112: 73 | P112: 2027-06-25
D113: 2024-09-01 | E113: 74 | P113: 2027-07-25
D114: 2024-10-01 | E114: 75 | P114: 2027-08-25
D115: 2024-11-01 | E115: 76 | P115: 2027-09-25
D116: 2024-12-01 | E116: 77 | P116: 2027-10-25
D117: 2025-01-01 | E117: 78 | P117: 2027-11-25
D118: 2025-02-01 | E118: 79 | P118: 2027-12-25
D119: 2025-03-01 | E119: 80 | P119: 2028-01-25
D120: 2025-04-01 | E120: 81 | P120: 2028-02-25
D121: 2025-05-01 | E121: 82 | P121: 2028-03-25
D122: 2025-06-01 | E122: 83 | P122: 2028-04-25
D123: 2025-07-01 | E123: 84 | P123: 2028-05-25
D124: 2025-08-01 | E124: 85 | P124: 2028-06-25
D125: 2025-09-01 | E125: 86 | P125: 2028-07-25
D126: 2025-10-01 | E126: 87 | P126: 2028-08-25
D127: 2025-11-01 | E127: 88 | P127: 2028-09-25
D128: 2025-12-01 | E128: 89 | P128: 2028-10-25
D129: 2026-01-01 | E129: 90 | P129: 2028-11-25
D130: 2026-02-01 | E130: 91 | P130: 2028-12-25
D131: 2026-03-01 | E131: 92 | P131: 2029-01-25
D132: 2026-04-01 | E132: 93 | P132: 2029-02-25
D133: 2026-05-01 | E133: 94 | P133: 2029-03-25
D134: 2026-06-01 | E134: 95 | P134: 2029-04-25
D135: 2026-07-01 | E135: 96 | P135: 2029-05-25
D136: 2026-08-01 | E136: 97 | P136: 2029-06-25
D137: 2026-09-01 | E137: 98 | P137: 2029-07-25
D138: 2026-10-01 | E138: 99 | P138: 2029-08-25
D139: 2026-11-01 | E139: 100 | P139: 2029-09-25
D140: 2026-12-01 | E140: 101 | P140: 2029-10-25
D141: 2027-01-01 | E141: 102 | P141: 2029-11-25
D142: 2027-02-01 | E142: 103 | P142: 2029-12-25
D143: 2027-03-01 | E143: 104 | P143: 2030-01-25
D144: 2027-04-01 | E144: 105 | P144: 2030-02-25
D145: 2027-05-01 | E145: 106 | P145: 2030-03-25
D146: 2027-06-01 | E146: 107 | P146: 2030-04-25
D147: 2027-07-01 | E147: 108 | P147: 2030-05-25
D148: 2027-08-01 | E148: 109 | P148: 2030-06-25
D149: 2027-09-01 | E149: 110 | P149: 2030-07-25
D150: 2027-10-01 | E150: 111 | P150: 2030-08-25
D151: 2027-11-01 | E151: 112 | P151: 2030-09-25
D152: 2027-12-01 | E152: 113 | P152: 2030-10-25
D153: 2028-01-01 | E153: 114 | P153: 2030-11-25
D154: 2028-02-01 | E154: 115 | P154: 2030-12-25
D155: 2028-03-01 | E155: 116 | P155: 2031-01-25
D156: 2028-04-01 | E156: 117 | P156: 2031-02-25
D157: 2028-05-01 | E157: 118 | P157: 2031-03-25
D158: 2028-06-01 | E158: 119 | P158: 2031-04-25
D159: 2028-07-01 | E159: 120 | P159: 2031-05-25
D160: 2028-08-01 | E160: 121 | P160: 2031-06-25
D161: 2028-09-01 | E161: 122 | P161: 2031-07-25
D162: 2028-10-01 | E162: 123 | P162: 2031-08-25
D163: 2028-11-01 | E163: 124 | P163: 2031-09-25
D164: 2028-12-01 | E164: 125 | P164: 2031-10-25
D165: 2029-01-01 | E165: 126 | P165: =+EDATE(P164,1) -> 2031-11-25
D166: 2029-02-01 | E166: 127 | P166: 2031-12-25 | Q166: koned
D167: 2029-03-01 | E167: 128 | P167: 2032-01-25
D168: 2029-04-01 | E168: 129 | P168: 2032-02-25
D169: 2029-05-01 | E169: 130 | P169: 2032-03-25
D170: 2029-06-01 | E170: 131 | P170: 2032-04-25
D171: 2029-07-01 | E171: 132 | P171: 2032-05-25
D172: 2029-08-01 | E172: 133 | P172: 2032-06-25
D173: 2029-09-01 | E173: 134 | P173: 2032-07-25
D174: 2029-10-01 | E174: 135 | P174: 2032-08-25
D175: 2029-11-01 | E175: 136 | P175: 2032-09-25
D176: 2029-12-01 | E176: 137 | P176: 2032-10-25
D177: 2030-01-01 | E177: 138 | P177: 2032-11-25
D178: 2030-02-01 | E178: 139 | P178: 2032-12-25
D179: 2030-03-01 | E179: 140 | P179: 2033-01-25
D180: 2030-04-01 | E180: 141 | P180: 2033-02-25
D181: 2030-05-01 | E181: 142 | P181: 2033-03-25
D182: 2030-06-01 | E182: 143 | P182: 2033-04-25
D183: 2030-07-01 | E183: 144 | P183: 2033-05-25
D184: 2030-08-01 | E184: 145 | P184: 2033-06-25
D185: 2030-09-01 | E185: 146 | P185: 2033-07-25
D186: 2030-10-01 | E186: 147 | P186: 2033-08-25
D187: 2030-11-01 | E187: 148 | P187: 2033-09-25
D188: 2030-12-01 | E188: 149 | P188: 2033-10-25
D189: 2031-01-01 | E189: 150 | P189: 2033-11-25
D190: 2031-02-01 | E190: 151 | P190: 2033-12-25
D191: 2031-03-01 | E191: 152 | P191: 2034-01-25
D192: 2031-04-01 | E192: 153 | P192: 2034-02-25
D193: 2031-05-01 | E193: 154 | P193: 2034-03-25
D194: 2031-06-01 | E194: 155 | P194: 2034-04-25
D195: 2031-07-01 | E195: 156 | P195: 2034-05-25
D196: 2031-08-01 | E196: 157 | P196: 2034-06-25
D197: 2031-09-01 | E197: 158 | P197: 2034-07-25
D198: 2031-10-01 | E198: 159 | P198: 2034-08-25
D199: 2031-11-01 | E199: 160 | P199: 2034-09-25
D200: 2031-12-01 | E200: 161 | P200: 2034-10-25
D201: 2032-01-01 | E201: 162 | P201: 2034-11-25
D202: 2032-02-01 | E202: 163 | P202: 2034-12-25
D203: 2032-03-01 | E203: 164 | P203: 2035-01-25
D204: 2032-04-01 | E204: 165 | P204: 2035-02-25
... 265 more rows
